Department Family,Entity,Date,Expense Type,Expense area,Supplier,Transaction Number,Amount,VAT registration Number
Department of Health,Salisbury NHS Foundation Trust,24-Feb-16,BLOOD PRODUCTS,Clinical Support and Family Services,NATIONAL BLOOD SERVICE,849514,62829.67,
Department of Health,Salisbury NHS Foundation Trust,05-Feb-16,ENERGY WATER - ELECTRICITY,Facilities Directorate,SCOTTISH POWER,103959546,10948.65,
Department of Health,Salisbury NHS Foundation Trust,05-Feb-16,ENERGY WATER - ELECTRICITY,Facilities Directorate,SCOTTISH POWER,103959546,88584.57,
Department of Health,Salisbury NHS Foundation Trust,05-Feb-16,ENERGY WATER - ELECTRICITY,Facilities Directorate,SCOTTISH POWER,103959546,547.43,
Department of Health,Salisbury NHS Foundation Trust,05-Feb-16,ENERGY WATER - ELECTRICITY,Facilities Directorate,SCOTTISH POWER,103959546,17716.91,
Department of Health,Salisbury NHS Foundation Trust,05-Feb-16,ENERGY WATER - WATER MAINS,Facilities Directorate,BWBSL,6025259008,18341.92,
Department of Health,Salisbury NHS Foundation Trust,05-Feb-16,ENERGY WATER - SEWERAGE CHARGES,Facilities Directorate,BWBSL,6025259008,9152.71,
Department of Health,Salisbury NHS Foundation Trust,12-Feb-16,HEALTHCARE - NHS TRUSTS,Medicine,UNIVERSITY HOSPITAL SOUTHAMPTON NHS FOUNDATION TRUST,7272099,28498,
Department of Health,Salisbury NHS Foundation Trust,12-Feb-16,HEALTHCARE - NHS TRUSTS,Medicine,UNIVERSITY HOSPITAL SOUTHAMPTON NHS FOUNDATION TRUST,7272100,30559,
Department of Health,Salisbury NHS Foundation Trust,05-Feb-16,PATS CONTS TREATMENT NHS,Clinical Support and Family Services,UNIVERSITY HOSPITAL SOUTHAMPTON NHS FOUNDATION TRUST,7273244,28480.24,
Department of Health,Salisbury NHS Foundation Trust,05-Feb-16,SAMPLES SENT TO SOUTHAMPTON,Clinical Support and Family Services,UNIVERSITY HOSPITAL SOUTHAMPTON NHS FOUNDATION TRUST,7273244,2724.7,
Department of Health,Salisbury NHS Foundation Trust,12-Feb-16,PATS CONTS TREATMENT NHS,Medicine,SALISBURY MEDICAL PRACTICE,2334,31366,
Department of Health,Salisbury NHS Foundation Trust,12-Feb-16,HEALTHCARE - NHS TRUSTS,Medicine,UNIVERSITY HOSPITAL SOUTHAMPTON NHS FOUNDATION TRUST,7267853,61118.5,
Department of Health,Salisbury NHS Foundation Trust,26-Feb-16,POSTAGE & CARRIAGE,Facilities Directorate,PITNEY BOWES LTD,BD460424,25250,
Department of Health,Salisbury NHS Foundation Trust,26-Feb-16,ENERGY WATER - WATER MAINS,Facilities Directorate,BWBSL,6026885075,20948.33,
Department of Health,Salisbury NHS Foundation Trust,26-Feb-16,ENERGY WATER - SEWERAGE CHARGES,Facilities Directorate,BWBSL,6026885075,9377.63,
Department of Health,Salisbury NHS Foundation Trust,26-Feb-16,ENERGY WATER - ELECTRICITY,Facilities Directorate,SCOTTISH POWER,104018474,7650.4,
Department of Health,Salisbury NHS Foundation Trust,26-Feb-16,ENERGY WATER - ELECTRICITY,Facilities Directorate,SCOTTISH POWER,104018474,61898.57,
Department of Health,Salisbury NHS Foundation Trust,26-Feb-16,ENERGY WATER - ELECTRICITY,Facilities Directorate,SCOTTISH POWER,104018474,382.52,
Department of Health,Salisbury NHS Foundation Trust,26-Feb-16,ENERGY WATER - ELECTRICITY,Facilities Directorate,SCOTTISH POWER,104018474,12379.71,
Department of Health,Salisbury NHS Foundation Trust,05-Feb-16,DRUGS,Clinical Support and Family Services,NOVARTIS PHARMACEUTICALS UK LTD,91605058,23150.4,
Department of Health,Salisbury NHS Foundation Trust,05-Feb-16,DRUGS,Clinical Support and Family Services,NOVARTIS PHARMACEUTICALS UK LTD,91605058,4630.08,
Department of Health,Salisbury NHS Foundation Trust,12-Feb-16,COMPUTER MAINTENANCE x,Corporate Directorate,ANS GROUP PLC,INV038682,5652.06,
Department of Health,Salisbury NHS Foundation Trust,12-Feb-16,COMPUTER MAINTENANCE x,Corporate Directorate,ANS GROUP PLC,INV038682,1671.27,
Department of Health,Salisbury NHS Foundation Trust,12-Feb-16,COMPUTER MAINTENANCE x,Corporate Directorate,ANS GROUP PLC,INV038682,16371.6,
Department of Health,Salisbury NHS Foundation Trust,12-Feb-16,COMPUTER MAINTENANCE x,Corporate Directorate,ANS GROUP PLC,INV038682,1924.59,
Department of Health,Salisbury NHS Foundation Trust,12-Feb-16,COMPUTER MAINTENANCE x,Corporate Directorate,ANS GROUP PLC,INV038682,1130.41,
Department of Health,Salisbury NHS Foundation Trust,12-Feb-16,COMPUTER MAINTENANCE x,Corporate Directorate,ANS GROUP PLC,INV038682,334.25,
Department of Health,Salisbury NHS Foundation Trust,12-Feb-16,COMPUTER MAINTENANCE x,Corporate Directorate,ANS GROUP PLC,INV038682,3274.32,
Department of Health,Salisbury NHS Foundation Trust,12-Feb-16,COMPUTER MAINTENANCE x,Corporate Directorate,ANS GROUP PLC,INV038682,384.92,
Department of Health,Salisbury NHS Foundation Trust,26-Feb-16,DI & RADIO - RADIOLOGY EQUIPMENT,Clinical Support and Family Services,NHS SUPPLY CHAIN,2016003612A,24263.9,
Department of Health,Salisbury NHS Foundation Trust,26-Feb-16,MEDICAL EQUIPMENT 10 YEARS,Capital Projects,KARL STORZ ENDOSCOPY (UK) LTD,INVL029554,74.25,
Department of Health,Salisbury NHS Foundation Trust,26-Feb-16,MEDICAL EQUIPMENT 10 YEARS,Capital Projects,KARL STORZ ENDOSCOPY (UK) LTD,INVL029554,8429.85,
Department of Health,Salisbury NHS Foundation Trust,26-Feb-16,MEDICAL EQUIPMENT 10 YEARS,Capital Projects,KARL STORZ ENDOSCOPY (UK) LTD,INVL029554,2900.7,
Department of Health,Salisbury NHS Foundation Trust,26-Feb-16,MEDICAL EQUIPMENT 10 YEARS,Capital Projects,KARL STORZ ENDOSCOPY (UK) LTD,INVL029554,297,
Department of Health,Salisbury NHS Foundation Trust,26-Feb-16,MEDICAL EQUIPMENT 10 YEARS,Capital Projects,KARL STORZ ENDOSCOPY (UK) LTD,INVL029554,1212.75,
Department of Health,Salisbury NHS Foundation Trust,26-Feb-16,MEDICAL EQUIPMENT 10 YEARS,Capital Projects,KARL STORZ ENDOSCOPY (UK) LTD,INVL029554,222.75,
Department of Health,Salisbury NHS Foundation Trust,26-Feb-16,MEDICAL EQUIPMENT 10 YEARS,Capital Projects,KARL STORZ ENDOSCOPY (UK) LTD,INVL029554,772.2,
Department of Health,Salisbury NHS Foundation Trust,26-Feb-16,MEDICAL EQUIPMENT 10 YEARS,Capital Projects,KARL STORZ ENDOSCOPY (UK) LTD,INVL029554,87.45,
Department of Health,Salisbury NHS Foundation Trust,26-Feb-16,MEDICAL EQUIPMENT 10 YEARS,Capital Projects,KARL STORZ ENDOSCOPY (UK) LTD,INVL029554,28.05,
Department of Health,Salisbury NHS Foundation Trust,26-Feb-16,MEDICAL EQUIPMENT 10 YEARS,Capital Projects,KARL STORZ ENDOSCOPY (UK) LTD,INVL029554,74.25,
Department of Health,Salisbury NHS Foundation Trust,26-Feb-16,MEDICAL EQUIPMENT 10 YEARS,Capital Projects,KARL STORZ ENDOSCOPY (UK) LTD,INVL029554,646.8,
Department of Health,Salisbury NHS Foundation Trust,26-Feb-16,MEDICAL EQUIPMENT 10 YEARS,Capital Projects,KARL STORZ ENDOSCOPY (UK) LTD,INVL029554,23281.5,
Department of Health,Salisbury NHS Foundation Trust,26-Feb-16,MEDICAL EQUIPMENT 10 YEARS,Capital Projects,KARL STORZ ENDOSCOPY (UK) LTD,INVL029554,1214.4,
Department of Health,Salisbury NHS Foundation Trust,26-Feb-16,MEDICAL EQUIPMENT 10 YEARS,Capital Projects,KARL STORZ ENDOSCOPY (UK) LTD,INVL029554,1518,
Department of Health,Salisbury NHS Foundation Trust,26-Feb-16,MEDICAL EQUIPMENT 10 YEARS,Capital Projects,KARL STORZ ENDOSCOPY (UK) LTD,INVL029554,13459.88,
Department of Health,Salisbury NHS Foundation Trust,26-Feb-16,MEDICAL EQUIPMENT 10 YEARS,Capital Projects,KARL STORZ ENDOSCOPY (UK) LTD,INVL029554,14.85,
Department of Health,Salisbury NHS Foundation Trust,26-Feb-16,MEDICAL EQUIPMENT 10 YEARS,Capital Projects,KARL STORZ ENDOSCOPY (UK) LTD,INVL029554,1685.97,
Department of Health,Salisbury NHS Foundation Trust,26-Feb-16,MEDICAL EQUIPMENT 10 YEARS,Capital Projects,KARL STORZ ENDOSCOPY (UK) LTD,INVL029554,580.14,
Department of Health,Salisbury NHS Foundation Trust,26-Feb-16,MEDICAL EQUIPMENT 10 YEARS,Capital Projects,KARL STORZ ENDOSCOPY (UK) LTD,INVL029554,59.4,
Department of Health,Salisbury NHS Foundation Trust,26-Feb-16,MEDICAL EQUIPMENT 10 YEARS,Capital Projects,KARL STORZ ENDOSCOPY (UK) LTD,INVL029554,242.55,
Department of Health,Salisbury NHS Foundation Trust,26-Feb-16,MEDICAL EQUIPMENT 10 YEARS,Capital Projects,KARL STORZ ENDOSCOPY (UK) LTD,INVL029554,44.55,
Department of Health,Salisbury NHS Foundation Trust,26-Feb-16,MEDICAL EQUIPMENT 10 YEARS,Capital Projects,KARL STORZ ENDOSCOPY (UK) LTD,INVL029554,154.44,
Department of Health,Salisbury NHS Foundation Trust,26-Feb-16,MEDICAL EQUIPMENT 10 YEARS,Capital Projects,KARL STORZ ENDOSCOPY (UK) LTD,INVL029554,17.49,
Department of Health,Salisbury NHS Foundation Trust,26-Feb-16,MEDICAL EQUIPMENT 10 YEARS,Capital Projects,KARL STORZ ENDOSCOPY (UK) LTD,INVL029554,5.61,
Department of Health,Salisbury NHS Foundation Trust,26-Feb-16,MEDICAL EQUIPMENT 10 YEARS,Capital Projects,KARL STORZ ENDOSCOPY (UK) LTD,INVL029554,14.85,
Department of Health,Salisbury NHS Foundation Trust,26-Feb-16,MEDICAL EQUIPMENT 10 YEARS,Capital Projects,KARL STORZ ENDOSCOPY (UK) LTD,INVL029554,129.36,
Department of Health,Salisbury NHS Foundation Trust,26-Feb-16,MEDICAL EQUIPMENT 10 YEARS,Capital Projects,KARL STORZ ENDOSCOPY (UK) LTD,INVL029554,4656.3,
Department of Health,Salisbury NHS Foundation Trust,26-Feb-16,MEDICAL EQUIPMENT 10 YEARS,Capital Projects,KARL STORZ ENDOSCOPY (UK) LTD,INVL029554,242.88,
Department of Health,Salisbury NHS Foundation Trust,26-Feb-16,MEDICAL EQUIPMENT 10 YEARS,Capital Projects,KARL STORZ ENDOSCOPY (UK) LTD,INVL029554,303.6,
Department of Health,Salisbury NHS Foundation Trust,26-Feb-16,MEDICAL EQUIPMENT 10 YEARS,Capital Projects,KARL STORZ ENDOSCOPY (UK) LTD,INVL029554,2691.98,
Department of Health,Salisbury NHS Foundation Trust,05-Feb-16,MEDICAL EQUIPMENT 10 YEARS,Capital Projects,SIEMENS HEALTHCARE LIMITED,1051001009,31205,
Department of Health,Salisbury NHS Foundation Trust,05-Feb-16,MEDICAL EQUIPMENT 10 YEARS,Capital Projects,SIEMENS HEALTHCARE LIMITED,1051001009,2325,
Department of Health,Salisbury NHS Foundation Trust,05-Feb-16,MEDICAL EQUIPMENT 10 YEARS,Capital Projects,SIEMENS HEALTHCARE LIMITED,1051001009,6775,
Department of Health,Salisbury NHS Foundation Trust,05-Feb-16,MEDICAL EQUIPMENT 10 YEARS,Capital Projects,SIEMENS HEALTHCARE LIMITED,1051001009,2475,
Department of Health,Salisbury NHS Foundation Trust,05-Feb-16,MEDICAL EQUIPMENT 10 YEARS,Capital Projects,SIEMENS HEALTHCARE LIMITED,1051001009,2895,
Department of Health,Salisbury NHS Foundation Trust,05-Feb-16,MEDICAL EQUIPMENT 10 YEARS,Capital Projects,SIEMENS HEALTHCARE LIMITED,1051001009,6241,
Department of Health,Salisbury NHS Foundation Trust,05-Feb-16,MEDICAL EQUIPMENT 10 YEARS,Capital Projects,SIEMENS HEALTHCARE LIMITED,1051001009,1355,
Department of Health,Salisbury NHS Foundation Trust,05-Feb-16,MEDICAL EQUIPMENT 10 YEARS,Capital Projects,SIEMENS HEALTHCARE LIMITED,1051001009,495,
Department of Health,Salisbury NHS Foundation Trust,05-Feb-16,MEDICAL EQUIPMENT 10 YEARS,Capital Projects,SIEMENS HEALTHCARE LIMITED,1051001009,579,
Department of Health,Salisbury NHS Foundation Trust,05-Feb-16,MEDICAL EQUIPMENT 10 YEARS,Capital Projects,SIEMENS HEALTHCARE LIMITED,1051001009,465,
Department of Health,Salisbury NHS Foundation Trust,05-Feb-16,MEDICAL EQUIPMENT 10 YEARS,Capital Projects,HILL-ROM,3114603,8591,
Department of Health,Salisbury NHS Foundation Trust,05-Feb-16,MEDICAL EQUIPMENT 10 YEARS,Capital Projects,HILL-ROM,3114603,8591,
Department of Health,Salisbury NHS Foundation Trust,05-Feb-16,MEDICAL EQUIPMENT 10 YEARS,Capital Projects,HILL-ROM,3114603,3986.9,
Department of Health,Salisbury NHS Foundation Trust,05-Feb-16,MEDICAL EQUIPMENT 10 YEARS,Capital Projects,HILL-ROM,3114603,3986.9,
Department of Health,Salisbury NHS Foundation Trust,05-Feb-16,MEDICAL EQUIPMENT 10 YEARS,Capital Projects,HILL-ROM,3114603,1866.16,
Department of Health,Salisbury NHS Foundation Trust,05-Feb-16,MEDICAL EQUIPMENT 10 YEARS,Capital Projects,HILL-ROM,3114603,1718.2,
Department of Health,Salisbury NHS Foundation Trust,05-Feb-16,MEDICAL EQUIPMENT 10 YEARS,Capital Projects,HILL-ROM,3114603,1718.2,
Department of Health,Salisbury NHS Foundation Trust,05-Feb-16,MEDICAL EQUIPMENT 10 YEARS,Capital Projects,HILL-ROM,3114603,797.38,
Department of Health,Salisbury NHS Foundation Trust,05-Feb-16,MEDICAL EQUIPMENT 10 YEARS,Capital Projects,HILL-ROM,3114603,797.38,
Department of Health,Salisbury NHS Foundation Trust,05-Feb-16,MEDICAL EQUIPMENT 10 YEARS,Capital Projects,HILL-ROM,3114603,373.23,
Department of Health,Salisbury NHS Foundation Trust,05-Feb-16,MEDICAL EQUIPMENT 10 YEARS,Capital Projects,HILL-ROM,3114603,0.11,
Department of Health,Salisbury NHS Foundation Trust,05-Feb-16,LAB REAGENTS-BUFFERS COMPUND SOLNS,Clinical Support and Family Services,ILLUMINA UK LTD,7020069886,21993.29,
Department of Health,Salisbury NHS Foundation Trust,05-Feb-16,LAB REAGENTS-BUFFERS COMPUND SOLNS,Clinical Support and Family Services,ILLUMINA UK LTD,7020069886,4398.66,
Department of Health,Salisbury NHS Foundation Trust,05-Feb-16,DRUGS,Clinical Support and Family Services,BAYER PLC,187391623,45448,
Department of Health,Salisbury NHS Foundation Trust,05-Feb-16,DRUGS,Clinical Support and Family Services,BAYER PLC,187391623,9089.6,
Department of Health,Salisbury NHS Foundation Trust,05-Feb-16,BLDG STRUCTURES MAIN CONTR,Capital Projects,BUILDING INTEGRATED SERVICES,518,26351.71,
Department of Health,Salisbury NHS Foundation Trust,05-Feb-16,BLDG STRUCTURES MAIN CONTR,Capital Projects,BUILDING INTEGRATED SERVICES,518,3340.87,
Department of Health,Salisbury NHS Foundation Trust,12-Feb-16,OTH ENGINEERING PLANT&EQUIP,Capital Projects,KLIMA-THERM,27807,65892,
Department of Health,Salisbury NHS Foundation Trust,12-Feb-16,OTH ENGINEERING PLANT&EQUIP,Capital Projects,KLIMA-THERM,27807,13178.4,
Department of Health,Salisbury NHS Foundation Trust,12-Feb-16,OTH ENGINEERING PLANT&EQUIP,Capital Projects,KLIMA-THERM,27808,24564,
Department of Health,Salisbury NHS Foundation Trust,12-Feb-16,OTH ENGINEERING PLANT&EQUIP,Capital Projects,KLIMA-THERM,27808,4912.8,
Department of Health,Salisbury NHS Foundation Trust,26-Feb-16,M & S EQUIPELECTEQUIPINST - OTHER,Surgery,NHS LOGISTICS,1016208724,26.88,
Department of Health,Salisbury NHS Foundation Trust,26-Feb-16,DRESSINGS - PRE STERILE,Surgery,NHS LOGISTICS,1016208724,20.38,
Department of Health,Salisbury NHS Foundation Trust,26-Feb-16,DRESSINGS - PRE STERILE,Surgery,NHS LOGISTICS,1016208724,16.51,
Department of Health,Salisbury NHS Foundation Trust,26-Feb-16,DRESSINGS - PRE STERILE,Surgery,NHS LOGISTICS,1016208724,16.51,
Department of Health,Salisbury NHS Foundation Trust,26-Feb-16,DRESSINGS - PRE STERILE,Surgery,NHS LOGISTICS,1016208724,16.51,
Department of Health,Salisbury NHS Foundation Trust,26-Feb-16,HEATING VENTILATION BOILERS,Clinical Support and Family Services,NHS LOGISTICS,1016208724,11,
Department of Health,Salisbury NHS Foundation Trust,26-Feb-16,MEDSURGCONS - OTHER,Clinical Support and Family Services,NHS LOGISTICS,1016208724,35.42,
Department of Health,Salisbury NHS Foundation Trust,26-Feb-16,MEDSURGCONS - OTHER,Clinical Support and Family Services,NHS LOGISTICS,1016208724,35.42,
Department of Health,Salisbury NHS Foundation Trust,26-Feb-16,OTHER MEDICAL SUPPLIES,Surgery,NHS LOGISTICS,1016208724,25.15,
Department of Health,Salisbury NHS Foundation Trust,26-Feb-16,DRESSINGS - PRE STERILE,Corporate Directorate,NHS LOGISTICS,1016208724,0.76,
Department of Health,Salisbury NHS Foundation Trust,26-Feb-16,LAB REAGENTS-BUFFERS COMPUND SOLNS,Clinical Support and Family Services,NHS LOGISTICS,1016208724,837.92,
Department of Health,Salisbury NHS Foundation Trust,26-Feb-16,M & S EQUIPELECTEQUIPINST - OTHER,Clinical Support and Family Services,NHS LOGISTICS,1016208724,114.58,
Department of Health,Salisbury NHS Foundation Trust,26-Feb-16,OTHER MEDICAL SUPPLIES,Surgery,NHS LOGISTICS,1016208724,64.52,
Department of Health,Salisbury NHS Foundation Trust,26-Feb-16,DRESSINGS - PRE STERILE,Medicine,NHS LOGISTICS,1016208724,143.62,
Department of Health,Salisbury NHS Foundation Trust,26-Feb-16,TISSUES HAND TOWELS & TOILET PAPER,Clinical Support and Family Services,NHS LOGISTICS,1016208724,20.8,
Department of Health,Salisbury NHS Foundation Trust,26-Feb-16,TISSUES HAND TOWELS & TOILET PAPER,Clinical Support and Family Services,NHS LOGISTICS,1016208724,0.93,
Department of Health,Salisbury NHS Foundation Trust,26-Feb-16,DISPOSABLE THEATRE DRAPES WIPES,Clinical Support and Family Services,NHS LOGISTICS,1016208724,42,
Department of Health,Salisbury NHS Foundation Trust,26-Feb-16,DISPOSABLE THEATRE DRAPES WIPES,Surgery,NHS LOGISTICS,1016208724,6.78,
Department of Health,Salisbury NHS Foundation Trust,26-Feb-16,MEDSURGCONS - OTHER,Clinical Support and Family Services,NHS LOGISTICS,1016208724,25.62,
Department of Health,Salisbury NHS Foundation Trust,26-Feb-16,MED SURG EQUIP REP MAINT CLEANING,Medicine,NHS LOGISTICS,1016208724,113.04,
Department of Health,Salisbury NHS Foundation Trust,26-Feb-16,DRESSINGS - PRE STERILE,Critical care,NHS LOGISTICS,1016208724,48.28,
Department of Health,Salisbury NHS Foundation Trust,26-Feb-16,DRESSINGS - PRE STERILE,Critical care,NHS LOGISTICS,1016208724,63.3,
Department of Health,Salisbury NHS Foundation Trust,26-Feb-16,DRESSINGS - PRE STERILE,Critical care,NHS LOGISTICS,1016208724,30.29,
Department of Health,Salisbury NHS Foundation Trust,26-Feb-16,MEDSURGCONS - OTHER,Medicine,NHS LOGISTICS,1016208724,5.38,
Department of Health,Salisbury NHS Foundation Trust,26-Feb-16,ELECTRICAL EQUIPMENT x,Clinical Support and Family Services,NHS LOGISTICS,1016208724,3.33,
Department of Health,Salisbury NHS Foundation Trust,26-Feb-16,DISPOSABLE THEATRE DRAPES WIPES,Surgery,NHS LOGISTICS,1016208724,81.3,
Department of Health,Salisbury NHS Foundation Trust,26-Feb-16,TISSUES HAND TOWELS & TOILET PAPER,Medicine,NHS LOGISTICS,1016208724,0.8,
Department of Health,Salisbury NHS Foundation Trust,26-Feb-16,TISSUES HAND TOWELS & TOILET PAPER,Medicine,NHS LOGISTICS,1016208724,0.93,
Department of Health,Salisbury NHS Foundation Trust,26-Feb-16,MEDSURGCONS - OTHER,Medicine,NHS LOGISTICS,1016208724,5.38,
Department of Health,Salisbury NHS Foundation Trust,26-Feb-16,OTHER MEDICAL SUPPLIES,Clinical Support and Family Services,NHS LOGISTICS,1016208724,157.9,
Department of Health,Salisbury NHS Foundation Trust,26-Feb-16,LAB EQUIP-LABORATORY APPARATUS,Clinical Support and Family Services,NHS LOGISTICS,1016208724,61.08,
Department of Health,Salisbury NHS Foundation Trust,26-Feb-16,LAB EQUIP-LABORATORY APPARATUS,Clinical Support and Family Services,NHS LOGISTICS,1016208724,237.33,
Department of Health,Salisbury NHS Foundation Trust,26-Feb-16,LAB EQUIP-ANALYSERS,Clinical Support and Family Services,NHS LOGISTICS,1016208724,12.7,
Department of Health,Salisbury NHS Foundation Trust,26-Feb-16,LAB EQUIP-ANALYSERS,Clinical Support and Family Services,NHS LOGISTICS,1016208724,61.5,
Department of Health,Salisbury NHS Foundation Trust,26-Feb-16,LAB EQUIP-LABORATORY APPARATUS,Clinical Support and Family Services,NHS LOGISTICS,1016208724,655.08,
Department of Health,Salisbury NHS Foundation Trust,26-Feb-16,LAB EQUIP-LABORATORY APPARATUS,Clinical Support and Family Services,NHS LOGISTICS,1016208724,6.43,
Department of Health,Salisbury NHS Foundation Trust,26-Feb-16,LAB EQUIP-LABORATORY APPARATUS,Clinical Support and Family Services,NHS LOGISTICS,1016208724,50.87,
Department of Health,Salisbury NHS Foundation Trust,26-Feb-16,LAB EQUIP-LABORATORY APPARATUS,Clinical Support and Family Services,NHS LOGISTICS,1016208724,32.08,
Department of Health,Salisbury NHS Foundation Trust,26-Feb-16,LAB EQUIP-LABORATORY APPARATUS,Clinical Support and Family Services,NHS LOGISTICS,1016208724,62.08,
Department of Health,Salisbury NHS Foundation Trust,26-Feb-16,LAB EQUIP-LABORATORY APPARATUS,Clinical Support and Family Services,NHS LOGISTICS,1016208724,3.04,
Department of Health,Salisbury NHS Foundation Trust,26-Feb-16,LAB EQUIP-LABORATORY APPARATUS,Clinical Support and Family Services,NHS LOGISTICS,1016208724,70.8,
Department of Health,Salisbury NHS Foundation Trust,26-Feb-16,OTHER MEDICAL SUPPLIES,Clinical Support and Family Services,NHS LOGISTICS,1016208724,455,
Department of Health,Salisbury NHS Foundation Trust,26-Feb-16,OTHER MEDICAL SUPPLIES,Clinical Support and Family Services,NHS LOGISTICS,1016208724,182,
Department of Health,Salisbury NHS Foundation Trust,26-Feb-16,LAB REAGENTS-BUFFERS COMPUND SOLNS,Clinical Support and Family Services,NHS LOGISTICS,1016208724,214.63,
Department of Health,Salisbury NHS Foundation Trust,26-Feb-16,DISPOSABLE THEATRE DRAPES WIPES,Human Resources,NHS LOGISTICS,1016208724,12.45,
Department of Health,Salisbury NHS Foundation Trust,26-Feb-16,BEVERAGES & AMBIENT FOOD,Surgery,NHS LOGISTICS,1016208724,30.12,
Department of Health,Salisbury NHS Foundation Trust,26-Feb-16,BEVERAGES & AMBIENT FOOD,Surgery,NHS LOGISTICS,1016208724,2.16,
Department of Health,Salisbury NHS Foundation Trust,26-Feb-16,BEVERAGES & AMBIENT FOOD,Surgery,NHS LOGISTICS,1016208724,4.17,
Department of Health,Salisbury NHS Foundation Trust,26-Feb-16,BAGS SACKS - OTHER,Facilities Directorate,NHS LOGISTICS,1016208724,20.27,
Department of Health,Salisbury NHS Foundation Trust,26-Feb-16,CLEANING MATERIALS PRODUCTS SUNDRIES,Facilities Directorate,NHS LOGISTICS,1016208724,8.7,
Department of Health,Salisbury NHS Foundation Trust,26-Feb-16,LIQUID REFRESHMENTS,Facilities Directorate,NHS LOGISTICS,1016208724,7.82,
Department of Health,Salisbury NHS Foundation Trust,26-Feb-16,CLEANING MATERIALS PRODUCTS SUNDRIES,Facilities Directorate,NHS LOGISTICS,1016208724,4.4,
Department of Health,Salisbury NHS Foundation Trust,26-Feb-16,CLEANING MATERIALS PRODUCTS SUNDRIES,Facilities Directorate,NHS LOGISTICS,1016208724,33.07,
Department of Health,Salisbury NHS Foundation Trust,26-Feb-16,CLEANING MATERIALS PRODUCTS SUNDRIES,Facilities Directorate,NHS LOGISTICS,1016208724,13.75,
Department of Health,Salisbury NHS Foundation Trust,26-Feb-16,DISPOSABLE THEATRE DRAPES WIPES,Facilities Directorate,NHS LOGISTICS,1016208724,11.38,
Department of Health,Salisbury NHS Foundation Trust,26-Feb-16,DISPOSABLE THEATRE DRAPES WIPES,Facilities Directorate,NHS LOGISTICS,1016208724,266.8,
Department of Health,Salisbury NHS Foundation Trust,26-Feb-16,CLEANING MATERIALS PRODUCTS SUNDRIES,Facilities Directorate,NHS LOGISTICS,1016208724,20.4,
Department of Health,Salisbury NHS Foundation Trust,26-Feb-16,CLEANING MATERIALS PRODUCTS SUNDRIES,Facilities Directorate,NHS LOGISTICS,1016208724,56.8,
Department of Health,Salisbury NHS Foundation Trust,26-Feb-16,DISPOSABLE THEATRE DRAPES WIPES,Facilities Directorate,NHS LOGISTICS,1016208724,11.42,
Department of Health,Salisbury NHS Foundation Trust,26-Feb-16,DISPOSABLE THEATRE DRAPES WIPES,Facilities Directorate,NHS LOGISTICS,1016208724,88.67,
Department of Health,Salisbury NHS Foundation Trust,26-Feb-16,DRESSINGS - PRE STERILE,Critical care,NHS LOGISTICS,1016208724,0.76,
Department of Health,Salisbury NHS Foundation Trust,26-Feb-16,MEDSURGCONS - OTHER,Critical care,NHS LOGISTICS,1016208724,19.93,
Department of Health,Salisbury NHS Foundation Trust,26-Feb-16,TISSUES HAND TOWELS & TOILET PAPER,Surgery,NHS LOGISTICS,1016208724,5.65,
Department of Health,Salisbury NHS Foundation Trust,26-Feb-16,DISPOSABLE THEATRE DRAPES WIPES,Surgery,NHS LOGISTICS,1016208724,3.24,
Department of Health,Salisbury NHS Foundation Trust,26-Feb-16,LAB EQUIP-LABORATORY APPARATUS,Clinical Support and Family Services,NHS LOGISTICS,1016208724,237.33,
Department of Health,Salisbury NHS Foundation Trust,26-Feb-16,DRESSINGS - PRE STERILE,Medicine,NHS LOGISTICS,1016208724,5.23,
Department of Health,Salisbury NHS Foundation Trust,26-Feb-16,DRESSINGS - PRE STERILE,Medicine,NHS LOGISTICS,1016208724,3.08,
Department of Health,Salisbury NHS Foundation Trust,26-Feb-16,DRESSINGS - PRE STERILE,Medicine,NHS LOGISTICS,1016208724,13.73,
Department of Health,Salisbury NHS Foundation Trust,26-Feb-16,DRESSINGS - PRE STERILE,Medicine,NHS LOGISTICS,1016208724,20.23,
Department of Health,Salisbury NHS Foundation Trust,26-Feb-16,LAB EQUIP-ANALYSERS,Directorate of Finance and Procurement,NHS LOGISTICS,1016208724,61.95,
Department of Health,Salisbury NHS Foundation Trust,26-Feb-16,LAB EQUIP-ANALYSERS,Directorate of Finance and Procurement,NHS LOGISTICS,1016208724,240,
Department of Health,Salisbury NHS Foundation Trust,26-Feb-16,MEDSURGCONS - OTHER,Directorate of Finance and Procurement,NHS LOGISTICS,1016208724,451.2,
Department of Health,Salisbury NHS Foundation Trust,26-Feb-16,DISPOSABLE THEATRE DRAPES WIPES,Directorate of Finance and Procurement,NHS LOGISTICS,1016208724,31.5,
Department of Health,Salisbury NHS Foundation Trust,26-Feb-16,DISPOSABLE THEATRE DRAPES WIPES,Directorate of Finance and Procurement,NHS LOGISTICS,1016208724,73,
Department of Health,Salisbury NHS Foundation Trust,26-Feb-16,MEDSURGCONS - OTHER,Surgery,NHS LOGISTICS,1016208724,21.67,
Department of Health,Salisbury NHS Foundation Trust,26-Feb-16,OTHER MEDICAL SUPPLIES,Critical care,NHS LOGISTICS,1016208724,175,
Department of Health,Salisbury NHS Foundation Trust,26-Feb-16,OTHER MEDICAL SUPPLIES,Critical care,NHS LOGISTICS,1016208724,170,
Department of Health,Salisbury NHS Foundation Trust,26-Feb-16,MEDSURGCONS - OTHER,Clinical Support and Family Services,NHS LOGISTICS,1016208724,22.29,
Department of Health,Salisbury NHS Foundation Trust,26-Feb-16,DISPOSABLE THEATRE DRAPES WIPES,Surgery,NHS LOGISTICS,1016208724,77.84,
Department of Health,Salisbury NHS Foundation Trust,26-Feb-16,BAGS SACKS - OTHER,Clinical Support and Family Services,NHS LOGISTICS,1016208724,5.67,
Department of Health,Salisbury NHS Foundation Trust,26-Feb-16,ELECTRICAL EQUIPMENT x,Clinical Support and Family Services,NHS LOGISTICS,1016208724,1.67,
Department of Health,Salisbury NHS Foundation Trust,26-Feb-16,MEDSURGCONS - OTHER,Clinical Support and Family Services,NHS LOGISTICS,1016208724,18.13,
Department of Health,Salisbury NHS Foundation Trust,26-Feb-16,TOILETRIES PERSONAL HYGIENE PRODUCTS,Clinical Support and Family Services,NHS LOGISTICS,1016208724,3.2,
Department of Health,Salisbury NHS Foundation Trust,26-Feb-16,PATIENT APPLIANCES,Clinical Support and Family Services,NHS LOGISTICS,1016208724,45.66,
Department of Health,Salisbury NHS Foundation Trust,26-Feb-16,TISSUES HAND TOWELS & TOILET PAPER,Clinical Support and Family Services,NHS LOGISTICS,1016208724,10.4,
Department of Health,Salisbury NHS Foundation Trust,26-Feb-16,DRESSINGS - PRE STERILE,Clinical Support and Family Services,NHS LOGISTICS,1016208724,0.7,
Department of Health,Salisbury NHS Foundation Trust,26-Feb-16,DISPOSABLE THEATRE DRAPES WIPES,Clinical Support and Family Services,NHS LOGISTICS,1016208724,3.24,
Department of Health,Salisbury NHS Foundation Trust,26-Feb-16,ELECTRICAL EQUIPMENT x,Facilities Directorate,NHS LOGISTICS,1016208724,94,
Department of Health,Salisbury NHS Foundation Trust,26-Feb-16,TISSUES HAND TOWELS & TOILET PAPER,Critical care,NHS LOGISTICS,1016208724,5.65,
Department of Health,Salisbury NHS Foundation Trust,26-Feb-16,PATIENT APPLIANCES,Critical care,NHS LOGISTICS,1016208724,5.47,
Department of Health,Salisbury NHS Foundation Trust,26-Feb-16,TISSUES HAND TOWELS & TOILET PAPER,Critical care,NHS LOGISTICS,1016208724,0.93,
Department of Health,Salisbury NHS Foundation Trust,26-Feb-16,DISPOSABLE THEATRE DRAPES WIPES,Critical care,NHS LOGISTICS,1016208724,3.24,
Department of Health,Salisbury NHS Foundation Trust,26-Feb-16,DISPOSABLE THEATRE DRAPES WIPES,Clinical Support and Family Services,NHS LOGISTICS,1016208724,3.24,
Department of Health,Salisbury NHS Foundation Trust,26-Feb-16,OTHER MEDICAL SUPPLIES,Surgery,NHS LOGISTICS,1016208724,6.38,
Department of Health,Salisbury NHS Foundation Trust,26-Feb-16,DRESSINGS - PRE STERILE,Surgery,NHS LOGISTICS,1016208724,20.38,
Department of Health,Salisbury NHS Foundation Trust,26-Feb-16,TISSUES HAND TOWELS & TOILET PAPER,Surgery,NHS LOGISTICS,1016208724,5.65,
Department of Health,Salisbury NHS Foundation Trust,26-Feb-16,TISSUES HAND TOWELS & TOILET PAPER,Surgery,NHS LOGISTICS,1016208724,5.65,
Department of Health,Salisbury NHS Foundation Trust,26-Feb-16,TISSUES HAND TOWELS & TOILET PAPER,Surgery,NHS LOGISTICS,1016208724,10.4,
Department of Health,Salisbury NHS Foundation Trust,26-Feb-16,DRESSINGS - PRE STERILE,Surgery,NHS LOGISTICS,1016208724,5.88,
Department of Health,Salisbury NHS Foundation Trust,26-Feb-16,OTHER MEDICAL SUPPLIES,Surgery,NHS LOGISTICS,1016208724,2.87,
Department of Health,Salisbury NHS Foundation Trust,26-Feb-16,DRESSINGS - PRE STERILE,Surgery,NHS LOGISTICS,1016208724,0.76,
Department of Health,Salisbury NHS Foundation Trust,26-Feb-16,DISPOSABLE THEATRE DRAPES WIPES,Surgery,NHS LOGISTICS,1016208724,3.24,
Department of Health,Salisbury NHS Foundation Trust,26-Feb-16,MEDSURGCONS - OTHER,Clinical Support and Family Services,NHS LOGISTICS,1016208724,36.84,
Department of Health,Salisbury NHS Foundation Trust,26-Feb-16,TISSUES HAND TOWELS & TOILET PAPER,Clinical Support and Family Services,NHS LOGISTICS,1016208724,7.53,
Department of Health,Salisbury NHS Foundation Trust,26-Feb-16,TISSUES HAND TOWELS & TOILET PAPER,Clinical Support and Family Services,NHS LOGISTICS,1016208724,0.93,
Department of Health,Salisbury NHS Foundation Trust,26-Feb-16,PATIENT APPLIANCES,Clinical Support and Family Services,NHS LOGISTICS,1016208724,28.83,
Department of Health,Salisbury NHS Foundation Trust,26-Feb-16,BEVERAGES & AMBIENT FOOD,Surgery,NHS LOGISTICS,1016208724,11.35,
Department of Health,Salisbury NHS Foundation Trust,26-Feb-16,TISSUES HAND TOWELS & TOILET PAPER,Surgery,NHS LOGISTICS,1016208724,3.2,
Department of Health,Salisbury NHS Foundation Trust,26-Feb-16,OTHER MEDICAL SUPPLIES,Surgery,NHS LOGISTICS,1016208724,2.83,
Department of Health,Salisbury NHS Foundation Trust,26-Feb-16,BEVERAGES & AMBIENT FOOD,Surgery,NHS LOGISTICS,1016208724,30.12,
Department of Health,Salisbury NHS Foundation Trust,26-Feb-16,DRUGS,Surgery,NHS LOGISTICS,1016208724,23.3,
Department of Health,Salisbury NHS Foundation Trust,26-Feb-16,BEVERAGES & AMBIENT FOOD,Surgery,NHS LOGISTICS,1016208724,2.78,
Department of Health,Salisbury NHS Foundation Trust,26-Feb-16,DISPOSABLE THEATRE DRAPES WIPES,Surgery,NHS LOGISTICS,1016208724,6.48,
Department of Health,Salisbury NHS Foundation Trust,26-Feb-16,TISSUES HAND TOWELS & TOILET PAPER,Medicine,NHS LOGISTICS,1016208724,1.88,
Department of Health,Salisbury NHS Foundation Trust,26-Feb-16,CLEANING MATERIALS PRODUCTS SUNDRIES,Medicine,NHS LOGISTICS,1016208724,5.45,
Department of Health,Salisbury NHS Foundation Trust,26-Feb-16,TISSUES HAND TOWELS & TOILET PAPER,Medicine,NHS LOGISTICS,1016208724,0.93,
Department of Health,Salisbury NHS Foundation Trust,26-Feb-16,M & S EQUIPELECTEQUIPINST - OTHER,Medicine,NHS LOGISTICS,1016208724,2.18,
Department of Health,Salisbury NHS Foundation Trust,26-Feb-16,PATIENT APPLIANCES,Medicine,NHS LOGISTICS,1016208724,4.15,
Department of Health,Salisbury NHS Foundation Trust,26-Feb-16,PATIENT APPLIANCES,Medicine,NHS LOGISTICS,1016208724,4.15,
Department of Health,Salisbury NHS Foundation Trust,26-Feb-16,MEDSURGCONS - OTHER,Medicine,NHS LOGISTICS,1016208724,5.38,
Department of Health,Salisbury NHS Foundation Trust,26-Feb-16,TISSUES HAND TOWELS & TOILET PAPER,Medicine,NHS LOGISTICS,1016208724,0.37,
Department of Health,Salisbury NHS Foundation Trust,26-Feb-16,PATIENT APPLIANCES,Medicine,NHS LOGISTICS,1016208724,1.83,
Department of Health,Salisbury NHS Foundation Trust,26-Feb-16,DISPOSABLE THEATRE DRAPES WIPES,Medicine,NHS LOGISTICS,1016208724,3.24,
Department of Health,Salisbury NHS Foundation Trust,26-Feb-16,BAGS SACKS - OTHER,Critical care,NHS LOGISTICS,1016208724,4.34,
Department of Health,Salisbury NHS Foundation Trust,26-Feb-16,TISSUES HAND TOWELS & TOILET PAPER,Critical care,NHS LOGISTICS,1016208724,5.65,
Department of Health,Salisbury NHS Foundation Trust,26-Feb-16,MEDSURGCONS - OTHER,Critical care,NHS LOGISTICS,1016208724,0.6,
Department of Health,Salisbury NHS Foundation Trust,26-Feb-16,NON DISPOSABLE BED LINEN,Critical care,NHS LOGISTICS,1016208724,19.53,
Department of Health,Salisbury NHS Foundation Trust,26-Feb-16,OTHER MEDICAL SUPPLIES,Critical care,NHS LOGISTICS,1016208724,5.88,
Department of Health,Salisbury NHS Foundation Trust,26-Feb-16,MEDSURGCONS - OTHER,Critical care,NHS LOGISTICS,1016208724,19.93,
Department of Health,Salisbury NHS Foundation Trust,26-Feb-16,TISSUES HAND TOWELS & TOILET PAPER,Critical care,NHS LOGISTICS,1016208724,0.37,
Department of Health,Salisbury NHS Foundation Trust,26-Feb-16,DISPOSABLE THEATRE DRAPES WIPES,Surgery,NHS LOGISTICS,1016208724,11.38,
Department of Health,Salisbury NHS Foundation Trust,26-Feb-16,MEDSURGCONS - OTHER,Surgery,NHS LOGISTICS,1016208724,94.28,
Department of Health,Salisbury NHS Foundation Trust,26-Feb-16,MEDSURGCONS - OTHER,Surgery,NHS LOGISTICS,1016208724,91.8,
Department of Health,Salisbury NHS Foundation Trust,26-Feb-16,MEDSURGCONS - OTHER,Critical care,NHS LOGISTICS,1016208724,510.2,
Department of Health,Salisbury NHS Foundation Trust,26-Feb-16,MEDSURGCONS - OTHER,Surgery,NHS LOGISTICS,1016208724,19.27,
Department of Health,Salisbury NHS Foundation Trust,26-Feb-16,TUBES,Surgery,NHS LOGISTICS,1016208724,6.19,
Department of Health,Salisbury NHS Foundation Trust,26-Feb-16,TISSUES HAND TOWELS & TOILET PAPER,Surgery,NHS LOGISTICS,1016208724,1.1,
Department of Health,Salisbury NHS Foundation Trust,26-Feb-16,PATIENT APPLIANCES,Surgery,NHS LOGISTICS,1016208724,16.48,
Department of Health,Salisbury NHS Foundation Trust,26-Feb-16,CLEANING MATERIALS PRODUCTS SUNDRIES,Medicine,NHS LOGISTICS,1016208724,2,
Department of Health,Salisbury NHS Foundation Trust,26-Feb-16,TISSUES HAND TOWELS & TOILET PAPER,Medicine,NHS LOGISTICS,1016208724,1.88,
Department of Health,Salisbury NHS Foundation Trust,26-Feb-16,PATIENT APPLIANCES,Medicine,NHS LOGISTICS,1016208724,9.17,
Department of Health,Salisbury NHS Foundation Trust,26-Feb-16,TISSUES HAND TOWELS & TOILET PAPER,Human Resources,NHS LOGISTICS,1016208724,6.53,
Department of Health,Salisbury NHS Foundation Trust,26-Feb-16,TOILETRIES PERSONAL HYGIENE PRODUCTS,Human Resources,NHS LOGISTICS,1016208724,33.4,
Department of Health,Salisbury NHS Foundation Trust,26-Feb-16,DRESSINGS - PRE STERILE,Medicine,NHS LOGISTICS,1016208724,130.62,
Department of Health,Salisbury NHS Foundation Trust,26-Feb-16,DRESSINGS - PRE STERILE,Surgery,NHS LOGISTICS,1016208724,204.4,
Department of Health,Salisbury NHS Foundation Trust,26-Feb-16,MEDSURGCONS - OTHER,Surgery,NHS LOGISTICS,1016208724,63.6,
Department of Health,Salisbury NHS Foundation Trust,26-Feb-16,M & S EQUIPELECTEQUIPINST - OTHER,Clinical Support and Family Services,NHS LOGISTICS,1016208724,130.21,
Department of Health,Salisbury NHS Foundation Trust,26-Feb-16,DRESSINGS - PRE STERILE,Clinical Support and Family Services,NHS LOGISTICS,1016208724,15.11,
Department of Health,Salisbury NHS Foundation Trust,26-Feb-16,DRESSINGS - PRE STERILE,Clinical Support and Family Services,NHS LOGISTICS,1016208724,52.08,
Department of Health,Salisbury NHS Foundation Trust,26-Feb-16,DRESSINGS - PRE STERILE,Clinical Support and Family Services,NHS LOGISTICS,1016208724,62.33,
Department of Health,Salisbury NHS Foundation Trust,26-Feb-16,DRESSINGS - PRE STERILE,Clinical Support and Family Services,NHS LOGISTICS,1016208724,66.53,
Department of Health,Salisbury NHS Foundation Trust,26-Feb-16,DRESSINGS - PRE STERILE,Clinical Support and Family Services,NHS LOGISTICS,1016208724,5.92,
Department of Health,Salisbury NHS Foundation Trust,26-Feb-16,DRESSINGS - PRE STERILE,Clinical Support and Family Services,NHS LOGISTICS,1016208724,37.6,
Department of Health,Salisbury NHS Foundation Trust,26-Feb-16,DRESSINGS - PRE STERILE,Clinical Support and Family Services,NHS LOGISTICS,1016208724,30.13,
Department of Health,Salisbury NHS Foundation Trust,26-Feb-16,TOILETRIES PERSONAL HYGIENE PRODUCTS,Clinical Support and Family Services,NHS LOGISTICS,1016208724,6.58,
Department of Health,Salisbury NHS Foundation Trust,26-Feb-16,DRUGS,Clinical Support and Family Services,NHS LOGISTICS,1016208724,81.6,
Department of Health,Salisbury NHS Foundation Trust,26-Feb-16,DRUGS,Clinical Support and Family Services,NHS LOGISTICS,1016208724,45.5,
Department of Health,Salisbury NHS Foundation Trust,26-Feb-16,MEDSURGCONS-SUTURES,Clinical Support and Family Services,NHS LOGISTICS,1016208724,503.08,
Department of Health,Salisbury NHS Foundation Trust,26-Feb-16,DISPOSABLE THEATRE DRAPES WIPES,Clinical Support and Family Services,NHS LOGISTICS,1016208724,12.97,
Department of Health,Salisbury NHS Foundation Trust,26-Feb-16,PATIENTS BEDWEAR UNISEX,Critical care,NHS LOGISTICS,1016208724,65.43,
Department of Health,Salisbury NHS Foundation Trust,26-Feb-16,PATIENTS BEDWEAR UNISEX,Critical care,NHS LOGISTICS,1016208724,65.43,
Department of Health,Salisbury NHS Foundation Trust,26-Feb-16,MEDSURGCONS - OTHER,Medicine,NHS LOGISTICS,1016208724,17.23,
Department of Health,Salisbury NHS Foundation Trust,26-Feb-16,MEDSURGCONS - OTHER,Critical care,NHS LOGISTICS,1016208724,21.47,
Department of Health,Salisbury NHS Foundation Trust,26-Feb-16,TISSUES HAND TOWELS & TOILET PAPER,Critical care,NHS LOGISTICS,1016208724,21.2,
Department of Health,Salisbury NHS Foundation Trust,26-Feb-16,NON DISPOSABLE BED LINEN,Critical care,NHS LOGISTICS,1016208724,30.12,
Department of Health,Salisbury NHS Foundation Trust,26-Feb-16,MEDSURGCONS - OTHER,Critical care,NHS LOGISTICS,1016208724,11.95,
Department of Health,Salisbury NHS Foundation Trust,26-Feb-16,PATIENT APPLIANCES,Critical care,NHS LOGISTICS,1016208724,8.3,
Department of Health,Salisbury NHS Foundation Trust,26-Feb-16,PATIENT APPLIANCES,Critical care,NHS LOGISTICS,1016208724,164.75,
Department of Health,Salisbury NHS Foundation Trust,26-Feb-16,TISSUES HAND TOWELS & TOILET PAPER,Surgery,NHS LOGISTICS,1016208724,0.71,
Department of Health,Salisbury NHS Foundation Trust,26-Feb-16,TISSUES HAND TOWELS & TOILET PAPER,Surgery,NHS LOGISTICS,1016208724,3.77,
Department of Health,Salisbury NHS Foundation Trust,26-Feb-16,TISSUES HAND TOWELS & TOILET PAPER,Surgery,NHS LOGISTICS,1016208724,1.4,
Department of Health,Salisbury NHS Foundation Trust,26-Feb-16,ADULTS HEARING AIDS,Surgery,NHS LOGISTICS,1016208724,3737.42,
Department of Health,Salisbury NHS Foundation Trust,26-Feb-16,ADULTS HEARING AIDS,Surgery,NHS LOGISTICS,1016208724,387.17,
Department of Health,Salisbury NHS Foundation Trust,26-Feb-16,DRESSINGS - PRE STERILE,Surgery,NHS LOGISTICS,1016208724,18.96,
Department of Health,Salisbury NHS Foundation Trust,26-Feb-16,TUBES,Medicine,NHS LOGISTICS,1016208724,12.72,
Department of Health,Salisbury NHS Foundation Trust,26-Feb-16,TISSUES HAND TOWELS & TOILET PAPER,Medicine,NHS LOGISTICS,1016208724,1.88,
Department of Health,Salisbury NHS Foundation Trust,26-Feb-16,DISPOSABLE THEATRE DRAPES WIPES,Medicine,NHS LOGISTICS,1016208724,11.38,
Department of Health,Salisbury NHS Foundation Trust,26-Feb-16,DRESSINGS - PRE STERILE,Medicine,NHS LOGISTICS,1016208724,3.75,
Department of Health,Salisbury NHS Foundation Trust,26-Feb-16,DRESSINGS - PRE STERILE,Medicine,NHS LOGISTICS,1016208724,5.73,
Department of Health,Salisbury NHS Foundation Trust,26-Feb-16,DISPOSABLE THEATRE DRAPES WIPES,Medicine,NHS LOGISTICS,1016208724,6.48,
Department of Health,Salisbury NHS Foundation Trust,26-Feb-16,MEDSURGCONS - OTHER,Clinical Support and Family Services,NHS LOGISTICS,1016208724,209.85,
Department of Health,Salisbury NHS Foundation Trust,26-Feb-16,OTHER MEDICAL SUPPLIES,Surgery,NHS LOGISTICS,1016208724,505.72,
Department of Health,Salisbury NHS Foundation Trust,26-Feb-16,TISSUES HAND TOWELS & TOILET PAPER,Clinical Support and Family Services,NHS LOGISTICS,1016208724,41.6,
Department of Health,Salisbury NHS Foundation Trust,26-Feb-16,DRESSINGS - PRE STERILE,Clinical Support and Family Services,NHS LOGISTICS,1016208724,6.65,
Department of Health,Salisbury NHS Foundation Trust,26-Feb-16,NON DISPOSABLE BED LINEN,Clinical Support and Family Services,NHS LOGISTICS,1016208724,13.13,
Department of Health,Salisbury NHS Foundation Trust,26-Feb-16,DISPOSABLE THEATRE DRAPES WIPES,Clinical Support and Family Services,NHS LOGISTICS,1016208724,3.24,
Department of Health,Salisbury NHS Foundation Trust,26-Feb-16,OTHER MEDICAL SUPPLIES,Medicine,NHS LOGISTICS,1016208724,9.83,
Department of Health,Salisbury NHS Foundation Trust,26-Feb-16,TISSUES HAND TOWELS & TOILET PAPER,Medicine,NHS LOGISTICS,1016208724,1.88,
Department of Health,Salisbury NHS Foundation Trust,26-Feb-16,TUBES,Medicine,NHS LOGISTICS,1016208724,6.19,
Department of Health,Salisbury NHS Foundation Trust,26-Feb-16,PATIENT APPLIANCES,Medicine,NHS LOGISTICS,1016208724,4.15,
Department of Health,Salisbury NHS Foundation Trust,26-Feb-16,MEDSURGCONS - OTHER,Medicine,NHS LOGISTICS,1016208724,10.54,
Department of Health,Salisbury NHS Foundation Trust,26-Feb-16,MEDSURGCONS - OTHER,Medicine,NHS LOGISTICS,1016208724,5.38,
Department of Health,Salisbury NHS Foundation Trust,26-Feb-16,TISSUES HAND TOWELS & TOILET PAPER,Medicine,NHS LOGISTICS,1016208724,1.47,
Department of Health,Salisbury NHS Foundation Trust,26-Feb-16,DISPOSABLE THEATRE DRAPES WIPES,Medicine,NHS LOGISTICS,1016208724,6.48,
Department of Health,Salisbury NHS Foundation Trust,26-Feb-16,MEDSURGCONS - OTHER,Critical Care,NHS LOGISTICS,1016208724,58.07,
Department of Health,Salisbury NHS Foundation Trust,26-Feb-16,ANAESTHETIC EQUIPMENT ACCESSORIES,Critical Care,NHS LOGISTICS,1016208724,18.92,
Department of Health,Salisbury NHS Foundation Trust,26-Feb-16,DRESSINGS - PRE STERILE,Clinical Support and Family Services,NHS LOGISTICS,1016208724,1.96,
Department of Health,Salisbury NHS Foundation Trust,26-Feb-16,PATIENTS BEDWEAR UNISEX,Clinical Support and Family Services,NHS LOGISTICS,1016208724,65.43,
Department of Health,Salisbury NHS Foundation Trust,26-Feb-16,MEDSURGCONS - OTHER,Clinical Support and Family Services,NHS LOGISTICS,1016208724,45.36,
Department of Health,Salisbury NHS Foundation Trust,26-Feb-16,CLEANING MATERIALS PRODUCTS SUNDRIES,Clinical Support and Family Services,NHS LOGISTICS,1016208724,7.05,
Department of Health,Salisbury NHS Foundation Trust,26-Feb-16,TOILETRIES PERSONAL HYGIENE PRODUCTS,Clinical Support and Family Services,NHS LOGISTICS,1016208724,4.75,
Department of Health,Salisbury NHS Foundation Trust,26-Feb-16,DRESSINGS - PRE STERILE,Clinical Support and Family Services,NHS LOGISTICS,1016208724,0.35,
Department of Health,Salisbury NHS Foundation Trust,26-Feb-16,MEDSURGCONS - OTHER,Clinical Support and Family Services,NHS LOGISTICS,1016208724,22.33,
Department of Health,Salisbury NHS Foundation Trust,26-Feb-16,M & S EQUIPELECTEQUIPINST - OTHER,Clinical Support and Family Services,NHS LOGISTICS,1016208724,1.49,
Department of Health,Salisbury NHS Foundation Trust,26-Feb-16,TUBES,Clinical Support and Family Services,NHS LOGISTICS,1016208724,6.19,
Department of Health,Salisbury NHS Foundation Trust,26-Feb-16,DRESSINGS - PRE STERILE,Surgery,NHS LOGISTICS,1016208724,6.9,
Department of Health,Salisbury NHS Foundation Trust,26-Feb-16,DRESSINGS - PRE STERILE,Surgery,NHS LOGISTICS,1016208724,3.87,
Department of Health,Salisbury NHS Foundation Trust,26-Feb-16,DRESSINGS - PRE STERILE,Surgery,NHS LOGISTICS,1016208724,5.18,
Department of Health,Salisbury NHS Foundation Trust,26-Feb-16,DRESSINGS - PRE STERILE,Surgery,NHS LOGISTICS,1016208724,3.21,
Department of Health,Salisbury NHS Foundation Trust,26-Feb-16,DRESSINGS - PRE STERILE,Surgery,NHS LOGISTICS,1016208724,8.02,
Department of Health,Salisbury NHS Foundation Trust,26-Feb-16,DRESSINGS - PRE STERILE,Surgery,NHS LOGISTICS,1016208724,9.23,
Department of Health,Salisbury NHS Foundation Trust,26-Feb-16,DRESSINGS - PRE STERILE,Surgery,NHS LOGISTICS,1016208724,3.82,
Department of Health,Salisbury NHS Foundation Trust,26-Feb-16,COOKING & KITCHEN UTENSILS,Surgery,NHS LOGISTICS,1016208724,17.01,
Department of Health,Salisbury NHS Foundation Trust,26-Feb-16,DISPOSABLE THEATRE DRAPES WIPES,Surgery,NHS LOGISTICS,1016208724,11.38,
Department of Health,Salisbury NHS Foundation Trust,26-Feb-16,DISPOSABLE THEATRE DRAPES WIPES,Surgery,NHS LOGISTICS,1016208724,33.35,
Department of Health,Salisbury NHS Foundation Trust,26-Feb-16,TISSUES HAND TOWELS & TOILET PAPER,Surgery,NHS LOGISTICS,1016208724,4.8,
Department of Health,Salisbury NHS Foundation Trust,26-Feb-16,DRUGS,Surgery,NHS LOGISTICS,1016208724,24.9,
Department of Health,Salisbury NHS Foundation Trust,26-Feb-16,MEDSURGCONS - OTHER,Surgery,NHS LOGISTICS,1016208724,21.52,
Department of Health,Salisbury NHS Foundation Trust,26-Feb-16,DRUGS,Surgery,NHS LOGISTICS,1016208724,23.3,
Department of Health,Salisbury NHS Foundation Trust,26-Feb-16,BEVERAGES & AMBIENT FOOD,Surgery,NHS LOGISTICS,1016208724,2.78,
Department of Health,Salisbury NHS Foundation Trust,26-Feb-16,PATIENT APPLIANCES,Surgery,NHS LOGISTICS,1016208724,10.98,
Department of Health,Salisbury NHS Foundation Trust,26-Feb-16,DISPOSABLE THEATRE DRAPES WIPES,Surgery,NHS LOGISTICS,1016208724,6.48,
Department of Health,Salisbury NHS Foundation Trust,26-Feb-16,DRESSINGS - PRE STERILE,Surgery,NHS LOGISTICS,1016208724,28.87,
Department of Health,Salisbury NHS Foundation Trust,26-Feb-16,ELECTRICAL EQUIPMENT x,Surgery,NHS LOGISTICS,1016208724,3.33,
Department of Health,Salisbury NHS Foundation Trust,26-Feb-16,ANAESTHETIC EQUIPMENT ACCESSORIES,Surgery,NHS LOGISTICS,1016208724,299.47,
Department of Health,Salisbury NHS Foundation Trust,26-Feb-16,PATIENT APPLIANCES,Medicine,NHS LOGISTICS,1016208724,6.48,
Department of Health,Salisbury NHS Foundation Trust,26-Feb-16,ANAESTHETIC EQUIPMENT ACCESSORIES,Medicine,NHS LOGISTICS,1016208724,56.45,
Department of Health,Salisbury NHS Foundation Trust,26-Feb-16,DRESSINGS - PRE STERILE,Medicine,NHS LOGISTICS,1016208724,4.52,
Department of Health,Salisbury NHS Foundation Trust,26-Feb-16,DRESSINGS - PRE STERILE,Medicine,NHS LOGISTICS,1016208724,6.16,
Department of Health,Salisbury NHS Foundation Trust,26-Feb-16,DRESSINGS - PRE STERILE,Medicine,NHS LOGISTICS,1016208724,6.13,
Department of Health,Salisbury NHS Foundation Trust,26-Feb-16,DRESSINGS - PRE STERILE,Medicine,NHS LOGISTICS,1016208724,8.4,
Department of Health,Salisbury NHS Foundation Trust,26-Feb-16,DRESSINGS - PRE STERILE,Medicine,NHS LOGISTICS,1016208724,2.45,
Department of Health,Salisbury NHS Foundation Trust,26-Feb-16,DRESSINGS - PRE STERILE,Medicine,NHS LOGISTICS,1016208724,1.83,
Department of Health,Salisbury NHS Foundation Trust,26-Feb-16,MEDSURGCONS - OTHER,Medicine,NHS LOGISTICS,1016208724,371.43,
Department of Health,Salisbury NHS Foundation Trust,26-Feb-16,MEDSURGCONS - OTHER,Medicine,NHS LOGISTICS,1016208724,119.57,
Department of Health,Salisbury NHS Foundation Trust,26-Feb-16,MEDSURGCONS - OTHER,Medicine,NHS LOGISTICS,1016208724,5.38,
Department of Health,Salisbury NHS Foundation Trust,26-Feb-16,TISSUES HAND TOWELS & TOILET PAPER,Medicine,NHS LOGISTICS,1016208724,0.37,
Department of Health,Salisbury NHS Foundation Trust,26-Feb-16,TOILETRIES PERSONAL HYGIENE PRODUCTS,Medicine,NHS LOGISTICS,1016208724,4.73,
Department of Health,Salisbury NHS Foundation Trust,26-Feb-16,LAB EQUIP-LABORATORY APPARATUS,Medicine,NHS LOGISTICS,1016208724,13.83,
Department of Health,Salisbury NHS Foundation Trust,26-Feb-16,DRESSINGS - PRE STERILE,Medicine,NHS LOGISTICS,1016208724,2.05,
Department of Health,Salisbury NHS Foundation Trust,26-Feb-16,PATIENT APPLIANCES,Medicine,NHS LOGISTICS,1016208724,16.33,
Department of Health,Salisbury NHS Foundation Trust,26-Feb-16,PATIENT APPLIANCES,Medicine,NHS LOGISTICS,1016208724,10.98,
Department of Health,Salisbury NHS Foundation Trust,26-Feb-16,DISPOSABLE THEATRE DRAPES WIPES,Medicine,NHS LOGISTICS,1016208724,6.48,
Department of Health,Salisbury NHS Foundation Trust,26-Feb-16,OTHER MEDICAL SUPPLIES,Critical Care,NHS LOGISTICS,1016208724,47.23,
Department of Health,Salisbury NHS Foundation Trust,26-Feb-16,ELECTRICAL EQUIPMENT x,Medicine,NHS LOGISTICS,1016208724,1.67,
Department of Health,Salisbury NHS Foundation Trust,26-Feb-16,TISSUES HAND TOWELS & TOILET PAPER,Medicine,NHS LOGISTICS,1016208724,3.77,
Department of Health,Salisbury NHS Foundation Trust,26-Feb-16,TOILETRIES PERSONAL HYGIENE PRODUCTS,Medicine,NHS LOGISTICS,1016208724,4.86,
Department of Health,Salisbury NHS Foundation Trust,26-Feb-16,TISSUES HAND TOWELS & TOILET PAPER,Medicine,NHS LOGISTICS,1016208724,0.73,
Department of Health,Salisbury NHS Foundation Trust,26-Feb-16,PATIENT APPLIANCES,Medicine,NHS LOGISTICS,1016208724,8.17,
Department of Health,Salisbury NHS Foundation Trust,26-Feb-16,DRESSINGS - PRE STERILE,Medicine,NHS LOGISTICS,1016208724,4.15,
Department of Health,Salisbury NHS Foundation Trust,26-Feb-16,MEDSURGCONS - OTHER,Medicine,NHS LOGISTICS,1016208724,5.38,
Department of Health,Salisbury NHS Foundation Trust,26-Feb-16,MEDSURGCONS - OTHER,Medicine,NHS LOGISTICS,1016208724,5.38,
Department of Health,Salisbury NHS Foundation Trust,26-Feb-16,TISSUES HAND TOWELS & TOILET PAPER,Medicine,NHS LOGISTICS,1016208724,1.1,
Department of Health,Salisbury NHS Foundation Trust,26-Feb-16,M & S EQUIPELECTEQUIPINST - OTHER,Medicine,NHS LOGISTICS,1016208724,1.49,
Department of Health,Salisbury NHS Foundation Trust,26-Feb-16,DISPOSABLE THEATRE DRAPES WIPES,Medicine,NHS LOGISTICS,1016208724,6.48,
Department of Health,Salisbury NHS Foundation Trust,26-Feb-16,TISSUES HAND TOWELS & TOILET PAPER,Critical care,NHS LOGISTICS,1016208724,10.4,
Department of Health,Salisbury NHS Foundation Trust,26-Feb-16,DRESSINGS - PRE STERILE,Critical care,NHS LOGISTICS,1016208724,30.03,
Department of Health,Salisbury NHS Foundation Trust,26-Feb-16,DRESSINGS - PRE STERILE,Critical care,NHS LOGISTICS,1016208724,43.75,
Department of Health,Salisbury NHS Foundation Trust,26-Feb-16,DRESSINGS - PRE STERILE,Critical care,NHS LOGISTICS,1016208724,20.25,
Department of Health,Salisbury NHS Foundation Trust,26-Feb-16,DRESSINGS - PRE STERILE,Critical care,NHS LOGISTICS,1016208724,21.88,
Department of Health,Salisbury NHS Foundation Trust,26-Feb-16,DRESSINGS - PRE STERILE,Critical care,NHS LOGISTICS,1016208724,23.28,
Department of Health,Salisbury NHS Foundation Trust,26-Feb-16,DRESSINGS - PRE STERILE,Critical care,NHS LOGISTICS,1016208724,23.28,
Department of Health,Salisbury NHS Foundation Trust,26-Feb-16,DRESSINGS - PRE STERILE,Critical care,NHS LOGISTICS,1016208724,25.03,
Department of Health,Salisbury NHS Foundation Trust,26-Feb-16,DRESSINGS - PRE STERILE,Critical care,NHS LOGISTICS,1016208724,8.45,
Department of Health,Salisbury NHS Foundation Trust,26-Feb-16,DRESSINGS - PRE STERILE,Critical care,NHS LOGISTICS,1016208724,13.37,
Department of Health,Salisbury NHS Foundation Trust,26-Feb-16,DRESSINGS - PRE STERILE,Critical care,NHS LOGISTICS,1016208724,7.38,
Department of Health,Salisbury NHS Foundation Trust,26-Feb-16,DRESSINGS - PRE STERILE,Critical care,NHS LOGISTICS,1016208724,5.77,
Department of Health,Salisbury NHS Foundation Trust,26-Feb-16,PATIENTS FOOTWEAR,Critical care,NHS LOGISTICS,1016208724,91.38,
Department of Health,Salisbury NHS Foundation Trust,26-Feb-16,PATIENTS FOOTWEAR,Medicine,NHS LOGISTICS,1016208724,14.08,
Department of Health,Salisbury NHS Foundation Trust,26-Feb-16,PATIENTS FOOTWEAR,Medicine,NHS LOGISTICS,1016208724,13.43,
Department of Health,Salisbury NHS Foundation Trust,26-Feb-16,PATIENTS FOOTWEAR,Medicine,NHS LOGISTICS,1016208724,9.38,
Department of Health,Salisbury NHS Foundation Trust,26-Feb-16,PATIENTS FOOTWEAR,Medicine,NHS LOGISTICS,1016208724,6.08,
Department of Health,Salisbury NHS Foundation Trust,26-Feb-16,MEDSURGCONS - OTHER,Clinical Support and Family Services,NHS LOGISTICS,1016208724,21.08,
Department of Health,Salisbury NHS Foundation Trust,26-Feb-16,TUBES,Critical care,NHS LOGISTICS,1016208724,12.38,
Department of Health,Salisbury NHS Foundation Trust,26-Feb-16,MEDSURGCONS - OTHER,Critical care,NHS LOGISTICS,1016208724,36.84,
Department of Health,Salisbury NHS Foundation Trust,26-Feb-16,ELECTRICAL EQUIPMENT x,Clinical Support and Family Services,NHS LOGISTICS,1016208724,1.67,
Department of Health,Salisbury NHS Foundation Trust,26-Feb-16,OTHER MEDICAL SUPPLIES,Clinical Support and Family Services,NHS LOGISTICS,1016208724,4.92,
Department of Health,Salisbury NHS Foundation Trust,26-Feb-16,DRESSINGS - PRE STERILE,Clinical Support and Family Services,NHS LOGISTICS,1016208724,1.11,
Department of Health,Salisbury NHS Foundation Trust,26-Feb-16,BABY TEXTURE MODIFIED FOODS,Clinical Support and Family Services,NHS LOGISTICS,1016208724,29.53,
Department of Health,Salisbury NHS Foundation Trust,26-Feb-16,TISSUES HAND TOWELS & TOILET PAPER,Clinical Support and Family Services,NHS LOGISTICS,1016208724,10.4,
Department of Health,Salisbury NHS Foundation Trust,26-Feb-16,SERVICES FROM NHS BODIES,Clinical Support and Family Services,NHS LOGISTICS,1016208724,6.6,
Department of Health,Salisbury NHS Foundation Trust,26-Feb-16,DRESSINGS - PRE STERILE,Clinical Support and Family Services,NHS LOGISTICS,1016208724,0.35,
Department of Health,Salisbury NHS Foundation Trust,26-Feb-16,DRESSINGS - PRE STERILE,Critical care,NHS LOGISTICS,1016208724,15.28,
Department of Health,Salisbury NHS Foundation Trust,26-Feb-16,SURGICAL INSTRUMENTS: GENERAL,Critical care,NHS LOGISTICS,1016208724,10.3,
Department of Health,Salisbury NHS Foundation Trust,26-Feb-16,TISSUES HAND TOWELS & TOILET PAPER,Critical care,NHS LOGISTICS,1016208724,7.53,
Department of Health,Salisbury NHS Foundation Trust,26-Feb-16,MEDSURGCONS - OTHER,Critical care,NHS LOGISTICS,1016208724,19.27,
Department of Health,Salisbury NHS Foundation Trust,26-Feb-16,DRESSINGS - PRE STERILE,Critical care,NHS LOGISTICS,1016208724,14.43,
Department of Health,Salisbury NHS Foundation Trust,26-Feb-16,OTHER MEDICAL SUPPLIES,Surgery,NHS LOGISTICS,1016208724,5.88,
Department of Health,Salisbury NHS Foundation Trust,26-Feb-16,DISPOSABLE THEATRE DRAPES WIPES,Surgery,NHS LOGISTICS,1016208724,6.48,
Department of Health,Salisbury NHS Foundation Trust,26-Feb-16,M & S EQUIPELECTEQUIPINST - OTHER,Surgery,NHS LOGISTICS,1016208724,4.23,
Department of Health,Salisbury NHS Foundation Trust,26-Feb-16,OTHER MEDICAL SUPPLIES,Clinical Support and Family Services,NHS LOGISTICS,1016208724,157.9,
Department of Health,Salisbury NHS Foundation Trust,26-Feb-16,OTHER MEDICAL SUPPLIES,Clinical Support and Family Services,NHS LOGISTICS,1016208724,4.92,
Department of Health,Salisbury NHS Foundation Trust,26-Feb-16,PATIENTS BEDWEAR UNISEX,Clinical Support and Family Services,NHS LOGISTICS,1016208724,8,
Department of Health,Salisbury NHS Foundation Trust,26-Feb-16,TISSUES HAND TOWELS & TOILET PAPER,Clinical Support and Family Services,NHS LOGISTICS,1016208724,1.88,
Department of Health,Salisbury NHS Foundation Trust,26-Feb-16,DISPOSABLE THEATRE DRAPES WIPES,Clinical Support and Family Services,NHS LOGISTICS,1016208724,11.38,
Department of Health,Salisbury NHS Foundation Trust,26-Feb-16,M & S EQUIPELECTEQUIPINST - OTHER,Clinical Support and Family Services,NHS LOGISTICS,1016208724,11.5,
Department of Health,Salisbury NHS Foundation Trust,26-Feb-16,DRESSINGS - PRE STERILE,Clinical Support and Family Services,NHS LOGISTICS,1016208724,0.35,
Department of Health,Salisbury NHS Foundation Trust,26-Feb-16,MED SURG EQUIP REP MAINT CLEANING,Clinical Support and Family Services,NHS LOGISTICS,1016208724,10.97,
Department of Health,Salisbury NHS Foundation Trust,26-Feb-16,DRESSINGS - PRE STERILE,Critical care,NHS LOGISTICS,1016208724,7.64,
Department of Health,Salisbury NHS Foundation Trust,26-Feb-16,LAB EQUIP-ANALYSERS,Critical care,NHS LOGISTICS,1016208724,30.98,
Department of Health,Salisbury NHS Foundation Trust,26-Feb-16,TISSUES HAND TOWELS & TOILET PAPER,Critical care,NHS LOGISTICS,1016208724,5.65,
Department of Health,Salisbury NHS Foundation Trust,26-Feb-16,COOKING & KITCHEN UTENSILS,Critical care,NHS LOGISTICS,1016208724,17.63,
Department of Health,Salisbury NHS Foundation Trust,26-Feb-16,DRESSINGS - PRE STERILE,Critical care,NHS LOGISTICS,1016208724,5.92,
Department of Health,Salisbury NHS Foundation Trust,26-Feb-16,ANAESTHETIC EQUIPMENT ACCESSORIES,Critical care,NHS LOGISTICS,1016208724,2.6,
Department of Health,Salisbury NHS Foundation Trust,26-Feb-16,NON DISPOSABLE BED LINEN,Critical care,NHS LOGISTICS,1016208724,9.77,
Department of Health,Salisbury NHS Foundation Trust,26-Feb-16,PATIENT APPLIANCES,Critical care,NHS LOGISTICS,1016208724,4.39,
Department of Health,Salisbury NHS Foundation Trust,26-Feb-16,TOILETRIES PERSONAL HYGIENE PRODUCTS,Critical care,NHS LOGISTICS,1016208724,14.35,
Department of Health,Salisbury NHS Foundation Trust,26-Feb-16,MEDSURGCONS - OTHER,Critical care,NHS LOGISTICS,1016208724,59.78,
Department of Health,Salisbury NHS Foundation Trust,26-Feb-16,MEDSURGCONS - OTHER,Critical care,NHS LOGISTICS,1016208724,10.54,
Department of Health,Salisbury NHS Foundation Trust,26-Feb-16,MEDSURGCONS - OTHER,Critical care,NHS LOGISTICS,1016208724,7.44,
Department of Health,Salisbury NHS Foundation Trust,26-Feb-16,MEDSURGCONS - OTHER,Critical care,NHS LOGISTICS,1016208724,28.2,
Department of Health,Salisbury NHS Foundation Trust,26-Feb-16,TOILETRIES PERSONAL HYGIENE PRODUCTS,Critical care,NHS LOGISTICS,1016208724,4.73,
Department of Health,Salisbury NHS Foundation Trust,26-Feb-16,PATIENT APPLIANCES,Critical care,NHS LOGISTICS,1016208724,10.98,
Department of Health,Salisbury NHS Foundation Trust,26-Feb-16,DISPOSABLE THEATRE DRAPES WIPES,Critical care,NHS LOGISTICS,1016208724,29.2,
Department of Health,Salisbury NHS Foundation Trust,26-Feb-16,TISSUES HAND TOWELS & TOILET PAPER,Medicine,NHS LOGISTICS,1016208724,7.53,
Department of Health,Salisbury NHS Foundation Trust,26-Feb-16,DRESSINGS - PRE STERILE,Medicine,NHS LOGISTICS,1016208724,29.93,
Department of Health,Salisbury NHS Foundation Trust,26-Feb-16,TISSUES HAND TOWELS & TOILET PAPER,Medicine,NHS LOGISTICS,1016208724,3.73,
Department of Health,Salisbury NHS Foundation Trust,26-Feb-16,M & S EQUIPELECTEQUIPINST - OTHER,Medicine,NHS LOGISTICS,1016208724,0.63,
Department of Health,Salisbury NHS Foundation Trust,26-Feb-16,OTHER MEDICAL SUPPLIES,Medicine,NHS LOGISTICS,1016208724,2.97,
Department of Health,Salisbury NHS Foundation Trust,26-Feb-16,PATIENT APPLIANCES,Medicine,NHS LOGISTICS,1016208724,3.35,
Department of Health,Salisbury NHS Foundation Trust,26-Feb-16,DRESSINGS - PRE STERILE,Medicine,NHS LOGISTICS,1016208724,0.35,
Department of Health,Salisbury NHS Foundation Trust,26-Feb-16,MEDSURGCONS - OTHER,Medicine,NHS LOGISTICS,1016208724,16.61,
Department of Health,Salisbury NHS Foundation Trust,26-Feb-16,TISSUES HAND TOWELS & TOILET PAPER,Medicine,NHS LOGISTICS,1016208724,0.37,
Department of Health,Salisbury NHS Foundation Trust,26-Feb-16,MED SURG EQUIP REP MAINT CLEANING,Medicine,NHS LOGISTICS,1016208724,10.97,
Department of Health,Salisbury NHS Foundation Trust,26-Feb-16,DISPOSABLE THEATRE DRAPES WIPES,Medicine,NHS LOGISTICS,1016208724,6.48,
Department of Health,Salisbury NHS Foundation Trust,26-Feb-16,OTHER MEDICAL SUPPLIES,Medicine,NHS LOGISTICS,1016208724,112.63,
Department of Health,Salisbury NHS Foundation Trust,26-Feb-16,BEVERAGES & AMBIENT FOOD,Surgery,NHS LOGISTICS,1016208724,11.35,
Department of Health,Salisbury NHS Foundation Trust,26-Feb-16,BEVERAGES & AMBIENT FOOD,Surgery,NHS LOGISTICS,1016208724,15.06,
Department of Health,Salisbury NHS Foundation Trust,26-Feb-16,BEVERAGES & AMBIENT FOOD,Surgery,NHS LOGISTICS,1016208724,1.44,
Department of Health,Salisbury NHS Foundation Trust,26-Feb-16,DENTAL SURGERY SUNDRIES,Surgery,NHS LOGISTICS,1016208724,4.37,
Department of Health,Salisbury NHS Foundation Trust,26-Feb-16,OTHER MEDICAL SUPPLIES,Critical Care,NHS LOGISTICS,1016208724,13.11,
Department of Health,Salisbury NHS Foundation Trust,26-Feb-16,TISSUES HAND TOWELS & TOILET PAPER,Medicine,NHS LOGISTICS,1016208724,0.47,
Department of Health,Salisbury NHS Foundation Trust,26-Feb-16,TUBES,Medicine,NHS LOGISTICS,1016208724,12.38,
Department of Health,Salisbury NHS Foundation Trust,26-Feb-16,TISSUES HAND TOWELS & TOILET PAPER,Medicine,NHS LOGISTICS,1016208724,3.77,
Department of Health,Salisbury NHS Foundation Trust,26-Feb-16,CLEANING MATERIALS PRODUCTS SUNDRIES,Medicine,NHS LOGISTICS,1016208724,5.45,
Department of Health,Salisbury NHS Foundation Trust,26-Feb-16,TUBES,Medicine,NHS LOGISTICS,1016208724,6.19,
Department of Health,Salisbury NHS Foundation Trust,26-Feb-16,PATIENT APPLIANCES,Medicine,NHS LOGISTICS,1016208724,8.78,
Department of Health,Salisbury NHS Foundation Trust,26-Feb-16,MEDSURGCONS - OTHER,Medicine,NHS LOGISTICS,1016208724,10.54,
Department of Health,Salisbury NHS Foundation Trust,26-Feb-16,MEDSURGCONS - OTHER,Medicine,NHS LOGISTICS,1016208724,5.38,
Department of Health,Salisbury NHS Foundation Trust,26-Feb-16,PATIENT APPLIANCES,Medicine,NHS LOGISTICS,1016208724,10.98,
Department of Health,Salisbury NHS Foundation Trust,26-Feb-16,PATIENT APPLIANCES,Medicine,NHS LOGISTICS,1016208724,5.5,
Department of Health,Salisbury NHS Foundation Trust,26-Feb-16,DRESSINGS - PRE STERILE,Critical care,NHS LOGISTICS,1016208724,15.28,
Department of Health,Salisbury NHS Foundation Trust,26-Feb-16,TISSUES HAND TOWELS & TOILET PAPER,Critical care,NHS LOGISTICS,1016208724,3.77,
Department of Health,Salisbury NHS Foundation Trust,26-Feb-16,CLEANING MATERIALS PRODUCTS SUNDRIES,Critical care,NHS LOGISTICS,1016208724,7.05,
Department of Health,Salisbury NHS Foundation Trust,26-Feb-16,DRESSINGS - PRE STERILE,Critical care,NHS LOGISTICS,1016208724,9.78,
Department of Health,Salisbury NHS Foundation Trust,26-Feb-16,DRESSINGS - PRE STERILE,Critical care,NHS LOGISTICS,1016208724,12.35,
Department of Health,Salisbury NHS Foundation Trust,26-Feb-16,TOILETRIES PERSONAL HYGIENE PRODUCTS,Critical care,NHS LOGISTICS,1016208724,4.86,
Department of Health,Salisbury NHS Foundation Trust,26-Feb-16,TISSUES HAND TOWELS & TOILET PAPER,Critical care,NHS LOGISTICS,1016208724,0.73,
Department of Health,Salisbury NHS Foundation Trust,26-Feb-16,TOILETRIES PERSONAL HYGIENE PRODUCTS,Critical care,NHS LOGISTICS,1016208724,4.73,
Department of Health,Salisbury NHS Foundation Trust,26-Feb-16,DRESSINGS - PRE STERILE,Critical care,NHS LOGISTICS,1016208724,38.21,
Department of Health,Salisbury NHS Foundation Trust,26-Feb-16,DRESSINGS - PRE STERILE,Critical care,NHS LOGISTICS,1016208724,4.52,
Department of Health,Salisbury NHS Foundation Trust,26-Feb-16,TISSUES HAND TOWELS & TOILET PAPER,Critical care,NHS LOGISTICS,1016208724,3.77,
Department of Health,Salisbury NHS Foundation Trust,26-Feb-16,TUBES,Critical care,NHS LOGISTICS,1016208724,6.19,
Department of Health,Salisbury NHS Foundation Trust,26-Feb-16,TOILETRIES PERSONAL HYGIENE PRODUCTS,Critical care,NHS LOGISTICS,1016208724,4.86,
Department of Health,Salisbury NHS Foundation Trust,26-Feb-16,MEDSURGCONS - OTHER,Critical care,NHS LOGISTICS,1016208724,59.78,
Department of Health,Salisbury NHS Foundation Trust,26-Feb-16,MEDSURGCONS - OTHER,Critical care,NHS LOGISTICS,1016208724,5.38,
Department of Health,Salisbury NHS Foundation Trust,26-Feb-16,DRESSINGS - PRE STERILE,Critical care,NHS LOGISTICS,1016208724,4.5,
Department of Health,Salisbury NHS Foundation Trust,26-Feb-16,DISPOSABLE THEATRE DRAPES WIPES,Critical care,NHS LOGISTICS,1016208724,3.24,
Department of Health,Salisbury NHS Foundation Trust,26-Feb-16,DRESSINGS - PRE STERILE,Surgery,NHS LOGISTICS,1016208724,204.4,
Department of Health,Salisbury NHS Foundation Trust,26-Feb-16,MEDSURGCONS - OTHER,Surgery,NHS LOGISTICS,1016208724,127.2,
Department of Health,Salisbury NHS Foundation Trust,26-Feb-16,TISSUES HAND TOWELS & TOILET PAPER,Surgery,NHS LOGISTICS,1016208724,1.1,
Department of Health,Salisbury NHS Foundation Trust,26-Feb-16,M & S EQUIPELECTEQUIPINST - OTHER,Surgery,NHS LOGISTICS,1016208724,119.79,
Department of Health,Salisbury NHS Foundation Trust,26-Feb-16,MED SURG EQUIP REP MAINT CLEANING,Surgery,NHS LOGISTICS,1016208724,10.97,
Department of Health,Salisbury NHS Foundation Trust,26-Feb-16,DRESSINGS - PRE STERILE,Medicine,NHS LOGISTICS,1016208724,15.28,
Department of Health,Salisbury NHS Foundation Trust,26-Feb-16,TISSUES HAND TOWELS & TOILET PAPER,Medicine,NHS LOGISTICS,1016208724,3.77,
Department of Health,Salisbury NHS Foundation Trust,26-Feb-16,PATIENT APPLIANCES,Medicine,NHS LOGISTICS,1016208724,3.35,
Department of Health,Salisbury NHS Foundation Trust,26-Feb-16,PATIENT APPLIANCES,Medicine,NHS LOGISTICS,1016208724,3.35,
Department of Health,Salisbury NHS Foundation Trust,26-Feb-16,TISSUES HAND TOWELS & TOILET PAPER,Medicine,NHS LOGISTICS,1016208724,0.73,
Department of Health,Salisbury NHS Foundation Trust,26-Feb-16,PATIENT APPLIANCES,Medicine,NHS LOGISTICS,1016208724,5.49,
Department of Health,Salisbury NHS Foundation Trust,26-Feb-16,PATIENT APPLIANCES,Medicine,NHS LOGISTICS,1016208724,3.67,
Department of Health,Salisbury NHS Foundation Trust,26-Feb-16,DISPOSABLE THEATRE DRAPES WIPES,Medicine,NHS LOGISTICS,1016208724,3.24,
Department of Health,Salisbury NHS Foundation Trust,26-Feb-16,M & S EQUIPELECTEQUIPINST - OTHER,Surgery,NHS LOGISTICS,1016208724,185.16,
Department of Health,Salisbury NHS Foundation Trust,26-Feb-16,TISSUES HAND TOWELS & TOILET PAPER,Medicine,NHS LOGISTICS,1016208724,7.53,
Department of Health,Salisbury NHS Foundation Trust,26-Feb-16,MEDSURGCONS - OTHER,Medicine,NHS LOGISTICS,1016208724,26.55,
Department of Health,Salisbury NHS Foundation Trust,26-Feb-16,DISPOSABLE THEATRE DRAPES WIPES,Medicine,NHS LOGISTICS,1016208724,3.24,
Department of Health,Salisbury NHS Foundation Trust,26-Feb-16,TISSUES HAND TOWELS & TOILET PAPER,Surgery,NHS LOGISTICS,1016208724,1.88,
Department of Health,Salisbury NHS Foundation Trust,26-Feb-16,PATIENT APPLIANCES,Medicine,NHS LOGISTICS,1016208724,3.35,
Department of Health,Salisbury NHS Foundation Trust,26-Feb-16,MEDSURGCONS - OTHER,Medicine,NHS LOGISTICS,1016208724,19.93,
Department of Health,Salisbury NHS Foundation Trust,26-Feb-16,TISSUES HAND TOWELS & TOILET PAPER,Medicine,NHS LOGISTICS,1016208724,2.93,
Department of Health,Salisbury NHS Foundation Trust,26-Feb-16,SURGICAL INSTRUMENTS: GENERAL,Medicine,NHS LOGISTICS,1016208724,4.69,
Department of Health,Salisbury NHS Foundation Trust,26-Feb-16,PATIENT APPLIANCES,Medicine,NHS LOGISTICS,1016208724,8.17,
Department of Health,Salisbury NHS Foundation Trust,26-Feb-16,PATIENT APPLIANCES,Medicine,NHS LOGISTICS,1016208724,5.49,
Department of Health,Salisbury NHS Foundation Trust,26-Feb-16,PATIENT APPLIANCES,Medicine,NHS LOGISTICS,1016208724,1.83,
Department of Health,Salisbury NHS Foundation Trust,26-Feb-16,DISPOSABLE THEATRE DRAPES WIPES,Medicine,NHS LOGISTICS,1016208724,6.48,
Department of Health,Salisbury NHS Foundation Trust,26-Feb-16,DRESSINGS - PRE STERILE,Clinical Support and Family Services,NHS LOGISTICS,1016208724,3.33,
Department of Health,Salisbury NHS Foundation Trust,26-Feb-16,TISSUES HAND TOWELS & TOILET PAPER,Clinical Support and Family Services,NHS LOGISTICS,1016208724,3.77,
Department of Health,Salisbury NHS Foundation Trust,26-Feb-16,DRESSINGS - PRE STERILE,Clinical Support and Family Services,NHS LOGISTICS,1016208724,13.3,
Department of Health,Salisbury NHS Foundation Trust,26-Feb-16,M & S EQUIPELECTEQUIPINST - OTHER,Clinical Support and Family Services,NHS LOGISTICS,1016208724,130.21,
Department of Health,Salisbury NHS Foundation Trust,26-Feb-16,TUBES,Surgery,NHS LOGISTICS,1016208724,6.19,
Department of Health,Salisbury NHS Foundation Trust,26-Feb-16,PATIENT APPLIANCES,Surgery,NHS LOGISTICS,1016208724,3.35,
Department of Health,Salisbury NHS Foundation Trust,26-Feb-16,PATIENT APPLIANCES,Surgery,NHS LOGISTICS,1016208724,3.35,
Department of Health,Salisbury NHS Foundation Trust,26-Feb-16,PATIENT APPLIANCES,Surgery,NHS LOGISTICS,1016208724,3.35,
Department of Health,Salisbury NHS Foundation Trust,26-Feb-16,PATIENT APPLIANCES,Surgery,NHS LOGISTICS,1016208724,4.39,
Department of Health,Salisbury NHS Foundation Trust,26-Feb-16,PATIENT APPLIANCES,Surgery,NHS LOGISTICS,1016208724,4.39,
Department of Health,Salisbury NHS Foundation Trust,26-Feb-16,PATIENT APPLIANCES,Surgery,NHS LOGISTICS,1016208724,5.49,
Department of Health,Salisbury NHS Foundation Trust,26-Feb-16,DISPOSABLE THEATRE DRAPES WIPES,Surgery,NHS LOGISTICS,1016208724,3.24,
Department of Health,Salisbury NHS Foundation Trust,26-Feb-16,HEALTHCARE - WEAR,Surgery,NHS LOGISTICS,1016208724,32.09,
Department of Health,Salisbury NHS Foundation Trust,26-Feb-16,TISSUES HAND TOWELS & TOILET PAPER,Surgery,NHS LOGISTICS,1016208724,1.6,
Department of Health,Salisbury NHS Foundation Trust,26-Feb-16,OTHER MEDICAL SUPPLIES,Surgery,NHS LOGISTICS,1016208724,77.73,
Department of Health,Salisbury NHS Foundation Trust,26-Feb-16,DRESSINGS - PRE STERILE,Surgery,NHS LOGISTICS,1016208724,3.35,
Department of Health,Salisbury NHS Foundation Trust,26-Feb-16,MEDSURGCONS - OTHER,Surgery,NHS LOGISTICS,1016208724,19.68,
Department of Health,Salisbury NHS Foundation Trust,26-Feb-16,DISPOSABLE THEATRE DRAPES WIPES,Surgery,NHS LOGISTICS,1016208724,85.12,
Department of Health,Salisbury NHS Foundation Trust,26-Feb-16,DRESSINGS - PRE STERILE,Medicine,NHS LOGISTICS,1016208724,6.13,
Department of Health,Salisbury NHS Foundation Trust,26-Feb-16,DRESSINGS - PRE STERILE,Medicine,NHS LOGISTICS,1016208724,2.8,
Department of Health,Salisbury NHS Foundation Trust,26-Feb-16,BAGS SACKS - OTHER,Medicine,NHS LOGISTICS,1016208724,6.43,
Department of Health,Salisbury NHS Foundation Trust,26-Feb-16,PATIENT APPLIANCES,Medicine,NHS LOGISTICS,1016208724,4.12,
Department of Health,Salisbury NHS Foundation Trust,26-Feb-16,PATIENT APPLIANCES,Medicine,NHS LOGISTICS,1016208724,4.12,
Department of Health,Salisbury NHS Foundation Trust,26-Feb-16,PATIENT APPLIANCES,Medicine,NHS LOGISTICS,1016208724,4.12,
Department of Health,Salisbury NHS Foundation Trust,26-Feb-16,PATIENT APPLIANCES,Medicine,NHS LOGISTICS,1016208724,4.12,
Department of Health,Salisbury NHS Foundation Trust,26-Feb-16,MEDSURGCONS - OTHER,Medicine,NHS LOGISTICS,1016208724,21.67,
Department of Health,Salisbury NHS Foundation Trust,26-Feb-16,OTHER MEDICAL SUPPLIES,Medicine,NHS LOGISTICS,1016208724,5.88,
Department of Health,Salisbury NHS Foundation Trust,26-Feb-16,MEDSURGCONS - OTHER,Medicine,NHS LOGISTICS,1016208724,59.78,
Department of Health,Salisbury NHS Foundation Trust,26-Feb-16,LAB EQUIP-LABORATORY APPARATUS,Medicine,NHS LOGISTICS,1016208724,9.88,
Department of Health,Salisbury NHS Foundation Trust,26-Feb-16,DISPOSABLE THEATRE DRAPES WIPES,Medicine,NHS LOGISTICS,1016208724,6.48,
Department of Health,Salisbury NHS Foundation Trust,26-Feb-16,DRESSINGS - PRE STERILE,Medicine,NHS LOGISTICS,1016208724,13.63,
Department of Health,Salisbury NHS Foundation Trust,26-Feb-16,DRESSINGS - PRE STERILE,Medicine,NHS LOGISTICS,1016208724,9.28,
Department of Health,Salisbury NHS Foundation Trust,26-Feb-16,MEDSURGCONS - OTHER,Clinical Support and Family Services,NHS LOGISTICS,1016208724,42.17,
Department of Health,Salisbury NHS Foundation Trust,26-Feb-16,BABY TEXTURE MODIFIED FOODS,Clinical Support and Family Services,NHS LOGISTICS,1016208724,14.77,
Department of Health,Salisbury NHS Foundation Trust,26-Feb-16,BABY TEXTURE MODIFIED FOODS,Clinical Support and Family Services,NHS LOGISTICS,1016208724,14.77,
Department of Health,Salisbury NHS Foundation Trust,26-Feb-16,MEDSURGCONS - OTHER,Medicine,NHS LOGISTICS,1016208724,59.78,
Department of Health,Salisbury NHS Foundation Trust,26-Feb-16,MEDSURGCONS - OTHER,Medicine,NHS LOGISTICS,1016208724,19.93,
Department of Health,Salisbury NHS Foundation Trust,26-Feb-16,DISPOSABLE THEATRE DRAPES WIPES,Medicine,NHS LOGISTICS,1016208724,3.24,
Department of Health,Salisbury NHS Foundation Trust,26-Feb-16,M & S EQUIPELECTEQUIPINST - OTHER,Critical care,NHS LOGISTICS,1016208724,738.94,
Department of Health,Salisbury NHS Foundation Trust,26-Feb-16,M & S EQUIPELECTEQUIPINST - OTHER,Surgery,NHS LOGISTICS,1016208724,27.92,
Department of Health,Salisbury NHS Foundation Trust,26-Feb-16,MEDSURGCONS - OTHER,Surgery,NHS LOGISTICS,1016208724,40,
Department of Health,Salisbury NHS Foundation Trust,26-Feb-16,MEDSURGCONS - OTHER,Surgery,NHS LOGISTICS,1016208724,127.2,
Department of Health,Salisbury NHS Foundation Trust,26-Feb-16,DRESSINGS - PRE STERILE,Medicine,NHS LOGISTICS,1016208724,7.64,
Department of Health,Salisbury NHS Foundation Trust,26-Feb-16,TUBES,Medicine,NHS LOGISTICS,1016208724,6.19,
Department of Health,Salisbury NHS Foundation Trust,26-Feb-16,OTHER MEDICAL SUPPLIES,Medicine,NHS LOGISTICS,1016208724,5.88,
Department of Health,Salisbury NHS Foundation Trust,26-Feb-16,PATIENT APPLIANCES,Medicine,NHS LOGISTICS,1016208724,3.35,
Department of Health,Salisbury NHS Foundation Trust,26-Feb-16,PATIENT APPLIANCES,Medicine,NHS LOGISTICS,1016208724,3.35,
Department of Health,Salisbury NHS Foundation Trust,26-Feb-16,MEDSURGCONS - OTHER,Medicine,NHS LOGISTICS,1016208724,5.38,
Department of Health,Salisbury NHS Foundation Trust,26-Feb-16,TISSUES HAND TOWELS & TOILET PAPER,Medicine,NHS LOGISTICS,1016208724,1.1,
Department of Health,Salisbury NHS Foundation Trust,26-Feb-16,PATIENT APPLIANCES,Medicine,NHS LOGISTICS,1016208724,5.13,
Department of Health,Salisbury NHS Foundation Trust,26-Feb-16,DISPOSABLE THEATRE DRAPES WIPES,Medicine,NHS LOGISTICS,1016208724,6.48,
Department of Health,Salisbury NHS Foundation Trust,26-Feb-16,SURGICAL INSTRUMENTS: DISPOSABLE,Surgery,NHS LOGISTICS,1016208724,6,
Department of Health,Salisbury NHS Foundation Trust,26-Feb-16,TISSUES HAND TOWELS & TOILET PAPER,Surgery,NHS LOGISTICS,1016208724,3.77,
Department of Health,Salisbury NHS Foundation Trust,26-Feb-16,COOKING & KITCHEN UTENSILS,Surgery,NHS LOGISTICS,1016208724,17.01,
Department of Health,Salisbury NHS Foundation Trust,26-Feb-16,SURGICAL INSTRUMENTS: GENERAL,Surgery,NHS LOGISTICS,1016208724,70.13,
Department of Health,Salisbury NHS Foundation Trust,26-Feb-16,DRESSINGS - PRE STERILE,Surgery,NHS LOGISTICS,1016208724,304.27,
Department of Health,Salisbury NHS Foundation Trust,26-Feb-16,DISPOSABLE THEATRE DRAPES WIPES,Surgery,NHS LOGISTICS,1016208724,17.08,
Department of Health,Salisbury NHS Foundation Trust,26-Feb-16,TISSUES HAND TOWELS & TOILET PAPER,Surgery,NHS LOGISTICS,1016208724,4.8,
Department of Health,Salisbury NHS Foundation Trust,26-Feb-16,DRUGS,Surgery,NHS LOGISTICS,1016208724,48.6,
Department of Health,Salisbury NHS Foundation Trust,26-Feb-16,MEDSURGCONS - OTHER,Surgery,NHS LOGISTICS,1016208724,21.52,
Department of Health,Salisbury NHS Foundation Trust,26-Feb-16,MEDSURGCONS - OTHER,Surgery,NHS LOGISTICS,1016208724,10.76,
Department of Health,Salisbury NHS Foundation Trust,26-Feb-16,MEDSURGCONS - OTHER,Surgery,NHS LOGISTICS,1016208724,10.76,
Department of Health,Salisbury NHS Foundation Trust,26-Feb-16,DRUGS,Surgery,NHS LOGISTICS,1016208724,38.83,
Department of Health,Salisbury NHS Foundation Trust,26-Feb-16,PATIENT APPLIANCES,Surgery,NHS LOGISTICS,1016208724,10.98,
Department of Health,Salisbury NHS Foundation Trust,26-Feb-16,DRESSINGS - PRE STERILE,Surgery,NHS LOGISTICS,1016208724,28.87,
Department of Health,Salisbury NHS Foundation Trust,26-Feb-16,SURGICAL INSTRUMENTS: GENERAL,Surgery,NHS LOGISTICS,1016208724,76.47,
Department of Health,Salisbury NHS Foundation Trust,26-Feb-16,OTHER MEDICAL SUPPLIES,Surgery,NHS LOGISTICS,1016208724,252.86,
Department of Health,Salisbury NHS Foundation Trust,26-Feb-16,ELECTRICAL EQUIPMENT x,Surgery,NHS LOGISTICS,1016208724,6.67,
Department of Health,Salisbury NHS Foundation Trust,26-Feb-16,ELECTRICAL EQUIPMENT x,Surgery,NHS LOGISTICS,1016208724,5.33,
Department of Health,Salisbury NHS Foundation Trust,26-Feb-16,DRESSINGS - PRE STERILE,Surgery,NHS LOGISTICS,1016208724,7.65,
Department of Health,Salisbury NHS Foundation Trust,26-Feb-16,MEDSURGCONS-SUTURES,Medicine,NHS LOGISTICS,1016208724,79.12,
Department of Health,Salisbury NHS Foundation Trust,26-Feb-16,PATIENTS INCONTINENCE,Medicine,NHS LOGISTICS,1016208724,50.85,
Department of Health,Salisbury NHS Foundation Trust,26-Feb-16,MEDSURGCONS - OTHER,Medicine,NHS LOGISTICS,1016208724,10.68,
Department of Health,Salisbury NHS Foundation Trust,26-Feb-16,PATIENTS INCONTINENCE,Surgery,NHS LOGISTICS,1016208724,13.63,
Department of Health,Salisbury NHS Foundation Trust,26-Feb-16,PATIENTS INCONTINENCE,Critical care,NHS LOGISTICS,1016208724,3.78,
Department of Health,Salisbury NHS Foundation Trust,26-Feb-16,PATIENTS INCONTINENCE,Critical care,NHS LOGISTICS,1016208724,3.78,
Department of Health,Salisbury NHS Foundation Trust,26-Feb-16,MEDSURGCONS - OTHER,Clinical Support and Family Services,NHS LOGISTICS,1016208724,11.17,
Department of Health,Salisbury NHS Foundation Trust,26-Feb-16,CLEANING MATERIALS PRODUCTS SUNDRIES,Surgery,NHS LOGISTICS,1016208724,27.33,
Department of Health,Salisbury NHS Foundation Trust,26-Feb-16,OTHER MEDICAL SUPPLIES,Surgery,NHS LOGISTICS,1016208724,223.93,
Department of Health,Salisbury NHS Foundation Trust,26-Feb-16,EGGS MILK OTHER DAIRY PRODUCTS,Facilities Directorate,NHS LOGISTICS,1016208724,129.16,
Department of Health,Salisbury NHS Foundation Trust,26-Feb-16,FRUIT & VEGETABLES,Facilities Directorate,NHS LOGISTICS,1016208724,40.16,
Department of Health,Salisbury NHS Foundation Trust,26-Feb-16,BEVERAGES & AMBIENT FOOD,Facilities Directorate,NHS LOGISTICS,1016208724,33.42,
Department of Health,Salisbury NHS Foundation Trust,26-Feb-16,BEVERAGES & AMBIENT FOOD,Facilities Directorate,NHS LOGISTICS,1016208724,16.38,
Department of Health,Salisbury NHS Foundation Trust,26-Feb-16,BEVERAGES & AMBIENT FOOD,Facilities Directorate,NHS LOGISTICS,1016208724,9.6,
Department of Health,Salisbury NHS Foundation Trust,26-Feb-16,BEVERAGES & AMBIENT FOOD,Facilities Directorate,NHS LOGISTICS,1016208724,8.86,
Department of Health,Salisbury NHS Foundation Trust,26-Feb-16,BEVERAGES & AMBIENT FOOD,Facilities Directorate,NHS LOGISTICS,1016208724,20.94,
Department of Health,Salisbury NHS Foundation Trust,26-Feb-16,BEVERAGES & AMBIENT FOOD,Facilities Directorate,NHS LOGISTICS,1016208724,3.57,
Department of Health,Salisbury NHS Foundation Trust,26-Feb-16,BEVERAGES & AMBIENT FOOD,Facilities Directorate,NHS LOGISTICS,1016208724,2.55,
Department of Health,Salisbury NHS Foundation Trust,26-Feb-16,BEVERAGES & AMBIENT FOOD,Facilities Directorate,NHS LOGISTICS,1016208724,7.64,
Department of Health,Salisbury NHS Foundation Trust,26-Feb-16,BEVERAGES & AMBIENT FOOD,Facilities Directorate,NHS LOGISTICS,1016208724,6.32,
Department of Health,Salisbury NHS Foundation Trust,26-Feb-16,BEVERAGES & AMBIENT FOOD,Facilities Directorate,NHS LOGISTICS,1016208724,3.18,
Department of Health,Salisbury NHS Foundation Trust,26-Feb-16,BEVERAGES & AMBIENT FOOD,Facilities Directorate,NHS LOGISTICS,1016208724,10.16,
Department of Health,Salisbury NHS Foundation Trust,26-Feb-16,FLAVOURINGS HERBS SPICES,Facilities Directorate,NHS LOGISTICS,1016208724,8.07,
Department of Health,Salisbury NHS Foundation Trust,26-Feb-16,COOKING & KITCHEN UTENSILS,Facilities Directorate,NHS LOGISTICS,1016208724,24.17,
Department of Health,Salisbury NHS Foundation Trust,26-Feb-16,BEVERAGES & AMBIENT FOOD,Facilities Directorate,NHS LOGISTICS,1016208724,5.02,
Department of Health,Salisbury NHS Foundation Trust,26-Feb-16,BEVERAGES & AMBIENT FOOD,Facilities Directorate,NHS LOGISTICS,1016208724,31.28,
Department of Health,Salisbury NHS Foundation Trust,26-Feb-16,BEVERAGES & AMBIENT FOOD,Facilities Directorate,NHS LOGISTICS,1016208724,6.17,
Department of Health,Salisbury NHS Foundation Trust,26-Feb-16,FRUIT & VEGETABLES,Facilities Directorate,NHS LOGISTICS,1016208724,7.6,
Department of Health,Salisbury NHS Foundation Trust,26-Feb-16,BEVERAGES & AMBIENT FOOD,Facilities Directorate,NHS LOGISTICS,1016208724,9.84,
Department of Health,Salisbury NHS Foundation Trust,26-Feb-16,EGGS MILK OTHER DAIRY PRODUCTS,Facilities Directorate,NHS LOGISTICS,1016208724,11.44,
Department of Health,Salisbury NHS Foundation Trust,26-Feb-16,EGGS MILK OTHER DAIRY PRODUCTS,Facilities Directorate,NHS LOGISTICS,1016208724,11.44,
Department of Health,Salisbury NHS Foundation Trust,26-Feb-16,FLAVOURINGS HERBS SPICES,Facilities Directorate,NHS LOGISTICS,1016208724,22.96,
Department of Health,Salisbury NHS Foundation Trust,26-Feb-16,BEVERAGES & AMBIENT FOOD,Facilities Directorate,NHS LOGISTICS,1016208724,8.46,
Department of Health,Salisbury NHS Foundation Trust,26-Feb-16,MEAT GAME POULTRY FISH,Facilities Directorate,NHS LOGISTICS,1016208724,33.6,
Department of Health,Salisbury NHS Foundation Trust,26-Feb-16,FRUIT & VEGETABLES,Facilities Directorate,NHS LOGISTICS,1016208724,15.84,
Department of Health,Salisbury NHS Foundation Trust,26-Feb-16,EGGS MILK OTHER DAIRY PRODUCTS,Facilities Directorate,NHS LOGISTICS,1016208724,37.2,
Department of Health,Salisbury NHS Foundation Trust,26-Feb-16,BEVERAGES & AMBIENT FOOD,Facilities Directorate,NHS LOGISTICS,1016208724,35.58,
Department of Health,Salisbury NHS Foundation Trust,26-Feb-16,BEVERAGES & AMBIENT FOOD,Facilities Directorate,NHS LOGISTICS,1016208724,17.9,
Department of Health,Salisbury NHS Foundation Trust,26-Feb-16,BEVERAGES & AMBIENT FOOD,Facilities Directorate,NHS LOGISTICS,1016208724,3.58,
Department of Health,Salisbury NHS Foundation Trust,26-Feb-16,BAGS SACKS - OTHER,Facilities Directorate,NHS LOGISTICS,1016208724,7.21,
Department of Health,Salisbury NHS Foundation Trust,26-Feb-16,BAGS SACKS - OTHER,Facilities Directorate,NHS LOGISTICS,1016208724,10.13,
Department of Health,Salisbury NHS Foundation Trust,26-Feb-16,FRUIT & VEGETABLES,Facilities Directorate,NHS LOGISTICS,1016208724,53.1,
Department of Health,Salisbury NHS Foundation Trust,26-Feb-16,FRUIT & VEGETABLES,Facilities Directorate,NHS LOGISTICS,1016208724,11.76,
Department of Health,Salisbury NHS Foundation Trust,26-Feb-16,FRUIT & VEGETABLES,Facilities Directorate,NHS LOGISTICS,1016208724,33.12,
Department of Health,Salisbury NHS Foundation Trust,26-Feb-16,FRUIT & VEGETABLES,Facilities Directorate,NHS LOGISTICS,1016208724,33.12,
Department of Health,Salisbury NHS Foundation Trust,26-Feb-16,FRUIT & VEGETABLES,Facilities Directorate,NHS LOGISTICS,1016208724,5,
Department of Health,Salisbury NHS Foundation Trust,26-Feb-16,FRUIT & VEGETABLES,Facilities Directorate,NHS LOGISTICS,1016208724,27.84,
Department of Health,Salisbury NHS Foundation Trust,26-Feb-16,LIQUID REFRESHMENTS,Facilities Directorate,NHS LOGISTICS,1016208724,9.98,
Department of Health,Salisbury NHS Foundation Trust,26-Feb-16,LIQUID REFRESHMENTS,Facilities Directorate,NHS LOGISTICS,1016208724,9.32,
Department of Health,Salisbury NHS Foundation Trust,26-Feb-16,BEVERAGES & AMBIENT FOOD,Facilities Directorate,NHS LOGISTICS,1016208724,6.72,
Department of Health,Salisbury NHS Foundation Trust,26-Feb-16,LIQUID REFRESHMENTS,Facilities Directorate,NHS LOGISTICS,1016208724,17.35,
Department of Health,Salisbury NHS Foundation Trust,26-Feb-16,LIQUID REFRESHMENTS,Facilities Directorate,NHS LOGISTICS,1016208724,9.17,
Department of Health,Salisbury NHS Foundation Trust,26-Feb-16,BEVERAGES & AMBIENT FOOD,Facilities Directorate,NHS LOGISTICS,1016208724,18.84,
Department of Health,Salisbury NHS Foundation Trust,26-Feb-16,BEVERAGES & AMBIENT FOOD,Facilities Directorate,NHS LOGISTICS,1016208724,50.04,
Department of Health,Salisbury NHS Foundation Trust,26-Feb-16,BEVERAGES & AMBIENT FOOD,Facilities Directorate,NHS LOGISTICS,1016208724,13.83,
Department of Health,Salisbury NHS Foundation Trust,26-Feb-16,BEVERAGES & AMBIENT FOOD,Facilities Directorate,NHS LOGISTICS,1016208724,21.6,
Department of Health,Salisbury NHS Foundation Trust,26-Feb-16,BEVERAGES & AMBIENT FOOD,Facilities Directorate,NHS LOGISTICS,1016208724,14.04,
Department of Health,Salisbury NHS Foundation Trust,26-Feb-16,BEVERAGES & AMBIENT FOOD,Facilities Directorate,NHS LOGISTICS,1016208724,17,
Department of Health,Salisbury NHS Foundation Trust,26-Feb-16,BEVERAGES & AMBIENT FOOD,Facilities Directorate,NHS LOGISTICS,1016208724,5.94,
Department of Health,Salisbury NHS Foundation Trust,26-Feb-16,BEVERAGES & AMBIENT FOOD,Facilities Directorate,NHS LOGISTICS,1016208724,5.58,
Department of Health,Salisbury NHS Foundation Trust,26-Feb-16,FRUIT & VEGETABLES,Facilities Directorate,NHS LOGISTICS,1016208724,1.68,
Department of Health,Salisbury NHS Foundation Trust,26-Feb-16,BEVERAGES & AMBIENT FOOD,Facilities Directorate,NHS LOGISTICS,1016208724,36.72,
Department of Health,Salisbury NHS Foundation Trust,26-Feb-16,BEVERAGES & AMBIENT FOOD,Facilities Directorate,NHS LOGISTICS,1016208724,3.09,
Department of Health,Salisbury NHS Foundation Trust,26-Feb-16,BEVERAGES & AMBIENT FOOD,Facilities Directorate,NHS LOGISTICS,1016208724,24.24,
Department of Health,Salisbury NHS Foundation Trust,26-Feb-16,LIQUID REFRESHMENTS,Facilities Directorate,NHS LOGISTICS,1016208724,115.6,
Department of Health,Salisbury NHS Foundation Trust,26-Feb-16,LIQUID REFRESHMENTS,Facilities Directorate,NHS LOGISTICS,1016208724,6.58,
Department of Health,Salisbury NHS Foundation Trust,26-Feb-16,LIQUID REFRESHMENTS,Facilities Directorate,NHS LOGISTICS,1016208724,6.2,
Department of Health,Salisbury NHS Foundation Trust,26-Feb-16,LIQUID REFRESHMENTS,Facilities Directorate,NHS LOGISTICS,1016208724,2.91,
Department of Health,Salisbury NHS Foundation Trust,26-Feb-16,BEVERAGES & AMBIENT FOOD,Facilities Directorate,NHS LOGISTICS,1016208724,70.32,
Department of Health,Salisbury NHS Foundation Trust,26-Feb-16,COOKING & KITCHEN UTENSILS,Facilities Directorate,NHS LOGISTICS,1016208724,19.5,
Department of Health,Salisbury NHS Foundation Trust,26-Feb-16,COOKING & KITCHEN UTENSILS,Facilities Directorate,NHS LOGISTICS,1016208724,39,
Department of Health,Salisbury NHS Foundation Trust,26-Feb-16,BAGS SACKS - OTHER,Facilities Directorate,NHS LOGISTICS,1016208724,15,
Department of Health,Salisbury NHS Foundation Trust,26-Feb-16,FRUIT & VEGETABLES,Facilities Directorate,NHS LOGISTICS,1016208724,4.58,
Department of Health,Salisbury NHS Foundation Trust,26-Feb-16,FRUIT & VEGETABLES,Facilities Directorate,NHS LOGISTICS,1016208724,23.52,
Department of Health,Salisbury NHS Foundation Trust,26-Feb-16,FRUIT & VEGETABLES,Facilities Directorate,NHS LOGISTICS,1016208724,14.2,
Department of Health,Salisbury NHS Foundation Trust,26-Feb-16,FRUIT & VEGETABLES,Facilities Directorate,NHS LOGISTICS,1016208724,23.04,
Department of Health,Salisbury NHS Foundation Trust,26-Feb-16,FRUIT & VEGETABLES,Facilities Directorate,NHS LOGISTICS,1016208724,21.54,
Department of Health,Salisbury NHS Foundation Trust,26-Feb-16,BEVERAGES & AMBIENT FOOD,Facilities Directorate,NHS LOGISTICS,1016208724,8.47,
Department of Health,Salisbury NHS Foundation Trust,26-Feb-16,STATIONERY SUNDRIES,Facilities Directorate,NHS LOGISTICS,1016208724,1.98,
Department of Health,Salisbury NHS Foundation Trust,26-Feb-16,STATIONERY SUNDRIES,Facilities Directorate,NHS LOGISTICS,1016208724,0.4,
Department of Health,Salisbury NHS Foundation Trust,26-Feb-16,OFFICE EQUIP MACHINERY  -  OTHER,Facilities Directorate,NHS LOGISTICS,1016208724,8.58,
Department of Health,Salisbury NHS Foundation Trust,26-Feb-16,TELECOMS - TELEPHONES,Surgery,NHS LOGISTICS,1016208724,52.56,
Department of Health,Salisbury NHS Foundation Trust,26-Feb-16,PATIENTS INCONTINENCE,Surgery,NHS LOGISTICS,1016208724,20.45,
Department of Health,Salisbury NHS Foundation Trust,26-Feb-16,MEDSURGCONS - OTHER,Critical care,NHS LOGISTICS,1016208724,20.88,
Department of Health,Salisbury NHS Foundation Trust,26-Feb-16,OTHER MEDICAL SUPPLIES,Surgery,NHS LOGISTICS,1016208724,14.83,
Department of Health,Salisbury NHS Foundation Trust,26-Feb-16,BAGS SACKS - OTHER,Surgery,NHS LOGISTICS,1016208724,2.93,
Department of Health,Salisbury NHS Foundation Trust,26-Feb-16,BAGS SACKS - OTHER,Surgery,NHS LOGISTICS,1016208724,14.25,
Department of Health,Salisbury NHS Foundation Trust,26-Feb-16,PATIENTS BABY WEAR,Clinical Support and Family Services,NHS LOGISTICS,1016208724,13.94,
Department of Health,Salisbury NHS Foundation Trust,26-Feb-16,PATIENTS INCONTINENCE,Medicine,NHS LOGISTICS,1016208724,17.04,
Department of Health,Salisbury NHS Foundation Trust,26-Feb-16,MEDSURGCONS - OTHER,Surgery,NHS LOGISTICS,1016208724,37.5,
Department of Health,Salisbury NHS Foundation Trust,26-Feb-16,PATIENTS INCONTINENCE,Medicine,NHS LOGISTICS,1016208724,6.82,
Department of Health,Salisbury NHS Foundation Trust,26-Feb-16,M & S EQUIPELECTEQUIPINST - OTHER,Clinical Support and Family Services,NHS LOGISTICS,1016208724,619.79,
Department of Health,Salisbury NHS Foundation Trust,26-Feb-16,PATIENT APPLIANCES,Surgery,NHS LOGISTICS,1016208724,8.17,
Department of Health,Salisbury NHS Foundation Trust,26-Feb-16,PATIENTS INCONTINENCE,Critical care,NHS LOGISTICS,1016208724,71.58,
Department of Health,Salisbury NHS Foundation Trust,26-Feb-16,EGGS MILK OTHER DAIRY PRODUCTS,Facilities Directorate,NHS LOGISTICS,1016208724,129.16,
Department of Health,Salisbury NHS Foundation Trust,26-Feb-16,FRUIT & VEGETABLES,Facilities Directorate,NHS LOGISTICS,1016208724,20.08,
Department of Health,Salisbury NHS Foundation Trust,26-Feb-16,BEVERAGES & AMBIENT FOOD,Facilities Directorate,NHS LOGISTICS,1016208724,16.71,
Department of Health,Salisbury NHS Foundation Trust,26-Feb-16,BEVERAGES & AMBIENT FOOD,Facilities Directorate,NHS LOGISTICS,1016208724,32.76,
Department of Health,Salisbury NHS Foundation Trust,26-Feb-16,BEVERAGES & AMBIENT FOOD,Facilities Directorate,NHS LOGISTICS,1016208724,9.6,
Department of Health,Salisbury NHS Foundation Trust,26-Feb-16,BEVERAGES & AMBIENT FOOD,Facilities Directorate,NHS LOGISTICS,1016208724,13.96,
Department of Health,Salisbury NHS Foundation Trust,26-Feb-16,BEVERAGES & AMBIENT FOOD,Facilities Directorate,NHS LOGISTICS,1016208724,12.78,
Department of Health,Salisbury NHS Foundation Trust,26-Feb-16,BEVERAGES & AMBIENT FOOD,Facilities Directorate,NHS LOGISTICS,1016208724,3.92,
Department of Health,Salisbury NHS Foundation Trust,26-Feb-16,BEVERAGES & AMBIENT FOOD,Facilities Directorate,NHS LOGISTICS,1016208724,3.24,
Department of Health,Salisbury NHS Foundation Trust,26-Feb-16,BEVERAGES & AMBIENT FOOD,Facilities Directorate,NHS LOGISTICS,1016208724,6.32,
Department of Health,Salisbury NHS Foundation Trust,26-Feb-16,FLAVOURINGS HERBS SPICES,Facilities Directorate,NHS LOGISTICS,1016208724,2.69,
Department of Health,Salisbury NHS Foundation Trust,26-Feb-16,BEVERAGES & AMBIENT FOOD,Facilities Directorate,NHS LOGISTICS,1016208724,15.64,
Department of Health,Salisbury NHS Foundation Trust,26-Feb-16,BEVERAGES & AMBIENT FOOD,Facilities Directorate,NHS LOGISTICS,1016208724,18.48,
Department of Health,Salisbury NHS Foundation Trust,26-Feb-16,LIQUID REFRESHMENTS,Facilities Directorate,NHS LOGISTICS,1016208724,3.91,
Department of Health,Salisbury NHS Foundation Trust,26-Feb-16,BEVERAGES & AMBIENT FOOD,Facilities Directorate,NHS LOGISTICS,1016208724,9.84,
Department of Health,Salisbury NHS Foundation Trust,26-Feb-16,EGGS MILK OTHER DAIRY PRODUCTS,Facilities Directorate,NHS LOGISTICS,1016208724,11.44,
Department of Health,Salisbury NHS Foundation Trust,26-Feb-16,FLAVOURINGS HERBS SPICES,Facilities Directorate,NHS LOGISTICS,1016208724,22.96,
Department of Health,Salisbury NHS Foundation Trust,26-Feb-16,BEVERAGES & AMBIENT FOOD,Facilities Directorate,NHS LOGISTICS,1016208724,8.46,
Department of Health,Salisbury NHS Foundation Trust,26-Feb-16,FRUIT & VEGETABLES,Facilities Directorate,NHS LOGISTICS,1016208724,21.12,
Department of Health,Salisbury NHS Foundation Trust,26-Feb-16,EGGS MILK OTHER DAIRY PRODUCTS,Facilities Directorate,NHS LOGISTICS,1016208724,37.2,
Department of Health,Salisbury NHS Foundation Trust,26-Feb-16,BEVERAGES & AMBIENT FOOD,Facilities Directorate,NHS LOGISTICS,1016208724,23.72,
Department of Health,Salisbury NHS Foundation Trust,26-Feb-16,BEVERAGES & AMBIENT FOOD,Facilities Directorate,NHS LOGISTICS,1016208724,21.48,
Department of Health,Salisbury NHS Foundation Trust,26-Feb-16,FRUIT & VEGETABLES,Facilities Directorate,NHS LOGISTICS,1016208724,63.72,
Department of Health,Salisbury NHS Foundation Trust,26-Feb-16,FRUIT & VEGETABLES,Facilities Directorate,NHS LOGISTICS,1016208724,11.76,
Department of Health,Salisbury NHS Foundation Trust,26-Feb-16,FRUIT & VEGETABLES,Facilities Directorate,NHS LOGISTICS,1016208724,44.16,
Department of Health,Salisbury NHS Foundation Trust,26-Feb-16,FRUIT & VEGETABLES,Facilities Directorate,NHS LOGISTICS,1016208724,17.22,
Department of Health,Salisbury NHS Foundation Trust,26-Feb-16,FRUIT & VEGETABLES,Facilities Directorate,NHS LOGISTICS,1016208724,4.92,
Department of Health,Salisbury NHS Foundation Trust,26-Feb-16,LIQUID REFRESHMENTS,Facilities Directorate,NHS LOGISTICS,1016208724,4.99,
Department of Health,Salisbury NHS Foundation Trust,26-Feb-16,LIQUID REFRESHMENTS,Facilities Directorate,NHS LOGISTICS,1016208724,10.88,
Department of Health,Salisbury NHS Foundation Trust,26-Feb-16,LIQUID REFRESHMENTS,Facilities Directorate,NHS LOGISTICS,1016208724,21.77,
Department of Health,Salisbury NHS Foundation Trust,26-Feb-16,LIQUID REFRESHMENTS,Facilities Directorate,NHS LOGISTICS,1016208724,24.63,
Department of Health,Salisbury NHS Foundation Trust,26-Feb-16,LIQUID REFRESHMENTS,Facilities Directorate,NHS LOGISTICS,1016208724,13.25,
Department of Health,Salisbury NHS Foundation Trust,26-Feb-16,LIQUID REFRESHMENTS,Facilities Directorate,NHS LOGISTICS,1016208724,13.25,
Department of Health,Salisbury NHS Foundation Trust,26-Feb-16,BEVERAGES & AMBIENT FOOD,Facilities Directorate,NHS LOGISTICS,1016208724,18.84,
Department of Health,Salisbury NHS Foundation Trust,26-Feb-16,BEVERAGES & AMBIENT FOOD,Facilities Directorate,NHS LOGISTICS,1016208724,33.36,
Department of Health,Salisbury NHS Foundation Trust,26-Feb-16,BEVERAGES & AMBIENT FOOD,Facilities Directorate,NHS LOGISTICS,1016208724,17.74,
Department of Health,Salisbury NHS Foundation Trust,26-Feb-16,COOKING & KITCHEN UTENSILS,Facilities Directorate,NHS LOGISTICS,1016208724,19.73,
Department of Health,Salisbury NHS Foundation Trust,26-Feb-16,COOKING & KITCHEN UTENSILS,Facilities Directorate,NHS LOGISTICS,1016208724,16.8,
Department of Health,Salisbury NHS Foundation Trust,26-Feb-16,BEVERAGES & AMBIENT FOOD,Facilities Directorate,NHS LOGISTICS,1016208724,21.6,
Department of Health,Salisbury NHS Foundation Trust,26-Feb-16,BEVERAGES & AMBIENT FOOD,Facilities Directorate,NHS LOGISTICS,1016208724,17.16,
Department of Health,Salisbury NHS Foundation Trust,26-Feb-16,BEVERAGES & AMBIENT FOOD,Facilities Directorate,NHS LOGISTICS,1016208724,14.04,
Department of Health,Salisbury NHS Foundation Trust,26-Feb-16,BEVERAGES & AMBIENT FOOD,Facilities Directorate,NHS LOGISTICS,1016208724,6.78,
Department of Health,Salisbury NHS Foundation Trust,26-Feb-16,BEVERAGES & AMBIENT FOOD,Facilities Directorate,NHS LOGISTICS,1016208724,11.6,
Department of Health,Salisbury NHS Foundation Trust,26-Feb-16,BEVERAGES & AMBIENT FOOD,Facilities Directorate,NHS LOGISTICS,1016208724,6.56,
Department of Health,Salisbury NHS Foundation Trust,26-Feb-16,BEVERAGES & AMBIENT FOOD,Facilities Directorate,NHS LOGISTICS,1016208724,7.46,
Department of Health,Salisbury NHS Foundation Trust,26-Feb-16,BEVERAGES & AMBIENT FOOD,Facilities Directorate,NHS LOGISTICS,1016208724,6.86,
Department of Health,Salisbury NHS Foundation Trust,26-Feb-16,FLAVOURINGS HERBS SPICES,Facilities Directorate,NHS LOGISTICS,1016208724,2.46,
Department of Health,Salisbury NHS Foundation Trust,26-Feb-16,FLAVOURINGS HERBS SPICES,Facilities Directorate,NHS LOGISTICS,1016208724,1.81,
Department of Health,Salisbury NHS Foundation Trust,26-Feb-16,FLAVOURINGS HERBS SPICES,Facilities Directorate,NHS LOGISTICS,1016208724,6.15,
Department of Health,Salisbury NHS Foundation Trust,26-Feb-16,BEVERAGES & AMBIENT FOOD,Facilities Directorate,NHS LOGISTICS,1016208724,9,
Department of Health,Salisbury NHS Foundation Trust,26-Feb-16,BEVERAGES & AMBIENT FOOD,Facilities Directorate,NHS LOGISTICS,1016208724,36.72,
Department of Health,Salisbury NHS Foundation Trust,26-Feb-16,LIQUID REFRESHMENTS,Facilities Directorate,NHS LOGISTICS,1016208724,115.6,
Department of Health,Salisbury NHS Foundation Trust,26-Feb-16,LIQUID REFRESHMENTS,Facilities Directorate,NHS LOGISTICS,1016208724,9.88,
Department of Health,Salisbury NHS Foundation Trust,26-Feb-16,LIQUID REFRESHMENTS,Facilities Directorate,NHS LOGISTICS,1016208724,9.3,
Department of Health,Salisbury NHS Foundation Trust,26-Feb-16,LIQUID REFRESHMENTS,Facilities Directorate,NHS LOGISTICS,1016208724,2.53,
Department of Health,Salisbury NHS Foundation Trust,26-Feb-16,LIQUID REFRESHMENTS,Facilities Directorate,NHS LOGISTICS,1016208724,5.07,
Department of Health,Salisbury NHS Foundation Trust,26-Feb-16,LIQUID REFRESHMENTS,Facilities Directorate,NHS LOGISTICS,1016208724,2.91,
Department of Health,Salisbury NHS Foundation Trust,26-Feb-16,BEVERAGES & AMBIENT FOOD,Facilities Directorate,NHS LOGISTICS,1016208724,70.32,
Department of Health,Salisbury NHS Foundation Trust,26-Feb-16,TISSUES HAND TOWELS & TOILET PAPER,Facilities Directorate,NHS LOGISTICS,1016208724,10.4,
Department of Health,Salisbury NHS Foundation Trust,26-Feb-16,COOKING & KITCHEN UTENSILS,Facilities Directorate,NHS LOGISTICS,1016208724,5.27,
Department of Health,Salisbury NHS Foundation Trust,26-Feb-16,COOKING & KITCHEN UTENSILS,Facilities Directorate,NHS LOGISTICS,1016208724,46.05,
Department of Health,Salisbury NHS Foundation Trust,26-Feb-16,COOKING & KITCHEN UTENSILS,Facilities Directorate,NHS LOGISTICS,1016208724,1.22,
Department of Health,Salisbury NHS Foundation Trust,26-Feb-16,COOKING & KITCHEN UTENSILS,Facilities Directorate,NHS LOGISTICS,1016208724,28.6,
Department of Health,Salisbury NHS Foundation Trust,26-Feb-16,FRUIT & VEGETABLES,Facilities Directorate,NHS LOGISTICS,1016208724,14.64,
Department of Health,Salisbury NHS Foundation Trust,26-Feb-16,FRUIT & VEGETABLES,Facilities Directorate,NHS LOGISTICS,1016208724,11.52,
Department of Health,Salisbury NHS Foundation Trust,26-Feb-16,FRUIT & VEGETABLES,Facilities Directorate,NHS LOGISTICS,1016208724,18.78,
Department of Health,Salisbury NHS Foundation Trust,26-Feb-16,FRUIT & VEGETABLES,Facilities Directorate,NHS LOGISTICS,1016208724,22.32,
Department of Health,Salisbury NHS Foundation Trust,26-Feb-16,BEVERAGES & AMBIENT FOOD,Facilities Directorate,NHS LOGISTICS,1016208724,24.24,
Department of Health,Salisbury NHS Foundation Trust,26-Feb-16,BEVERAGES & AMBIENT FOOD,Facilities Directorate,NHS LOGISTICS,1016208724,6.18,
Department of Health,Salisbury NHS Foundation Trust,26-Feb-16,BEVERAGES & AMBIENT FOOD,Facilities Directorate,NHS LOGISTICS,1016208724,12.12,
Department of Health,Salisbury NHS Foundation Trust,26-Feb-16,OTHER MEDICAL SUPPLIES,Surgery,NHS LOGISTICS,1016208724,64.52,
Department of Health,Salisbury NHS Foundation Trust,26-Feb-16,SURGICAL INSTRUMENTS: GENERAL,Surgery,NHS LOGISTICS,1016208724,232,
Department of Health,Salisbury NHS Foundation Trust,26-Feb-16,SERVICES FROM NHS BODIES,Clinical Support and Family Services,NHS LOGISTICS,1016208724,35.87,
Department of Health,Salisbury NHS Foundation Trust,26-Feb-16,DRESSINGS - PRE STERILE,Surgery,NHS LOGISTICS,1016208724,143.93,
Department of Health,Salisbury NHS Foundation Trust,26-Feb-16,MEDSURGCONS-SUTURES,Surgery,NHS LOGISTICS,1016208724,37.88,
Department of Health,Salisbury NHS Foundation Trust,26-Feb-16,MEDSURGCONS-SUTURES,Surgery,NHS LOGISTICS,1016208724,37.02,
Department of Health,Salisbury NHS Foundation Trust,26-Feb-16,DRESSINGS - PRE STERILE,Surgery,NHS LOGISTICS,1016208724,35,
Department of Health,Salisbury NHS Foundation Trust,26-Feb-16,M & S EQUIPELECTEQUIPINST - OTHER,Surgery,NHS LOGISTICS,1016208724,5.38,
Department of Health,Salisbury NHS Foundation Trust,26-Feb-16,DRESSINGS - PRE STERILE,Surgery,NHS LOGISTICS,1016208724,4.08,
Department of Health,Salisbury NHS Foundation Trust,26-Feb-16,DRESSINGS - PRE STERILE,Surgery,NHS LOGISTICS,1016208724,3.3,
Department of Health,Salisbury NHS Foundation Trust,26-Feb-16,DRESSINGS - PRE STERILE,Surgery,NHS LOGISTICS,1016208724,3.3,
Department of Health,Salisbury NHS Foundation Trust,26-Feb-16,DRESSINGS - PRE STERILE,Surgery,NHS LOGISTICS,1016208724,3.3,
Department of Health,Salisbury NHS Foundation Trust,26-Feb-16,HEATING VENTILATION BOILERS,Clinical Support and Family Services,NHS LOGISTICS,1016208724,2.2,
Department of Health,Salisbury NHS Foundation Trust,26-Feb-16,MEDSURGCONS - OTHER,Clinical Support and Family Services,NHS LOGISTICS,1016208724,7.08,
Department of Health,Salisbury NHS Foundation Trust,26-Feb-16,MEDSURGCONS - OTHER,Clinical Support and Family Services,NHS LOGISTICS,1016208724,7.08,
Department of Health,Salisbury NHS Foundation Trust,26-Feb-16,OTHER MEDICAL SUPPLIES,Surgery,NHS LOGISTICS,1016208724,5.03,
Department of Health,Salisbury NHS Foundation Trust,26-Feb-16,DRESSINGS - PRE STERILE,Corporate Directorate,NHS LOGISTICS,1016208724,0.15,
Department of Health,Salisbury NHS Foundation Trust,26-Feb-16,LAB REAGENTS-BUFFERS COMPUND SOLNS,Clinical Support and Family Services,NHS LOGISTICS,1016208724,167.58,
Department of Health,Salisbury NHS Foundation Trust,26-Feb-16,M & S EQUIPELECTEQUIPINST - OTHER,Clinical Support and Family Services,NHS LOGISTICS,1016208724,22.92,
Department of Health,Salisbury NHS Foundation Trust,26-Feb-16,OTHER MEDICAL SUPPLIES,Surgery,NHS LOGISTICS,1016208724,12.9,
Department of Health,Salisbury NHS Foundation Trust,26-Feb-16,DRESSINGS - PRE STERILE,Medicine,NHS LOGISTICS,1016208724,28.72,
Department of Health,Salisbury NHS Foundation Trust,26-Feb-16,TISSUES HAND TOWELS & TOILET PAPER,Clinical Support and Family Services,NHS LOGISTICS,1016208724,4.16,
Department of Health,Salisbury NHS Foundation Trust,26-Feb-16,TISSUES HAND TOWELS & TOILET PAPER,Clinical Support and Family Services,NHS LOGISTICS,1016208724,0.19,
Department of Health,Salisbury NHS Foundation Trust,26-Feb-16,DISPOSABLE THEATRE DRAPES WIPES,Clinical Support and Family Services,NHS LOGISTICS,1016208724,8.4,
Department of Health,Salisbury NHS Foundation Trust,26-Feb-16,DISPOSABLE THEATRE DRAPES WIPES,Surgery,NHS LOGISTICS,1016208724,1.36,
Department of Health,Salisbury NHS Foundation Trust,26-Feb-16,MEDSURGCONS - OTHER,Clinical Support and Family Services,NHS LOGISTICS,1016208724,5.12,
Department of Health,Salisbury NHS Foundation Trust,26-Feb-16,MED SURG EQUIP REP MAINT CLEANING,Medicine,NHS LOGISTICS,1016208724,22.61,
Department of Health,Salisbury NHS Foundation Trust,26-Feb-16,DRESSINGS - PRE STERILE,Critical care,NHS LOGISTICS,1016208724,9.66,
Department of Health,Salisbury NHS Foundation Trust,26-Feb-16,DRESSINGS - PRE STERILE,Critical care,NHS LOGISTICS,1016208724,12.66,
Department of Health,Salisbury NHS Foundation Trust,26-Feb-16,DRESSINGS - PRE STERILE,Critical care,NHS LOGISTICS,1016208724,6.06,
Department of Health,Salisbury NHS Foundation Trust,26-Feb-16,MEDSURGCONS - OTHER,Medicine,NHS LOGISTICS,1016208724,1.08,
Department of Health,Salisbury NHS Foundation Trust,26-Feb-16,ELECTRICAL EQUIPMENT x,Clinical Support and Family Services,NHS LOGISTICS,1016208724,0.67,
Department of Health,Salisbury NHS Foundation Trust,26-Feb-16,DISPOSABLE THEATRE DRAPES WIPES,Surgery,NHS LOGISTICS,1016208724,16.26,
Department of Health,Salisbury NHS Foundation Trust,26-Feb-16,TISSUES HAND TOWELS & TOILET PAPER,Medicine,NHS LOGISTICS,1016208724,0.16,
Department of Health,Salisbury NHS Foundation Trust,26-Feb-16,TISSUES HAND TOWELS & TOILET PAPER,Medicine,NHS LOGISTICS,1016208724,0.19,
Department of Health,Salisbury NHS Foundation Trust,26-Feb-16,MEDSURGCONS - OTHER,Medicine,NHS LOGISTICS,1016208724,1.08,
Department of Health,Salisbury NHS Foundation Trust,26-Feb-16,OTHER MEDICAL SUPPLIES,Clinical Support and Family Services,NHS LOGISTICS,1016208724,31.58,
Department of Health,Salisbury NHS Foundation Trust,26-Feb-16,LAB EQUIP-LABORATORY APPARATUS,Clinical Support and Family Services,NHS LOGISTICS,1016208724,12.22,
Department of Health,Salisbury NHS Foundation Trust,26-Feb-16,LAB EQUIP-LABORATORY APPARATUS,Clinical Support and Family Services,NHS LOGISTICS,1016208724,47.47,
Department of Health,Salisbury NHS Foundation Trust,26-Feb-16,LAB EQUIP-ANALYSERS,Clinical Support and Family Services,NHS LOGISTICS,1016208724,14.84,
Department of Health,Salisbury NHS Foundation Trust,26-Feb-16,LAB EQUIP-LABORATORY APPARATUS,Clinical Support and Family Services,NHS LOGISTICS,1016208724,131.02,
Department of Health,Salisbury NHS Foundation Trust,26-Feb-16,LAB EQUIP-LABORATORY APPARATUS,Clinical Support and Family Services,NHS LOGISTICS,1016208724,1.29,
Department of Health,Salisbury NHS Foundation Trust,26-Feb-16,LAB EQUIP-LABORATORY APPARATUS,Clinical Support and Family Services,NHS LOGISTICS,1016208724,10.17,
Department of Health,Salisbury NHS Foundation Trust,26-Feb-16,LAB EQUIP-LABORATORY APPARATUS,Clinical Support and Family Services,NHS LOGISTICS,1016208724,18.84,
Department of Health,Salisbury NHS Foundation Trust,26-Feb-16,LAB EQUIP-LABORATORY APPARATUS,Clinical Support and Family Services,NHS LOGISTICS,1016208724,14.77,
Department of Health,Salisbury NHS Foundation Trust,26-Feb-16,OTHER MEDICAL SUPPLIES,Clinical Support and Family Services,NHS LOGISTICS,1016208724,91,
Department of Health,Salisbury NHS Foundation Trust,26-Feb-16,OTHER MEDICAL SUPPLIES,Clinical Support and Family Services,NHS LOGISTICS,1016208724,36.4,
Department of Health,Salisbury NHS Foundation Trust,26-Feb-16,LAB REAGENTS-BUFFERS COMPUND SOLNS,Clinical Support and Family Services,NHS LOGISTICS,1016208724,42.93,
Department of Health,Salisbury NHS Foundation Trust,26-Feb-16,DISPOSABLE THEATRE DRAPES WIPES,Human Resources,NHS LOGISTICS,1016208724,2.49,
Department of Health,Salisbury NHS Foundation Trust,26-Feb-16,BEVERAGES & AMBIENT FOOD,Surgery,NHS LOGISTICS,1016208724,6.02,
Department of Health,Salisbury NHS Foundation Trust,26-Feb-16,BEVERAGES & AMBIENT FOOD,Surgery,NHS LOGISTICS,1016208724,0.43,
Department of Health,Salisbury NHS Foundation Trust,26-Feb-16,BEVERAGES & AMBIENT FOOD,Surgery,NHS LOGISTICS,1016208724,0.83,
Department of Health,Salisbury NHS Foundation Trust,26-Feb-16,BAGS SACKS - OTHER,Facilities Directorate,NHS LOGISTICS,1016208724,4.05,
Department of Health,Salisbury NHS Foundation Trust,26-Feb-16,CLEANING MATERIALS PRODUCTS SUNDRIES,Facilities Directorate,NHS LOGISTICS,1016208724,1.74,
Department of Health,Salisbury NHS Foundation Trust,26-Feb-16,LIQUID REFRESHMENTS,Facilities Directorate,NHS LOGISTICS,1016208724,1.56,
Department of Health,Salisbury NHS Foundation Trust,26-Feb-16,CLEANING MATERIALS PRODUCTS SUNDRIES,Facilities Directorate,NHS LOGISTICS,1016208724,7.49,
Department of Health,Salisbury NHS Foundation Trust,26-Feb-16,CLEANING MATERIALS PRODUCTS SUNDRIES,Facilities Directorate,NHS LOGISTICS,1016208724,2.75,
Department of Health,Salisbury NHS Foundation Trust,26-Feb-16,DISPOSABLE THEATRE DRAPES WIPES,Facilities Directorate,NHS LOGISTICS,1016208724,55.64,
Department of Health,Salisbury NHS Foundation Trust,26-Feb-16,CLEANING MATERIALS PRODUCTS SUNDRIES,Facilities Directorate,NHS LOGISTICS,1016208724,4.08,
Department of Health,Salisbury NHS Foundation Trust,26-Feb-16,CLEANING MATERIALS PRODUCTS SUNDRIES,Facilities Directorate,NHS LOGISTICS,1016208724,11.36,
Department of Health,Salisbury NHS Foundation Trust,26-Feb-16,DISPOSABLE THEATRE DRAPES WIPES,Facilities Directorate,NHS LOGISTICS,1016208724,20.01,
Department of Health,Salisbury NHS Foundation Trust,26-Feb-16,DRESSINGS - PRE STERILE,Critical care,NHS LOGISTICS,1016208724,0.15,
Department of Health,Salisbury NHS Foundation Trust,26-Feb-16,MEDSURGCONS - OTHER,Critical care,NHS LOGISTICS,1016208724,3.99,
Department of Health,Salisbury NHS Foundation Trust,26-Feb-16,TISSUES HAND TOWELS & TOILET PAPER,Surgery,NHS LOGISTICS,1016208724,1.13,
Department of Health,Salisbury NHS Foundation Trust,26-Feb-16,DISPOSABLE THEATRE DRAPES WIPES,Surgery,NHS LOGISTICS,1016208724,0.65,
Department of Health,Salisbury NHS Foundation Trust,26-Feb-16,LAB EQUIP-LABORATORY APPARATUS,Clinical Support and Family Services,NHS LOGISTICS,1016208724,47.47,
Department of Health,Salisbury NHS Foundation Trust,26-Feb-16,DRESSINGS - PRE STERILE,Medicine,NHS LOGISTICS,1016208724,1.05,
Department of Health,Salisbury NHS Foundation Trust,26-Feb-16,DRESSINGS - PRE STERILE,Medicine,NHS LOGISTICS,1016208724,0.62,
Department of Health,Salisbury NHS Foundation Trust,26-Feb-16,DRESSINGS - PRE STERILE,Medicine,NHS LOGISTICS,1016208724,2.75,
Department of Health,Salisbury NHS Foundation Trust,26-Feb-16,DRESSINGS - PRE STERILE,Medicine,NHS LOGISTICS,1016208724,4.05,
Department of Health,Salisbury NHS Foundation Trust,26-Feb-16,LAB EQUIP-ANALYSERS,Directorate of Finance and Procurement,NHS LOGISTICS,1016208724,12.39,
Department of Health,Salisbury NHS Foundation Trust,26-Feb-16,LAB EQUIP-ANALYSERS,Directorate of Finance and Procurement,NHS LOGISTICS,1016208724,48,
Department of Health,Salisbury NHS Foundation Trust,26-Feb-16,MEDSURGCONS - OTHER,Directorate of Finance and Procurement,NHS LOGISTICS,1016208724,90.24,
Department of Health,Salisbury NHS Foundation Trust,26-Feb-16,DISPOSABLE THEATRE DRAPES WIPES,Directorate of Finance and Procurement,NHS LOGISTICS,1016208724,6.3,
Department of Health,Salisbury NHS Foundation Trust,26-Feb-16,DISPOSABLE THEATRE DRAPES WIPES,Directorate of Finance and Procurement,NHS LOGISTICS,1016208724,14.6,
Department of Health,Salisbury NHS Foundation Trust,26-Feb-16,MEDSURGCONS - OTHER,Surgery,NHS LOGISTICS,1016208724,4.33,
Department of Health,Salisbury NHS Foundation Trust,26-Feb-16,OTHER MEDICAL SUPPLIES,Critical care,NHS LOGISTICS,1016208724,35,
Department of Health,Salisbury NHS Foundation Trust,26-Feb-16,OTHER MEDICAL SUPPLIES,Critical care,NHS LOGISTICS,1016208724,34,
Department of Health,Salisbury NHS Foundation Trust,26-Feb-16,MEDSURGCONS - OTHER,Clinical Support and Family Services,NHS LOGISTICS,1016208724,4.46,
Department of Health,Salisbury NHS Foundation Trust,26-Feb-16,DISPOSABLE THEATRE DRAPES WIPES,Surgery,NHS LOGISTICS,1016208724,15.57,
Department of Health,Salisbury NHS Foundation Trust,26-Feb-16,BAGS SACKS - OTHER,Clinical Support and Family Services,NHS LOGISTICS,1016208724,1.13,
Department of Health,Salisbury NHS Foundation Trust,26-Feb-16,ELECTRICAL EQUIPMENT x,Clinical Support and Family Services,NHS LOGISTICS,1016208724,0.33,
Department of Health,Salisbury NHS Foundation Trust,26-Feb-16,MEDSURGCONS - OTHER,Clinical Support and Family Services,NHS LOGISTICS,1016208724,3.63,
Department of Health,Salisbury NHS Foundation Trust,26-Feb-16,TOILETRIES PERSONAL HYGIENE PRODUCTS,Clinical Support and Family Services,NHS LOGISTICS,1016208724,0.64,
Department of Health,Salisbury NHS Foundation Trust,26-Feb-16,PATIENT APPLIANCES,Clinical Support and Family Services,NHS LOGISTICS,1016208724,9.13,
Department of Health,Salisbury NHS Foundation Trust,26-Feb-16,TISSUES HAND TOWELS & TOILET PAPER,Clinical Support and Family Services,NHS LOGISTICS,1016208724,2.08,
Department of Health,Salisbury NHS Foundation Trust,26-Feb-16,DRESSINGS - PRE STERILE,Clinical Support and Family Services,NHS LOGISTICS,1016208724,0.14,
Department of Health,Salisbury NHS Foundation Trust,26-Feb-16,DISPOSABLE THEATRE DRAPES WIPES,Clinical Support and Family Services,NHS LOGISTICS,1016208724,0.65,
Department of Health,Salisbury NHS Foundation Trust,26-Feb-16,ELECTRICAL EQUIPMENT x,Facilities Directorate,NHS LOGISTICS,1016208724,18.8,
Department of Health,Salisbury NHS Foundation Trust,26-Feb-16,TISSUES HAND TOWELS & TOILET PAPER,Critical care,NHS LOGISTICS,1016208724,1.13,
Department of Health,Salisbury NHS Foundation Trust,26-Feb-16,PATIENT APPLIANCES,Critical care,NHS LOGISTICS,1016208724,1.09,
Department of Health,Salisbury NHS Foundation Trust,26-Feb-16,TISSUES HAND TOWELS & TOILET PAPER,Critical care,NHS LOGISTICS,1016208724,0.19,
Department of Health,Salisbury NHS Foundation Trust,26-Feb-16,DISPOSABLE THEATRE DRAPES WIPES,Critical care,NHS LOGISTICS,1016208724,0.65,
Department of Health,Salisbury NHS Foundation Trust,26-Feb-16,DISPOSABLE THEATRE DRAPES WIPES,Clinical Support and Family Services,NHS LOGISTICS,1016208724,0.65,
Department of Health,Salisbury NHS Foundation Trust,26-Feb-16,OTHER MEDICAL SUPPLIES,Surgery,NHS LOGISTICS,1016208724,1.28,
Department of Health,Salisbury NHS Foundation Trust,26-Feb-16,DRESSINGS - PRE STERILE,Surgery,NHS LOGISTICS,1016208724,4.08,
Department of Health,Salisbury NHS Foundation Trust,26-Feb-16,TISSUES HAND TOWELS & TOILET PAPER,Surgery,NHS LOGISTICS,1016208724,1.13,
Department of Health,Salisbury NHS Foundation Trust,26-Feb-16,TISSUES HAND TOWELS & TOILET PAPER,Surgery,NHS LOGISTICS,1016208724,3.21,
Department of Health,Salisbury NHS Foundation Trust,26-Feb-16,DRESSINGS - PRE STERILE,Surgery,NHS LOGISTICS,1016208724,1.18,
Department of Health,Salisbury NHS Foundation Trust,26-Feb-16,OTHER MEDICAL SUPPLIES,Surgery,NHS LOGISTICS,1016208724,0.57,
Department of Health,Salisbury NHS Foundation Trust,26-Feb-16,DRESSINGS - PRE STERILE,Surgery,NHS LOGISTICS,1016208724,0.15,
Department of Health,Salisbury NHS Foundation Trust,26-Feb-16,DISPOSABLE THEATRE DRAPES WIPES,Surgery,NHS LOGISTICS,1016208724,0.65,
Department of Health,Salisbury NHS Foundation Trust,26-Feb-16,TISSUES HAND TOWELS & TOILET PAPER,Clinical Support and Family Services,NHS LOGISTICS,1016208724,1.51,
Department of Health,Salisbury NHS Foundation Trust,26-Feb-16,TISSUES HAND TOWELS & TOILET PAPER,Clinical Support and Family Services,NHS LOGISTICS,1016208724,0.19,
Department of Health,Salisbury NHS Foundation Trust,26-Feb-16,PATIENT APPLIANCES,Clinical Support and Family Services,NHS LOGISTICS,1016208724,5.77,
Department of Health,Salisbury NHS Foundation Trust,26-Feb-16,MEDSURGCONS - OTHER,Clinical Support and Family Services,NHS LOGISTICS,1016208724,7.37,
Department of Health,Salisbury NHS Foundation Trust,26-Feb-16,BEVERAGES & AMBIENT FOOD,Surgery,NHS LOGISTICS,1016208724,2.27,
Department of Health,Salisbury NHS Foundation Trust,26-Feb-16,TISSUES HAND TOWELS & TOILET PAPER,Surgery,NHS LOGISTICS,1016208724,0.64,
Department of Health,Salisbury NHS Foundation Trust,26-Feb-16,OTHER MEDICAL SUPPLIES,Surgery,NHS LOGISTICS,1016208724,0.57,
Department of Health,Salisbury NHS Foundation Trust,26-Feb-16,BEVERAGES & AMBIENT FOOD,Surgery,NHS LOGISTICS,1016208724,6.02,
Department of Health,Salisbury NHS Foundation Trust,26-Feb-16,DRUGS,Surgery,NHS LOGISTICS,1016208724,4.66,
Department of Health,Salisbury NHS Foundation Trust,26-Feb-16,BEVERAGES & AMBIENT FOOD,Surgery,NHS LOGISTICS,1016208724,0.56,
Department of Health,Salisbury NHS Foundation Trust,26-Feb-16,DISPOSABLE THEATRE DRAPES WIPES,Surgery,NHS LOGISTICS,1016208724,1.3,
Department of Health,Salisbury NHS Foundation Trust,26-Feb-16,TISSUES HAND TOWELS & TOILET PAPER,Medicine,NHS LOGISTICS,1016208724,0.38,
Department of Health,Salisbury NHS Foundation Trust,26-Feb-16,CLEANING MATERIALS PRODUCTS SUNDRIES,Medicine,NHS LOGISTICS,1016208724,1.09,
Department of Health,Salisbury NHS Foundation Trust,26-Feb-16,TISSUES HAND TOWELS & TOILET PAPER,Medicine,NHS LOGISTICS,1016208724,0.19,
Department of Health,Salisbury NHS Foundation Trust,26-Feb-16,M & S EQUIPELECTEQUIPINST - OTHER,Medicine,NHS LOGISTICS,1016208724,0.44,
Department of Health,Salisbury NHS Foundation Trust,26-Feb-16,PATIENT APPLIANCES,Medicine,NHS LOGISTICS,1016208724,0.83,
Department of Health,Salisbury NHS Foundation Trust,26-Feb-16,PATIENT APPLIANCES,Medicine,NHS LOGISTICS,1016208724,0.83,
Department of Health,Salisbury NHS Foundation Trust,26-Feb-16,MEDSURGCONS - OTHER,Medicine,NHS LOGISTICS,1016208724,1.08,
Department of Health,Salisbury NHS Foundation Trust,26-Feb-16,TISSUES HAND TOWELS & TOILET PAPER,Medicine,NHS LOGISTICS,1016208724,0.07,
Department of Health,Salisbury NHS Foundation Trust,26-Feb-16,PATIENT APPLIANCES,Medicine,NHS LOGISTICS,1016208724,0.37,
Department of Health,Salisbury NHS Foundation Trust,26-Feb-16,DISPOSABLE THEATRE DRAPES WIPES,Medicine,NHS LOGISTICS,1016208724,0.65,
Department of Health,Salisbury NHS Foundation Trust,26-Feb-16,BAGS SACKS - OTHER,Critical care,NHS LOGISTICS,1016208724,0.87,
Department of Health,Salisbury NHS Foundation Trust,26-Feb-16,TISSUES HAND TOWELS & TOILET PAPER,Critical care,NHS LOGISTICS,1016208724,1.13,
Department of Health,Salisbury NHS Foundation Trust,26-Feb-16,MEDSURGCONS - OTHER,Critical care,NHS LOGISTICS,1016208724,0.12,
Department of Health,Salisbury NHS Foundation Trust,26-Feb-16,NON DISPOSABLE BED LINEN,Critical care,NHS LOGISTICS,1016208724,3.91,
Department of Health,Salisbury NHS Foundation Trust,26-Feb-16,OTHER MEDICAL SUPPLIES,Critical care,NHS LOGISTICS,1016208724,1.18,
Department of Health,Salisbury NHS Foundation Trust,26-Feb-16,MEDSURGCONS - OTHER,Critical care,NHS LOGISTICS,1016208724,3.99,
Department of Health,Salisbury NHS Foundation Trust,26-Feb-16,TISSUES HAND TOWELS & TOILET PAPER,Critical care,NHS LOGISTICS,1016208724,0.07,
Department of Health,Salisbury NHS Foundation Trust,26-Feb-16,DISPOSABLE THEATRE DRAPES WIPES,Surgery,NHS LOGISTICS,1016208724,2.28,
Department of Health,Salisbury NHS Foundation Trust,26-Feb-16,MEDSURGCONS - OTHER,Surgery,NHS LOGISTICS,1016208724,18.86,
Department of Health,Salisbury NHS Foundation Trust,26-Feb-16,MEDSURGCONS - OTHER,Surgery,NHS LOGISTICS,1016208724,18.36,
Department of Health,Salisbury NHS Foundation Trust,26-Feb-16,MEDSURGCONS - OTHER,Critical care,NHS LOGISTICS,1016208724,102.04,
Department of Health,Salisbury NHS Foundation Trust,26-Feb-16,MEDSURGCONS - OTHER,Surgery,NHS LOGISTICS,1016208724,3.85,
Department of Health,Salisbury NHS Foundation Trust,26-Feb-16,TUBES,Surgery,NHS LOGISTICS,1016208724,1.24,
Department of Health,Salisbury NHS Foundation Trust,26-Feb-16,TISSUES HAND TOWELS & TOILET PAPER,Surgery,NHS LOGISTICS,1016208724,0.22,
Department of Health,Salisbury NHS Foundation Trust,26-Feb-16,PATIENT APPLIANCES,Surgery,NHS LOGISTICS,1016208724,3.3,
Department of Health,Salisbury NHS Foundation Trust,26-Feb-16,CLEANING MATERIALS PRODUCTS SUNDRIES,Medicine,NHS LOGISTICS,1016208724,0.4,
Department of Health,Salisbury NHS Foundation Trust,26-Feb-16,TISSUES HAND TOWELS & TOILET PAPER,Medicine,NHS LOGISTICS,1016208724,0.38,
Department of Health,Salisbury NHS Foundation Trust,26-Feb-16,PATIENT APPLIANCES,Medicine,NHS LOGISTICS,1016208724,1.83,
Department of Health,Salisbury NHS Foundation Trust,26-Feb-16,TISSUES HAND TOWELS & TOILET PAPER,Human Resources,NHS LOGISTICS,1016208724,1.31,
Department of Health,Salisbury NHS Foundation Trust,26-Feb-16,TOILETRIES PERSONAL HYGIENE PRODUCTS,Human Resources,NHS LOGISTICS,1016208724,6.68,
Department of Health,Salisbury NHS Foundation Trust,26-Feb-16,DRESSINGS - PRE STERILE,Medicine,NHS LOGISTICS,1016208724,26.12,
Department of Health,Salisbury NHS Foundation Trust,26-Feb-16,DRESSINGS - PRE STERILE,Surgery,NHS LOGISTICS,1016208724,40.88,
Department of Health,Salisbury NHS Foundation Trust,26-Feb-16,MEDSURGCONS - OTHER,Surgery,NHS LOGISTICS,1016208724,12.72,
Department of Health,Salisbury NHS Foundation Trust,26-Feb-16,M & S EQUIPELECTEQUIPINST - OTHER,Clinical Support and Family Services,NHS LOGISTICS,1016208724,26.04,
Department of Health,Salisbury NHS Foundation Trust,26-Feb-16,DRESSINGS - PRE STERILE,Clinical Support and Family Services,NHS LOGISTICS,1016208724,3.02,
Department of Health,Salisbury NHS Foundation Trust,26-Feb-16,DRESSINGS - PRE STERILE,Clinical Support and Family Services,NHS LOGISTICS,1016208724,10.42,
Department of Health,Salisbury NHS Foundation Trust,26-Feb-16,DRESSINGS - PRE STERILE,Clinical Support and Family Services,NHS LOGISTICS,1016208724,12.47,
Department of Health,Salisbury NHS Foundation Trust,26-Feb-16,DRESSINGS - PRE STERILE,Clinical Support and Family Services,NHS LOGISTICS,1016208724,13.31,
Department of Health,Salisbury NHS Foundation Trust,26-Feb-16,DRESSINGS - PRE STERILE,Clinical Support and Family Services,NHS LOGISTICS,1016208724,1.18,
Department of Health,Salisbury NHS Foundation Trust,26-Feb-16,DRESSINGS - PRE STERILE,Clinical Support and Family Services,NHS LOGISTICS,1016208724,7.52,
Department of Health,Salisbury NHS Foundation Trust,26-Feb-16,DRESSINGS - PRE STERILE,Clinical Support and Family Services,NHS LOGISTICS,1016208724,6.03,
Department of Health,Salisbury NHS Foundation Trust,26-Feb-16,TOILETRIES PERSONAL HYGIENE PRODUCTS,Clinical Support and Family Services,NHS LOGISTICS,1016208724,1.32,
Department of Health,Salisbury NHS Foundation Trust,26-Feb-16,DRUGS,Clinical Support and Family Services,NHS LOGISTICS,1016208724,16.32,
Department of Health,Salisbury NHS Foundation Trust,26-Feb-16,DRUGS,Clinical Support and Family Services,NHS LOGISTICS,1016208724,9.1,
Department of Health,Salisbury NHS Foundation Trust,26-Feb-16,MEDSURGCONS-SUTURES,Clinical Support and Family Services,NHS LOGISTICS,1016208724,100.62,
Department of Health,Salisbury NHS Foundation Trust,26-Feb-16,DISPOSABLE THEATRE DRAPES WIPES,Clinical Support and Family Services,NHS LOGISTICS,1016208724,2.59,
Department of Health,Salisbury NHS Foundation Trust,26-Feb-16,SURGICAL INSTRUMENTS: GENERAL,Surgery,NHS LOGISTICS,1016208724,46.4,
Department of Health,Salisbury NHS Foundation Trust,26-Feb-16,PATIENTS INCONTINENCE,Medicine,NHS LOGISTICS,1016208724,10.17,
Department of Health,Salisbury NHS Foundation Trust,26-Feb-16,PATIENTS BEDWEAR UNISEX,Critical care,NHS LOGISTICS,1016208724,13.09,
Department of Health,Salisbury NHS Foundation Trust,26-Feb-16,PATIENTS BEDWEAR UNISEX,Critical care,NHS LOGISTICS,1016208724,13.09,
Department of Health,Salisbury NHS Foundation Trust,26-Feb-16,MEDSURGCONS - OTHER,Medicine,NHS LOGISTICS,1016208724,3.45,
Department of Health,Salisbury NHS Foundation Trust,26-Feb-16,MEDSURGCONS - OTHER,Critical care,NHS LOGISTICS,1016208724,4.29,
Department of Health,Salisbury NHS Foundation Trust,26-Feb-16,TISSUES HAND TOWELS & TOILET PAPER,Critical care,NHS LOGISTICS,1016208724,4.24,
Department of Health,Salisbury NHS Foundation Trust,26-Feb-16,NON DISPOSABLE BED LINEN,Critical care,NHS LOGISTICS,1016208724,6.02,
Department of Health,Salisbury NHS Foundation Trust,26-Feb-16,MEDSURGCONS - OTHER,Critical care,NHS LOGISTICS,1016208724,2.39,
Department of Health,Salisbury NHS Foundation Trust,26-Feb-16,PATIENT APPLIANCES,Critical care,NHS LOGISTICS,1016208724,1.66,
Department of Health,Salisbury NHS Foundation Trust,26-Feb-16,PATIENT APPLIANCES,Critical care,NHS LOGISTICS,1016208724,32.95,
Department of Health,Salisbury NHS Foundation Trust,26-Feb-16,TISSUES HAND TOWELS & TOILET PAPER,Surgery,NHS LOGISTICS,1016208724,0.14,
Department of Health,Salisbury NHS Foundation Trust,26-Feb-16,TISSUES HAND TOWELS & TOILET PAPER,Surgery,NHS LOGISTICS,1016208724,0.75,
Department of Health,Salisbury NHS Foundation Trust,26-Feb-16,TISSUES HAND TOWELS & TOILET PAPER,Surgery,NHS LOGISTICS,1016208724,0.28,
Department of Health,Salisbury NHS Foundation Trust,26-Feb-16,ADULTS HEARING AIDS,Surgery,NHS LOGISTICS,1016208724,747.48,
Department of Health,Salisbury NHS Foundation Trust,26-Feb-16,ADULTS HEARING AIDS,Surgery,NHS LOGISTICS,1016208724,77.43,
Department of Health,Salisbury NHS Foundation Trust,26-Feb-16,DRESSINGS - PRE STERILE,Surgery,NHS LOGISTICS,1016208724,3.79,
Department of Health,Salisbury NHS Foundation Trust,26-Feb-16,TUBES,Medicine,NHS LOGISTICS,1016208724,2.54,
Department of Health,Salisbury NHS Foundation Trust,26-Feb-16,TISSUES HAND TOWELS & TOILET PAPER,Medicine,NHS LOGISTICS,1016208724,0.38,
Department of Health,Salisbury NHS Foundation Trust,26-Feb-16,DISPOSABLE THEATRE DRAPES WIPES,Medicine,NHS LOGISTICS,1016208724,2.28,
Department of Health,Salisbury NHS Foundation Trust,26-Feb-16,DRESSINGS - PRE STERILE,Medicine,NHS LOGISTICS,1016208724,0.75,
Department of Health,Salisbury NHS Foundation Trust,26-Feb-16,DRESSINGS - PRE STERILE,Medicine,NHS LOGISTICS,1016208724,1.15,
Department of Health,Salisbury NHS Foundation Trust,26-Feb-16,DISPOSABLE THEATRE DRAPES WIPES,Medicine,NHS LOGISTICS,1016208724,1.3,
Department of Health,Salisbury NHS Foundation Trust,26-Feb-16,MEDSURGCONS - OTHER,Clinical Support and Family Services,NHS LOGISTICS,1016208724,41.97,
Department of Health,Salisbury NHS Foundation Trust,26-Feb-16,OTHER MEDICAL SUPPLIES,Surgery,NHS LOGISTICS,1016208724,101.14,
Department of Health,Salisbury NHS Foundation Trust,26-Feb-16,TISSUES HAND TOWELS & TOILET PAPER,Clinical Support and Family Services,NHS LOGISTICS,1016208724,8.32,
Department of Health,Salisbury NHS Foundation Trust,26-Feb-16,DRESSINGS - PRE STERILE,Clinical Support and Family Services,NHS LOGISTICS,1016208724,1.33,
Department of Health,Salisbury NHS Foundation Trust,26-Feb-16,NON DISPOSABLE BED LINEN,Clinical Support and Family Services,NHS LOGISTICS,1016208724,2.63,
Department of Health,Salisbury NHS Foundation Trust,26-Feb-16,DISPOSABLE THEATRE DRAPES WIPES,Clinical Support and Family Services,NHS LOGISTICS,1016208724,0.65,
Department of Health,Salisbury NHS Foundation Trust,26-Feb-16,OTHER MEDICAL SUPPLIES,Medicine,NHS LOGISTICS,1016208724,1.97,
Department of Health,Salisbury NHS Foundation Trust,26-Feb-16,TISSUES HAND TOWELS & TOILET PAPER,Medicine,NHS LOGISTICS,1016208724,0.38,
Department of Health,Salisbury NHS Foundation Trust,26-Feb-16,TUBES,Medicine,NHS LOGISTICS,1016208724,1.24,
Department of Health,Salisbury NHS Foundation Trust,26-Feb-16,PATIENT APPLIANCES,Medicine,NHS LOGISTICS,1016208724,0.83,
Department of Health,Salisbury NHS Foundation Trust,26-Feb-16,MEDSURGCONS - OTHER,Medicine,NHS LOGISTICS,1016208724,2.11,
Department of Health,Salisbury NHS Foundation Trust,26-Feb-16,MEDSURGCONS - OTHER,Medicine,NHS LOGISTICS,1016208724,1.08,
Department of Health,Salisbury NHS Foundation Trust,26-Feb-16,TISSUES HAND TOWELS & TOILET PAPER,Medicine,NHS LOGISTICS,1016208724,0.29,
Department of Health,Salisbury NHS Foundation Trust,26-Feb-16,DISPOSABLE THEATRE DRAPES WIPES,Medicine,NHS LOGISTICS,1016208724,1.3,
Department of Health,Salisbury NHS Foundation Trust,26-Feb-16,ANAESTHETIC EQUIPMENT ACCESSORIES,Critical Care,NHS LOGISTICS,1016208724,3.78,
Department of Health,Salisbury NHS Foundation Trust,26-Feb-16,MEDSURGCONS - OTHER,Critical Care,NHS LOGISTICS,1016208724,11.61,
Department of Health,Salisbury NHS Foundation Trust,26-Feb-16,DRESSINGS - PRE STERILE,Clinical Support and Family Services,NHS LOGISTICS,1016208724,0.39,
Department of Health,Salisbury NHS Foundation Trust,26-Feb-16,PATIENTS BEDWEAR UNISEX,Clinical Support and Family Services,NHS LOGISTICS,1016208724,13.09,
Department of Health,Salisbury NHS Foundation Trust,26-Feb-16,MEDSURGCONS - OTHER,Clinical Support and Family Services,NHS LOGISTICS,1016208724,9.07,
Department of Health,Salisbury NHS Foundation Trust,26-Feb-16,CLEANING MATERIALS PRODUCTS SUNDRIES,Clinical Support and Family Services,NHS LOGISTICS,1016208724,1.41,
Department of Health,Salisbury NHS Foundation Trust,26-Feb-16,TOILETRIES PERSONAL HYGIENE PRODUCTS,Clinical Support and Family Services,NHS LOGISTICS,1016208724,0.95,
Department of Health,Salisbury NHS Foundation Trust,26-Feb-16,DRESSINGS - PRE STERILE,Clinical Support and Family Services,NHS LOGISTICS,1016208724,0.07,
Department of Health,Salisbury NHS Foundation Trust,26-Feb-16,MEDSURGCONS - OTHER,Clinical Support and Family Services,NHS LOGISTICS,1016208724,4.47,
Department of Health,Salisbury NHS Foundation Trust,26-Feb-16,M & S EQUIPELECTEQUIPINST - OTHER,Clinical Support and Family Services,NHS LOGISTICS,1016208724,0.3,
Department of Health,Salisbury NHS Foundation Trust,26-Feb-16,TUBES,Clinical Support and Family Services,NHS LOGISTICS,1016208724,1.24,
Department of Health,Salisbury NHS Foundation Trust,26-Feb-16,DRESSINGS - PRE STERILE,Surgery,NHS LOGISTICS,1016208724,1.38,
Department of Health,Salisbury NHS Foundation Trust,26-Feb-16,DRESSINGS - PRE STERILE,Surgery,NHS LOGISTICS,1016208724,0.77,
Department of Health,Salisbury NHS Foundation Trust,26-Feb-16,DRESSINGS - PRE STERILE,Surgery,NHS LOGISTICS,1016208724,1.04,
Department of Health,Salisbury NHS Foundation Trust,26-Feb-16,DRESSINGS - PRE STERILE,Surgery,NHS LOGISTICS,1016208724,0.64,
Department of Health,Salisbury NHS Foundation Trust,26-Feb-16,DRESSINGS - PRE STERILE,Surgery,NHS LOGISTICS,1016208724,1.6,
Department of Health,Salisbury NHS Foundation Trust,26-Feb-16,DRESSINGS - PRE STERILE,Surgery,NHS LOGISTICS,1016208724,1.85,
Department of Health,Salisbury NHS Foundation Trust,26-Feb-16,DRESSINGS - PRE STERILE,Surgery,NHS LOGISTICS,1016208724,0.76,
Department of Health,Salisbury NHS Foundation Trust,26-Feb-16,COOKING & KITCHEN UTENSILS,Surgery,NHS LOGISTICS,1016208724,3.4,
Department of Health,Salisbury NHS Foundation Trust,26-Feb-16,DISPOSABLE THEATRE DRAPES WIPES,Surgery,NHS LOGISTICS,1016208724,8.95,
Department of Health,Salisbury NHS Foundation Trust,26-Feb-16,TISSUES HAND TOWELS & TOILET PAPER,Surgery,NHS LOGISTICS,1016208724,0.96,
Department of Health,Salisbury NHS Foundation Trust,26-Feb-16,DRUGS,Surgery,NHS LOGISTICS,1016208724,4.98,
Department of Health,Salisbury NHS Foundation Trust,26-Feb-16,MEDSURGCONS - OTHER,Surgery,NHS LOGISTICS,1016208724,4.3,
Department of Health,Salisbury NHS Foundation Trust,26-Feb-16,DRUGS,Surgery,NHS LOGISTICS,1016208724,4.66,
Department of Health,Salisbury NHS Foundation Trust,26-Feb-16,BEVERAGES & AMBIENT FOOD,Surgery,NHS LOGISTICS,1016208724,0.56,
Department of Health,Salisbury NHS Foundation Trust,26-Feb-16,PATIENT APPLIANCES,Surgery,NHS LOGISTICS,1016208724,2.2,
Department of Health,Salisbury NHS Foundation Trust,26-Feb-16,DISPOSABLE THEATRE DRAPES WIPES,Surgery,NHS LOGISTICS,1016208724,1.3,
Department of Health,Salisbury NHS Foundation Trust,26-Feb-16,DRESSINGS - PRE STERILE,Surgery,NHS LOGISTICS,1016208724,5.77,
Department of Health,Salisbury NHS Foundation Trust,26-Feb-16,ELECTRICAL EQUIPMENT x,Surgery,NHS LOGISTICS,1016208724,0.67,
Department of Health,Salisbury NHS Foundation Trust,26-Feb-16,ANAESTHETIC EQUIPMENT ACCESSORIES,Surgery,NHS LOGISTICS,1016208724,59.89,
Department of Health,Salisbury NHS Foundation Trust,26-Feb-16,DRESSINGS - PRE STERILE,Medicine,NHS LOGISTICS,1016208724,0.9,
Department of Health,Salisbury NHS Foundation Trust,26-Feb-16,DRESSINGS - PRE STERILE,Medicine,NHS LOGISTICS,1016208724,1.23,
Department of Health,Salisbury NHS Foundation Trust,26-Feb-16,DRESSINGS - PRE STERILE,Medicine,NHS LOGISTICS,1016208724,1.23,
Department of Health,Salisbury NHS Foundation Trust,26-Feb-16,DRESSINGS - PRE STERILE,Medicine,NHS LOGISTICS,1016208724,1.68,
Department of Health,Salisbury NHS Foundation Trust,26-Feb-16,DRESSINGS - PRE STERILE,Medicine,NHS LOGISTICS,1016208724,0.49,
Department of Health,Salisbury NHS Foundation Trust,26-Feb-16,DRESSINGS - PRE STERILE,Medicine,NHS LOGISTICS,1016208724,0.37,
Department of Health,Salisbury NHS Foundation Trust,26-Feb-16,PATIENT APPLIANCES,Medicine,NHS LOGISTICS,1016208724,1.3,
Department of Health,Salisbury NHS Foundation Trust,26-Feb-16,MEDSURGCONS - OTHER,Medicine,NHS LOGISTICS,1016208724,74.29,
Department of Health,Salisbury NHS Foundation Trust,26-Feb-16,ANAESTHETIC EQUIPMENT ACCESSORIES,Medicine,NHS LOGISTICS,1016208724,11.29,
Department of Health,Salisbury NHS Foundation Trust,26-Feb-16,MEDSURGCONS - OTHER,Medicine,NHS LOGISTICS,1016208724,23.91,
Department of Health,Salisbury NHS Foundation Trust,26-Feb-16,MEDSURGCONS - OTHER,Medicine,NHS LOGISTICS,1016208724,1.08,
Department of Health,Salisbury NHS Foundation Trust,26-Feb-16,TISSUES HAND TOWELS & TOILET PAPER,Medicine,NHS LOGISTICS,1016208724,0.07,
Department of Health,Salisbury NHS Foundation Trust,26-Feb-16,TOILETRIES PERSONAL HYGIENE PRODUCTS,Medicine,NHS LOGISTICS,1016208724,0.95,
Department of Health,Salisbury NHS Foundation Trust,26-Feb-16,LAB EQUIP-LABORATORY APPARATUS,Medicine,NHS LOGISTICS,1016208724,2.77,
Department of Health,Salisbury NHS Foundation Trust,26-Feb-16,DRESSINGS - PRE STERILE,Medicine,NHS LOGISTICS,1016208724,0.41,
Department of Health,Salisbury NHS Foundation Trust,26-Feb-16,PATIENT APPLIANCES,Medicine,NHS LOGISTICS,1016208724,3.27,
Department of Health,Salisbury NHS Foundation Trust,26-Feb-16,PATIENT APPLIANCES,Medicine,NHS LOGISTICS,1016208724,2.2,
Department of Health,Salisbury NHS Foundation Trust,26-Feb-16,DISPOSABLE THEATRE DRAPES WIPES,Medicine,NHS LOGISTICS,1016208724,1.3,
Department of Health,Salisbury NHS Foundation Trust,26-Feb-16,OTHER MEDICAL SUPPLIES,Critical Care,NHS LOGISTICS,1016208724,9.45,
Department of Health,Salisbury NHS Foundation Trust,26-Feb-16,ELECTRICAL EQUIPMENT x,Medicine,NHS LOGISTICS,1016208724,0.33,
Department of Health,Salisbury NHS Foundation Trust,26-Feb-16,TISSUES HAND TOWELS & TOILET PAPER,Medicine,NHS LOGISTICS,1016208724,0.75,
Department of Health,Salisbury NHS Foundation Trust,26-Feb-16,TOILETRIES PERSONAL HYGIENE PRODUCTS,Medicine,NHS LOGISTICS,1016208724,0.97,
Department of Health,Salisbury NHS Foundation Trust,26-Feb-16,TISSUES HAND TOWELS & TOILET PAPER,Medicine,NHS LOGISTICS,1016208724,0.15,
Department of Health,Salisbury NHS Foundation Trust,26-Feb-16,PATIENT APPLIANCES,Medicine,NHS LOGISTICS,1016208724,1.63,
Department of Health,Salisbury NHS Foundation Trust,26-Feb-16,DRESSINGS - PRE STERILE,Medicine,NHS LOGISTICS,1016208724,0.83,
Department of Health,Salisbury NHS Foundation Trust,26-Feb-16,MEDSURGCONS - OTHER,Medicine,NHS LOGISTICS,1016208724,1.08,
Department of Health,Salisbury NHS Foundation Trust,26-Feb-16,MEDSURGCONS - OTHER,Medicine,NHS LOGISTICS,1016208724,1.08,
Department of Health,Salisbury NHS Foundation Trust,26-Feb-16,TISSUES HAND TOWELS & TOILET PAPER,Medicine,NHS LOGISTICS,1016208724,0.22,
Department of Health,Salisbury NHS Foundation Trust,26-Feb-16,M & S EQUIPELECTEQUIPINST - OTHER,Medicine,NHS LOGISTICS,1016208724,0.3,
Department of Health,Salisbury NHS Foundation Trust,26-Feb-16,DISPOSABLE THEATRE DRAPES WIPES,Medicine,NHS LOGISTICS,1016208724,1.3,
Department of Health,Salisbury NHS Foundation Trust,26-Feb-16,PATIENTS FOOTWEAR,Critical care,NHS LOGISTICS,1016208724,18.28,
Department of Health,Salisbury NHS Foundation Trust,26-Feb-16,TISSUES HAND TOWELS & TOILET PAPER,Critical care,NHS LOGISTICS,1016208724,2.08,
Department of Health,Salisbury NHS Foundation Trust,26-Feb-16,DRESSINGS - PRE STERILE,Critical care,NHS LOGISTICS,1016208724,6.01,
Department of Health,Salisbury NHS Foundation Trust,26-Feb-16,DRESSINGS - PRE STERILE,Critical care,NHS LOGISTICS,1016208724,8.75,
Department of Health,Salisbury NHS Foundation Trust,26-Feb-16,DRESSINGS - PRE STERILE,Critical care,NHS LOGISTICS,1016208724,4.05,
Department of Health,Salisbury NHS Foundation Trust,26-Feb-16,DRESSINGS - PRE STERILE,Critical care,NHS LOGISTICS,1016208724,4.38,
Department of Health,Salisbury NHS Foundation Trust,26-Feb-16,DRESSINGS - PRE STERILE,Critical care,NHS LOGISTICS,1016208724,4.66,
Department of Health,Salisbury NHS Foundation Trust,26-Feb-16,DRESSINGS - PRE STERILE,Critical care,NHS LOGISTICS,1016208724,4.66,
Department of Health,Salisbury NHS Foundation Trust,26-Feb-16,DRESSINGS - PRE STERILE,Critical care,NHS LOGISTICS,1016208724,5.01,
Department of Health,Salisbury NHS Foundation Trust,26-Feb-16,DRESSINGS - PRE STERILE,Critical care,NHS LOGISTICS,1016208724,1.69,
Department of Health,Salisbury NHS Foundation Trust,26-Feb-16,DRESSINGS - PRE STERILE,Critical care,NHS LOGISTICS,1016208724,2.67,
Department of Health,Salisbury NHS Foundation Trust,26-Feb-16,DRESSINGS - PRE STERILE,Critical care,NHS LOGISTICS,1016208724,1.48,
Department of Health,Salisbury NHS Foundation Trust,26-Feb-16,DRESSINGS - PRE STERILE,Critical care,NHS LOGISTICS,1016208724,1.15,
Department of Health,Salisbury NHS Foundation Trust,26-Feb-16,PATIENTS FOOTWEAR,Medicine,NHS LOGISTICS,1016208724,2.82,
Department of Health,Salisbury NHS Foundation Trust,26-Feb-16,PATIENTS FOOTWEAR,Medicine,NHS LOGISTICS,1016208724,2.69,
Department of Health,Salisbury NHS Foundation Trust,26-Feb-16,PATIENTS FOOTWEAR,Medicine,NHS LOGISTICS,1016208724,1.88,
Department of Health,Salisbury NHS Foundation Trust,26-Feb-16,PATIENTS FOOTWEAR,Medicine,NHS LOGISTICS,1016208724,1.22,
Department of Health,Salisbury NHS Foundation Trust,26-Feb-16,MEDSURGCONS - OTHER,Clinical Support and Family Services,NHS LOGISTICS,1016208724,4.22,
Department of Health,Salisbury NHS Foundation Trust,26-Feb-16,TELECOMS - TELEPHONES,Surgery,NHS LOGISTICS,1016208724,10.51,
Department of Health,Salisbury NHS Foundation Trust,26-Feb-16,CLEANING MATERIALS PRODUCTS SUNDRIES,Surgery,NHS LOGISTICS,1016208724,5.47,
Department of Health,Salisbury NHS Foundation Trust,26-Feb-16,OTHER MEDICAL SUPPLIES,Surgery,NHS LOGISTICS,1016208724,44.79,
Department of Health,Salisbury NHS Foundation Trust,26-Feb-16,PATIENTS INCONTINENCE,Surgery,NHS LOGISTICS,1016208724,4.09,
Department of Health,Salisbury NHS Foundation Trust,26-Feb-16,PATIENTS INCONTINENCE,Surgery,NHS LOGISTICS,1016208724,2.73,
Department of Health,Salisbury NHS Foundation Trust,26-Feb-16,COOKING & KITCHEN UTENSILS,Facilities Directorate,NHS LOGISTICS,1016208724,4.83,
Department of Health,Salisbury NHS Foundation Trust,26-Feb-16,LIQUID REFRESHMENTS,Facilities Directorate,NHS LOGISTICS,1016208724,1.86,
Department of Health,Salisbury NHS Foundation Trust,26-Feb-16,LIQUID REFRESHMENTS,Facilities Directorate,NHS LOGISTICS,1016208724,3.47,
Department of Health,Salisbury NHS Foundation Trust,26-Feb-16,LIQUID REFRESHMENTS,Facilities Directorate,NHS LOGISTICS,1016208724,1.83,
Department of Health,Salisbury NHS Foundation Trust,26-Feb-16,BAGS SACKS - OTHER,Facilities Directorate,NHS LOGISTICS,1016208724,2.03,
Department of Health,Salisbury NHS Foundation Trust,26-Feb-16,LIQUID REFRESHMENTS,Facilities Directorate,NHS LOGISTICS,1016208724,2,
Department of Health,Salisbury NHS Foundation Trust,26-Feb-16,BAGS SACKS - OTHER,Facilities Directorate,NHS LOGISTICS,1016208724,1.44,
Department of Health,Salisbury NHS Foundation Trust,26-Feb-16,BEVERAGES & AMBIENT FOOD,Facilities Directorate,NHS LOGISTICS,1016208724,1.12,
Department of Health,Salisbury NHS Foundation Trust,26-Feb-16,LIQUID REFRESHMENTS,Facilities Directorate,NHS LOGISTICS,1016208724,0.58,
Department of Health,Salisbury NHS Foundation Trust,26-Feb-16,BAGS SACKS - OTHER,Facilities Directorate,NHS LOGISTICS,1016208724,3,
Department of Health,Salisbury NHS Foundation Trust,26-Feb-16,STATIONERY SUNDRIES,Facilities Directorate,NHS LOGISTICS,1016208724,0.08,
Department of Health,Salisbury NHS Foundation Trust,26-Feb-16,LIQUID REFRESHMENTS,Facilities Directorate,NHS LOGISTICS,1016208724,23.12,
Department of Health,Salisbury NHS Foundation Trust,26-Feb-16,LIQUID REFRESHMENTS,Facilities Directorate,NHS LOGISTICS,1016208724,1.24,
Department of Health,Salisbury NHS Foundation Trust,26-Feb-16,BEVERAGES & AMBIENT FOOD,Facilities Directorate,NHS LOGISTICS,1016208724,14.06,
Department of Health,Salisbury NHS Foundation Trust,26-Feb-16,COOKING & KITCHEN UTENSILS,Facilities Directorate,NHS LOGISTICS,1016208724,3.9,
Department of Health,Salisbury NHS Foundation Trust,26-Feb-16,STATIONERY SUNDRIES,Facilities Directorate,NHS LOGISTICS,1016208724,0.4,
Department of Health,Salisbury NHS Foundation Trust,26-Feb-16,COOKING & KITCHEN UTENSILS,Facilities Directorate,NHS LOGISTICS,1016208724,7.8,
Department of Health,Salisbury NHS Foundation Trust,26-Feb-16,OFFICE EQUIP MACHINERY  -  OTHER,Facilities Directorate,NHS LOGISTICS,1016208724,1.72,
Department of Health,Salisbury NHS Foundation Trust,26-Feb-16,BEVERAGES & AMBIENT FOOD,Facilities Directorate,NHS LOGISTICS,1016208724,3.77,
Department of Health,Salisbury NHS Foundation Trust,26-Feb-16,LIQUID REFRESHMENTS,Facilities Directorate,NHS LOGISTICS,1016208724,1.32,
Department of Health,Salisbury NHS Foundation Trust,26-Feb-16,BEVERAGES & AMBIENT FOOD,Facilities Directorate,NHS LOGISTICS,1016208724,2.77,
Department of Health,Salisbury NHS Foundation Trust,26-Feb-16,BEVERAGES & AMBIENT FOOD,Facilities Directorate,NHS LOGISTICS,1016208724,3.4,
Department of Health,Salisbury NHS Foundation Trust,26-Feb-16,BEVERAGES & AMBIENT FOOD,Facilities Directorate,NHS LOGISTICS,1016208724,10.01,
Department of Health,Salisbury NHS Foundation Trust,26-Feb-16,BEVERAGES & AMBIENT FOOD,Facilities Directorate,NHS LOGISTICS,1016208724,1.19,
Department of Health,Salisbury NHS Foundation Trust,26-Feb-16,TUBES,Critical care,NHS LOGISTICS,1016208724,2.48,
Department of Health,Salisbury NHS Foundation Trust,26-Feb-16,MEDSURGCONS - OTHER,Critical care,NHS LOGISTICS,1016208724,7.37,
Department of Health,Salisbury NHS Foundation Trust,26-Feb-16,ELECTRICAL EQUIPMENT x,Clinical Support and Family Services,NHS LOGISTICS,1016208724,0.33,
Department of Health,Salisbury NHS Foundation Trust,26-Feb-16,OTHER MEDICAL SUPPLIES,Clinical Support and Family Services,NHS LOGISTICS,1016208724,0.98,
Department of Health,Salisbury NHS Foundation Trust,26-Feb-16,DRESSINGS - PRE STERILE,Clinical Support and Family Services,NHS LOGISTICS,1016208724,0.22,
Department of Health,Salisbury NHS Foundation Trust,26-Feb-16,BABY TEXTURE MODIFIED FOODS,Clinical Support and Family Services,NHS LOGISTICS,1016208724,5.91,
Department of Health,Salisbury NHS Foundation Trust,26-Feb-16,TISSUES HAND TOWELS & TOILET PAPER,Clinical Support and Family Services,NHS LOGISTICS,1016208724,2.08,
Department of Health,Salisbury NHS Foundation Trust,26-Feb-16,SERVICES FROM NHS BODIES,Clinical Support and Family Services,NHS LOGISTICS,1016208724,1.32,
Department of Health,Salisbury NHS Foundation Trust,26-Feb-16,DRESSINGS - PRE STERILE,Clinical Support and Family Services,NHS LOGISTICS,1016208724,0.07,
Department of Health,Salisbury NHS Foundation Trust,26-Feb-16,DRESSINGS - PRE STERILE,Critical care,NHS LOGISTICS,1016208724,3.06,
Department of Health,Salisbury NHS Foundation Trust,26-Feb-16,SURGICAL INSTRUMENTS: GENERAL,Critical care,NHS LOGISTICS,1016208724,2.06,
Department of Health,Salisbury NHS Foundation Trust,26-Feb-16,TISSUES HAND TOWELS & TOILET PAPER,Critical care,NHS LOGISTICS,1016208724,1.51,
Department of Health,Salisbury NHS Foundation Trust,26-Feb-16,MEDSURGCONS - OTHER,Critical care,NHS LOGISTICS,1016208724,3.85,
Department of Health,Salisbury NHS Foundation Trust,26-Feb-16,DRESSINGS - PRE STERILE,Critical care,NHS LOGISTICS,1016208724,2.89,
Department of Health,Salisbury NHS Foundation Trust,26-Feb-16,OTHER MEDICAL SUPPLIES,Surgery,NHS LOGISTICS,1016208724,1.18,
Department of Health,Salisbury NHS Foundation Trust,26-Feb-16,DISPOSABLE THEATRE DRAPES WIPES,Surgery,NHS LOGISTICS,1016208724,1.3,
Department of Health,Salisbury NHS Foundation Trust,26-Feb-16,M & S EQUIPELECTEQUIPINST - OTHER,Surgery,NHS LOGISTICS,1016208724,0.85,
Department of Health,Salisbury NHS Foundation Trust,26-Feb-16,OTHER MEDICAL SUPPLIES,Clinical Support and Family Services,NHS LOGISTICS,1016208724,31.58,
Department of Health,Salisbury NHS Foundation Trust,26-Feb-16,OTHER MEDICAL SUPPLIES,Clinical Support and Family Services,NHS LOGISTICS,1016208724,0.98,
Department of Health,Salisbury NHS Foundation Trust,26-Feb-16,PATIENTS BEDWEAR UNISEX,Clinical Support and Family Services,NHS LOGISTICS,1016208724,1.6,
Department of Health,Salisbury NHS Foundation Trust,26-Feb-16,TISSUES HAND TOWELS & TOILET PAPER,Clinical Support and Family Services,NHS LOGISTICS,1016208724,0.38,
Department of Health,Salisbury NHS Foundation Trust,26-Feb-16,DISPOSABLE THEATRE DRAPES WIPES,Clinical Support and Family Services,NHS LOGISTICS,1016208724,2.28,
Department of Health,Salisbury NHS Foundation Trust,26-Feb-16,M & S EQUIPELECTEQUIPINST - OTHER,Clinical Support and Family Services,NHS LOGISTICS,1016208724,2.3,
Department of Health,Salisbury NHS Foundation Trust,26-Feb-16,DRESSINGS - PRE STERILE,Clinical Support and Family Services,NHS LOGISTICS,1016208724,0.07,
Department of Health,Salisbury NHS Foundation Trust,26-Feb-16,MED SURG EQUIP REP MAINT CLEANING,Clinical Support and Family Services,NHS LOGISTICS,1016208724,2.19,
Department of Health,Salisbury NHS Foundation Trust,26-Feb-16,DRESSINGS - PRE STERILE,Critical care,NHS LOGISTICS,1016208724,1.53,
Department of Health,Salisbury NHS Foundation Trust,26-Feb-16,LAB EQUIP-ANALYSERS,Critical care,NHS LOGISTICS,1016208724,6.2,
Department of Health,Salisbury NHS Foundation Trust,26-Feb-16,TISSUES HAND TOWELS & TOILET PAPER,Critical care,NHS LOGISTICS,1016208724,1.13,
Department of Health,Salisbury NHS Foundation Trust,26-Feb-16,COOKING & KITCHEN UTENSILS,Critical care,NHS LOGISTICS,1016208724,3.53,
Department of Health,Salisbury NHS Foundation Trust,26-Feb-16,DRESSINGS - PRE STERILE,Critical care,NHS LOGISTICS,1016208724,1.18,
Department of Health,Salisbury NHS Foundation Trust,26-Feb-16,ANAESTHETIC EQUIPMENT ACCESSORIES,Critical care,NHS LOGISTICS,1016208724,0.52,
Department of Health,Salisbury NHS Foundation Trust,26-Feb-16,NON DISPOSABLE BED LINEN,Critical care,NHS LOGISTICS,1016208724,1.95,
Department of Health,Salisbury NHS Foundation Trust,26-Feb-16,PATIENT APPLIANCES,Critical care,NHS LOGISTICS,1016208724,0.88,
Department of Health,Salisbury NHS Foundation Trust,26-Feb-16,TOILETRIES PERSONAL HYGIENE PRODUCTS,Critical care,NHS LOGISTICS,1016208724,2.87,
Department of Health,Salisbury NHS Foundation Trust,26-Feb-16,MEDSURGCONS - OTHER,Critical care,NHS LOGISTICS,1016208724,11.96,
Department of Health,Salisbury NHS Foundation Trust,26-Feb-16,MEDSURGCONS - OTHER,Critical care,NHS LOGISTICS,1016208724,2.11,
Department of Health,Salisbury NHS Foundation Trust,26-Feb-16,MEDSURGCONS - OTHER,Critical care,NHS LOGISTICS,1016208724,7.13,
Department of Health,Salisbury NHS Foundation Trust,26-Feb-16,TOILETRIES PERSONAL HYGIENE PRODUCTS,Critical care,NHS LOGISTICS,1016208724,0.95,
Department of Health,Salisbury NHS Foundation Trust,26-Feb-16,PATIENT APPLIANCES,Critical care,NHS LOGISTICS,1016208724,2.2,
Department of Health,Salisbury NHS Foundation Trust,26-Feb-16,DISPOSABLE THEATRE DRAPES WIPES,Critical care,NHS LOGISTICS,1016208724,5.84,
Department of Health,Salisbury NHS Foundation Trust,26-Feb-16,OTHER MEDICAL SUPPLIES,Medicine,NHS LOGISTICS,1016208724,22.53,
Department of Health,Salisbury NHS Foundation Trust,26-Feb-16,TISSUES HAND TOWELS & TOILET PAPER,Medicine,NHS LOGISTICS,1016208724,1.51,
Department of Health,Salisbury NHS Foundation Trust,26-Feb-16,DRESSINGS - PRE STERILE,Medicine,NHS LOGISTICS,1016208724,5.99,
Department of Health,Salisbury NHS Foundation Trust,26-Feb-16,TISSUES HAND TOWELS & TOILET PAPER,Medicine,NHS LOGISTICS,1016208724,0.75,
Department of Health,Salisbury NHS Foundation Trust,26-Feb-16,M & S EQUIPELECTEQUIPINST - OTHER,Medicine,NHS LOGISTICS,1016208724,0.13,
Department of Health,Salisbury NHS Foundation Trust,26-Feb-16,OTHER MEDICAL SUPPLIES,Medicine,NHS LOGISTICS,1016208724,0.59,
Department of Health,Salisbury NHS Foundation Trust,26-Feb-16,PATIENT APPLIANCES,Medicine,NHS LOGISTICS,1016208724,0.67,
Department of Health,Salisbury NHS Foundation Trust,26-Feb-16,DRESSINGS - PRE STERILE,Medicine,NHS LOGISTICS,1016208724,0.07,
Department of Health,Salisbury NHS Foundation Trust,26-Feb-16,MEDSURGCONS - OTHER,Medicine,NHS LOGISTICS,1016208724,3.32,
Department of Health,Salisbury NHS Foundation Trust,26-Feb-16,TISSUES HAND TOWELS & TOILET PAPER,Medicine,NHS LOGISTICS,1016208724,0.07,
Department of Health,Salisbury NHS Foundation Trust,26-Feb-16,MED SURG EQUIP REP MAINT CLEANING,Medicine,NHS LOGISTICS,1016208724,2.19,
Department of Health,Salisbury NHS Foundation Trust,26-Feb-16,DISPOSABLE THEATRE DRAPES WIPES,Medicine,NHS LOGISTICS,1016208724,1.3,
Department of Health,Salisbury NHS Foundation Trust,26-Feb-16,DENTAL SURGERY SUNDRIES,Surgery,NHS LOGISTICS,1016208724,0.87,
Department of Health,Salisbury NHS Foundation Trust,26-Feb-16,BEVERAGES & AMBIENT FOOD,Surgery,NHS LOGISTICS,1016208724,2.27,
Department of Health,Salisbury NHS Foundation Trust,26-Feb-16,BEVERAGES & AMBIENT FOOD,Surgery,NHS LOGISTICS,1016208724,3.01,
Department of Health,Salisbury NHS Foundation Trust,26-Feb-16,BEVERAGES & AMBIENT FOOD,Surgery,NHS LOGISTICS,1016208724,0.29,
Department of Health,Salisbury NHS Foundation Trust,26-Feb-16,OTHER MEDICAL SUPPLIES,Critical Care,NHS LOGISTICS,1016208724,2.62,
Department of Health,Salisbury NHS Foundation Trust,26-Feb-16,TISSUES HAND TOWELS & TOILET PAPER,Medicine,NHS LOGISTICS,1016208724,0.09,
Department of Health,Salisbury NHS Foundation Trust,26-Feb-16,TUBES,Medicine,NHS LOGISTICS,1016208724,2.48,
Department of Health,Salisbury NHS Foundation Trust,26-Feb-16,TISSUES HAND TOWELS & TOILET PAPER,Medicine,NHS LOGISTICS,1016208724,0.75,
Department of Health,Salisbury NHS Foundation Trust,26-Feb-16,CLEANING MATERIALS PRODUCTS SUNDRIES,Medicine,NHS LOGISTICS,1016208724,1.09,
Department of Health,Salisbury NHS Foundation Trust,26-Feb-16,TUBES,Medicine,NHS LOGISTICS,1016208724,1.24,
Department of Health,Salisbury NHS Foundation Trust,26-Feb-16,PATIENT APPLIANCES,Medicine,NHS LOGISTICS,1016208724,1.76,
Department of Health,Salisbury NHS Foundation Trust,26-Feb-16,MEDSURGCONS - OTHER,Medicine,NHS LOGISTICS,1016208724,2.11,
Department of Health,Salisbury NHS Foundation Trust,26-Feb-16,MEDSURGCONS - OTHER,Medicine,NHS LOGISTICS,1016208724,1.08,
Department of Health,Salisbury NHS Foundation Trust,26-Feb-16,PATIENT APPLIANCES,Medicine,NHS LOGISTICS,1016208724,2.2,
Department of Health,Salisbury NHS Foundation Trust,26-Feb-16,PATIENT APPLIANCES,Medicine,NHS LOGISTICS,1016208724,1.1,
Department of Health,Salisbury NHS Foundation Trust,26-Feb-16,DRESSINGS - PRE STERILE,Critical care,NHS LOGISTICS,1016208724,3.06,
Department of Health,Salisbury NHS Foundation Trust,26-Feb-16,TISSUES HAND TOWELS & TOILET PAPER,Critical care,NHS LOGISTICS,1016208724,0.75,
Department of Health,Salisbury NHS Foundation Trust,26-Feb-16,CLEANING MATERIALS PRODUCTS SUNDRIES,Critical care,NHS LOGISTICS,1016208724,1.41,
Department of Health,Salisbury NHS Foundation Trust,26-Feb-16,DRESSINGS - PRE STERILE,Critical care,NHS LOGISTICS,1016208724,1.96,
Department of Health,Salisbury NHS Foundation Trust,26-Feb-16,DRESSINGS - PRE STERILE,Critical care,NHS LOGISTICS,1016208724,2.47,
Department of Health,Salisbury NHS Foundation Trust,26-Feb-16,TOILETRIES PERSONAL HYGIENE PRODUCTS,Critical care,NHS LOGISTICS,1016208724,0.97,
Department of Health,Salisbury NHS Foundation Trust,26-Feb-16,TISSUES HAND TOWELS & TOILET PAPER,Critical care,NHS LOGISTICS,1016208724,0.15,
Department of Health,Salisbury NHS Foundation Trust,26-Feb-16,TOILETRIES PERSONAL HYGIENE PRODUCTS,Critical care,NHS LOGISTICS,1016208724,0.95,
Department of Health,Salisbury NHS Foundation Trust,26-Feb-16,DRESSINGS - PRE STERILE,Critical care,NHS LOGISTICS,1016208724,7.64,
Department of Health,Salisbury NHS Foundation Trust,26-Feb-16,DRESSINGS - PRE STERILE,Critical care,NHS LOGISTICS,1016208724,0.9,
Department of Health,Salisbury NHS Foundation Trust,26-Feb-16,TISSUES HAND TOWELS & TOILET PAPER,Critical care,NHS LOGISTICS,1016208724,0.75,
Department of Health,Salisbury NHS Foundation Trust,26-Feb-16,TUBES,Critical care,NHS LOGISTICS,1016208724,1.24,
Department of Health,Salisbury NHS Foundation Trust,26-Feb-16,TOILETRIES PERSONAL HYGIENE PRODUCTS,Critical care,NHS LOGISTICS,1016208724,0.97,
Department of Health,Salisbury NHS Foundation Trust,26-Feb-16,MEDSURGCONS - OTHER,Critical care,NHS LOGISTICS,1016208724,11.96,
Department of Health,Salisbury NHS Foundation Trust,26-Feb-16,MEDSURGCONS - OTHER,Critical care,NHS LOGISTICS,1016208724,1.08,
Department of Health,Salisbury NHS Foundation Trust,26-Feb-16,DRESSINGS - PRE STERILE,Critical care,NHS LOGISTICS,1016208724,0.9,
Department of Health,Salisbury NHS Foundation Trust,26-Feb-16,DISPOSABLE THEATRE DRAPES WIPES,Critical care,NHS LOGISTICS,1016208724,0.65,
Department of Health,Salisbury NHS Foundation Trust,26-Feb-16,DRESSINGS - PRE STERILE,Surgery,NHS LOGISTICS,1016208724,40.88,
Department of Health,Salisbury NHS Foundation Trust,26-Feb-16,MEDSURGCONS - OTHER,Surgery,NHS LOGISTICS,1016208724,25.44,
Department of Health,Salisbury NHS Foundation Trust,26-Feb-16,TISSUES HAND TOWELS & TOILET PAPER,Surgery,NHS LOGISTICS,1016208724,0.22,
Department of Health,Salisbury NHS Foundation Trust,26-Feb-16,M & S EQUIPELECTEQUIPINST - OTHER,Surgery,NHS LOGISTICS,1016208724,23.96,
Department of Health,Salisbury NHS Foundation Trust,26-Feb-16,MED SURG EQUIP REP MAINT CLEANING,Surgery,NHS LOGISTICS,1016208724,2.19,
Department of Health,Salisbury NHS Foundation Trust,26-Feb-16,DRESSINGS - PRE STERILE,Medicine,NHS LOGISTICS,1016208724,3.06,
Department of Health,Salisbury NHS Foundation Trust,26-Feb-16,TISSUES HAND TOWELS & TOILET PAPER,Medicine,NHS LOGISTICS,1016208724,0.75,
Department of Health,Salisbury NHS Foundation Trust,26-Feb-16,PATIENT APPLIANCES,Medicine,NHS LOGISTICS,1016208724,0.67,
Department of Health,Salisbury NHS Foundation Trust,26-Feb-16,PATIENT APPLIANCES,Medicine,NHS LOGISTICS,1016208724,0.67,
Department of Health,Salisbury NHS Foundation Trust,26-Feb-16,TISSUES HAND TOWELS & TOILET PAPER,Medicine,NHS LOGISTICS,1016208724,0.15,
Department of Health,Salisbury NHS Foundation Trust,26-Feb-16,PATIENT APPLIANCES,Medicine,NHS LOGISTICS,1016208724,1.1,
Department of Health,Salisbury NHS Foundation Trust,26-Feb-16,PATIENT APPLIANCES,Medicine,NHS LOGISTICS,1016208724,0.73,
Department of Health,Salisbury NHS Foundation Trust,26-Feb-16,DISPOSABLE THEATRE DRAPES WIPES,Medicine,NHS LOGISTICS,1016208724,0.65,
Department of Health,Salisbury NHS Foundation Trust,26-Feb-16,MEDSURGCONS - OTHER,Medicine,NHS LOGISTICS,1016208724,2.14,
Department of Health,Salisbury NHS Foundation Trust,26-Feb-16,MEDSURGCONS - OTHER,Surgery,NHS LOGISTICS,1016208724,7.5,
Department of Health,Salisbury NHS Foundation Trust,26-Feb-16,MEDSURGCONS-SUTURES,Surgery,NHS LOGISTICS,1016208724,7.58,
Department of Health,Salisbury NHS Foundation Trust,26-Feb-16,MEDSURGCONS-SUTURES,Surgery,NHS LOGISTICS,1016208724,7.4,
Department of Health,Salisbury NHS Foundation Trust,26-Feb-16,BAGS SACKS - OTHER,Surgery,NHS LOGISTICS,1016208724,3.44,
Department of Health,Salisbury NHS Foundation Trust,26-Feb-16,OTHER MEDICAL SUPPLIES,Surgery,NHS LOGISTICS,1016208724,2.97,
Department of Health,Salisbury NHS Foundation Trust,26-Feb-16,MEDSURGCONS - OTHER,Critical care,NHS LOGISTICS,1016208724,4.18,
Department of Health,Salisbury NHS Foundation Trust,26-Feb-16,MEDSURGCONS - OTHER,Clinical Support and Family Services,NHS LOGISTICS,1016208724,2.23,
Department of Health,Salisbury NHS Foundation Trust,26-Feb-16,PATIENTS INCONTINENCE,Medicine,NHS LOGISTICS,1016208724,3.41,
Department of Health,Salisbury NHS Foundation Trust,26-Feb-16,PATIENTS INCONTINENCE,Medicine,NHS LOGISTICS,1016208724,1.36,
Department of Health,Salisbury NHS Foundation Trust,26-Feb-16,M & S EQUIPELECTEQUIPINST - OTHER,Surgery,NHS LOGISTICS,1016208724,37.03,
Department of Health,Salisbury NHS Foundation Trust,26-Feb-16,TISSUES HAND TOWELS & TOILET PAPER,Medicine,NHS LOGISTICS,1016208724,1.51,
Department of Health,Salisbury NHS Foundation Trust,26-Feb-16,MEDSURGCONS - OTHER,Medicine,NHS LOGISTICS,1016208724,5.31,
Department of Health,Salisbury NHS Foundation Trust,26-Feb-16,DISPOSABLE THEATRE DRAPES WIPES,Medicine,NHS LOGISTICS,1016208724,0.65,
Department of Health,Salisbury NHS Foundation Trust,26-Feb-16,TISSUES HAND TOWELS & TOILET PAPER,Surgery,NHS LOGISTICS,1016208724,0.38,
Department of Health,Salisbury NHS Foundation Trust,26-Feb-16,PATIENT APPLIANCES,Medicine,NHS LOGISTICS,1016208724,0.67,
Department of Health,Salisbury NHS Foundation Trust,26-Feb-16,MEDSURGCONS - OTHER,Medicine,NHS LOGISTICS,1016208724,3.99,
Department of Health,Salisbury NHS Foundation Trust,26-Feb-16,TISSUES HAND TOWELS & TOILET PAPER,Medicine,NHS LOGISTICS,1016208724,0.59,
Department of Health,Salisbury NHS Foundation Trust,26-Feb-16,SURGICAL INSTRUMENTS: GENERAL,Medicine,NHS LOGISTICS,1016208724,0.94,
Department of Health,Salisbury NHS Foundation Trust,26-Feb-16,PATIENT APPLIANCES,Medicine,NHS LOGISTICS,1016208724,1.63,
Department of Health,Salisbury NHS Foundation Trust,26-Feb-16,PATIENT APPLIANCES,Medicine,NHS LOGISTICS,1016208724,1.1,
Department of Health,Salisbury NHS Foundation Trust,26-Feb-16,PATIENT APPLIANCES,Medicine,NHS LOGISTICS,1016208724,0.37,
Department of Health,Salisbury NHS Foundation Trust,26-Feb-16,DISPOSABLE THEATRE DRAPES WIPES,Medicine,NHS LOGISTICS,1016208724,1.3,
Department of Health,Salisbury NHS Foundation Trust,26-Feb-16,DRESSINGS - PRE STERILE,Clinical Support and Family Services,NHS LOGISTICS,1016208724,0.67,
Department of Health,Salisbury NHS Foundation Trust,26-Feb-16,TISSUES HAND TOWELS & TOILET PAPER,Clinical Support and Family Services,NHS LOGISTICS,1016208724,0.75,
Department of Health,Salisbury NHS Foundation Trust,26-Feb-16,M & S EQUIPELECTEQUIPINST - OTHER,Clinical Support and Family Services,NHS LOGISTICS,1016208724,26.04,
Department of Health,Salisbury NHS Foundation Trust,26-Feb-16,DRESSINGS - PRE STERILE,Clinical Support and Family Services,NHS LOGISTICS,1016208724,2.66,
Department of Health,Salisbury NHS Foundation Trust,26-Feb-16,TUBES,Surgery,NHS LOGISTICS,1016208724,1.24,
Department of Health,Salisbury NHS Foundation Trust,26-Feb-16,PATIENT APPLIANCES,Surgery,NHS LOGISTICS,1016208724,0.67,
Department of Health,Salisbury NHS Foundation Trust,26-Feb-16,PATIENT APPLIANCES,Surgery,NHS LOGISTICS,1016208724,0.67,
Department of Health,Salisbury NHS Foundation Trust,26-Feb-16,PATIENT APPLIANCES,Surgery,NHS LOGISTICS,1016208724,0.67,
Department of Health,Salisbury NHS Foundation Trust,26-Feb-16,PATIENT APPLIANCES,Surgery,NHS LOGISTICS,1016208724,0.88,
Department of Health,Salisbury NHS Foundation Trust,26-Feb-16,PATIENT APPLIANCES,Surgery,NHS LOGISTICS,1016208724,0.88,
Department of Health,Salisbury NHS Foundation Trust,26-Feb-16,PATIENT APPLIANCES,Surgery,NHS LOGISTICS,1016208724,1.1,
Department of Health,Salisbury NHS Foundation Trust,26-Feb-16,DISPOSABLE THEATRE DRAPES WIPES,Surgery,NHS LOGISTICS,1016208724,0.65,
Department of Health,Salisbury NHS Foundation Trust,26-Feb-16,HEALTHCARE - WEAR,Surgery,NHS LOGISTICS,1016208724,6.42,
Department of Health,Salisbury NHS Foundation Trust,26-Feb-16,TISSUES HAND TOWELS & TOILET PAPER,Surgery,NHS LOGISTICS,1016208724,0.32,
Department of Health,Salisbury NHS Foundation Trust,26-Feb-16,OTHER MEDICAL SUPPLIES,Surgery,NHS LOGISTICS,1016208724,15.55,
Department of Health,Salisbury NHS Foundation Trust,26-Feb-16,DRESSINGS - PRE STERILE,Surgery,NHS LOGISTICS,1016208724,0.67,
Department of Health,Salisbury NHS Foundation Trust,26-Feb-16,MEDSURGCONS - OTHER,Surgery,NHS LOGISTICS,1016208724,3.94,
Department of Health,Salisbury NHS Foundation Trust,26-Feb-16,DISPOSABLE THEATRE DRAPES WIPES,Surgery,NHS LOGISTICS,1016208724,17.02,
Department of Health,Salisbury NHS Foundation Trust,26-Feb-16,DRESSINGS - PRE STERILE,Medicine,NHS LOGISTICS,1016208724,1.23,
Department of Health,Salisbury NHS Foundation Trust,26-Feb-16,DRESSINGS - PRE STERILE,Medicine,NHS LOGISTICS,1016208724,0.56,
Department of Health,Salisbury NHS Foundation Trust,26-Feb-16,BAGS SACKS - OTHER,Medicine,NHS LOGISTICS,1016208724,1.29,
Department of Health,Salisbury NHS Foundation Trust,26-Feb-16,PATIENT APPLIANCES,Medicine,NHS LOGISTICS,1016208724,0.82,
Department of Health,Salisbury NHS Foundation Trust,26-Feb-16,PATIENT APPLIANCES,Medicine,NHS LOGISTICS,1016208724,0.82,
Department of Health,Salisbury NHS Foundation Trust,26-Feb-16,PATIENT APPLIANCES,Medicine,NHS LOGISTICS,1016208724,0.82,
Department of Health,Salisbury NHS Foundation Trust,26-Feb-16,PATIENT APPLIANCES,Medicine,NHS LOGISTICS,1016208724,0.82,
Department of Health,Salisbury NHS Foundation Trust,26-Feb-16,MEDSURGCONS - OTHER,Medicine,NHS LOGISTICS,1016208724,4.33,
Department of Health,Salisbury NHS Foundation Trust,26-Feb-16,OTHER MEDICAL SUPPLIES,Medicine,NHS LOGISTICS,1016208724,1.18,
Department of Health,Salisbury NHS Foundation Trust,26-Feb-16,MEDSURGCONS - OTHER,Medicine,NHS LOGISTICS,1016208724,11.96,
Department of Health,Salisbury NHS Foundation Trust,26-Feb-16,LAB EQUIP-LABORATORY APPARATUS,Medicine,NHS LOGISTICS,1016208724,1.98,
Department of Health,Salisbury NHS Foundation Trust,26-Feb-16,DISPOSABLE THEATRE DRAPES WIPES,Medicine,NHS LOGISTICS,1016208724,1.3,
Department of Health,Salisbury NHS Foundation Trust,26-Feb-16,DRESSINGS - PRE STERILE,Medicine,NHS LOGISTICS,1016208724,2.73,
Department of Health,Salisbury NHS Foundation Trust,26-Feb-16,DRESSINGS - PRE STERILE,Medicine,NHS LOGISTICS,1016208724,1.86,
Department of Health,Salisbury NHS Foundation Trust,26-Feb-16,MEDSURGCONS - OTHER,Clinical Support and Family Services,NHS LOGISTICS,1016208724,8.43,
Department of Health,Salisbury NHS Foundation Trust,26-Feb-16,BABY TEXTURE MODIFIED FOODS,Clinical Support and Family Services,NHS LOGISTICS,1016208724,2.95,
Department of Health,Salisbury NHS Foundation Trust,26-Feb-16,BABY TEXTURE MODIFIED FOODS,Clinical Support and Family Services,NHS LOGISTICS,1016208724,2.95,
Department of Health,Salisbury NHS Foundation Trust,26-Feb-16,MEDSURGCONS - OTHER,Medicine,NHS LOGISTICS,1016208724,11.96,
Department of Health,Salisbury NHS Foundation Trust,26-Feb-16,MEDSURGCONS - OTHER,Medicine,NHS LOGISTICS,1016208724,3.99,
Department of Health,Salisbury NHS Foundation Trust,26-Feb-16,DISPOSABLE THEATRE DRAPES WIPES,Medicine,NHS LOGISTICS,1016208724,0.65,
Department of Health,Salisbury NHS Foundation Trust,26-Feb-16,M & S EQUIPELECTEQUIPINST - OTHER,Critical care,NHS LOGISTICS,1016208724,147.79,
Department of Health,Salisbury NHS Foundation Trust,26-Feb-16,M & S EQUIPELECTEQUIPINST - OTHER,Surgery,NHS LOGISTICS,1016208724,5.58,
Department of Health,Salisbury NHS Foundation Trust,26-Feb-16,MEDSURGCONS - OTHER,Surgery,NHS LOGISTICS,1016208724,8,
Department of Health,Salisbury NHS Foundation Trust,26-Feb-16,MEDSURGCONS - OTHER,Surgery,NHS LOGISTICS,1016208724,25.44,
Department of Health,Salisbury NHS Foundation Trust,26-Feb-16,DRESSINGS - PRE STERILE,Medicine,NHS LOGISTICS,1016208724,1.53,
Department of Health,Salisbury NHS Foundation Trust,26-Feb-16,TUBES,Medicine,NHS LOGISTICS,1016208724,1.24,
Department of Health,Salisbury NHS Foundation Trust,26-Feb-16,OTHER MEDICAL SUPPLIES,Medicine,NHS LOGISTICS,1016208724,1.18,
Department of Health,Salisbury NHS Foundation Trust,26-Feb-16,PATIENT APPLIANCES,Medicine,NHS LOGISTICS,1016208724,0.67,
Department of Health,Salisbury NHS Foundation Trust,26-Feb-16,PATIENT APPLIANCES,Medicine,NHS LOGISTICS,1016208724,0.67,
Department of Health,Salisbury NHS Foundation Trust,26-Feb-16,MEDSURGCONS - OTHER,Medicine,NHS LOGISTICS,1016208724,1.08,
Department of Health,Salisbury NHS Foundation Trust,26-Feb-16,TISSUES HAND TOWELS & TOILET PAPER,Medicine,NHS LOGISTICS,1016208724,0.22,
Department of Health,Salisbury NHS Foundation Trust,26-Feb-16,PATIENT APPLIANCES,Medicine,NHS LOGISTICS,1016208724,1.03,
Department of Health,Salisbury NHS Foundation Trust,26-Feb-16,DISPOSABLE THEATRE DRAPES WIPES,Medicine,NHS LOGISTICS,1016208724,1.3,
Department of Health,Salisbury NHS Foundation Trust,26-Feb-16,SURGICAL INSTRUMENTS: DISPOSABLE,Surgery,NHS LOGISTICS,1016208724,1.2,
Department of Health,Salisbury NHS Foundation Trust,26-Feb-16,TISSUES HAND TOWELS & TOILET PAPER,Surgery,NHS LOGISTICS,1016208724,0.75,
Department of Health,Salisbury NHS Foundation Trust,26-Feb-16,COOKING & KITCHEN UTENSILS,Surgery,NHS LOGISTICS,1016208724,3.4,
Department of Health,Salisbury NHS Foundation Trust,26-Feb-16,SURGICAL INSTRUMENTS: GENERAL,Surgery,NHS LOGISTICS,1016208724,14.03,
Department of Health,Salisbury NHS Foundation Trust,26-Feb-16,DRESSINGS - PRE STERILE,Surgery,NHS LOGISTICS,1016208724,60.85,
Department of Health,Salisbury NHS Foundation Trust,26-Feb-16,DISPOSABLE THEATRE DRAPES WIPES,Surgery,NHS LOGISTICS,1016208724,3.42,
Department of Health,Salisbury NHS Foundation Trust,26-Feb-16,TISSUES HAND TOWELS & TOILET PAPER,Surgery,NHS LOGISTICS,1016208724,0.96,
Department of Health,Salisbury NHS Foundation Trust,26-Feb-16,DRUGS,Surgery,NHS LOGISTICS,1016208724,9.72,
Department of Health,Salisbury NHS Foundation Trust,26-Feb-16,MEDSURGCONS - OTHER,Surgery,NHS LOGISTICS,1016208724,4.3,
Department of Health,Salisbury NHS Foundation Trust,26-Feb-16,MEDSURGCONS - OTHER,Surgery,NHS LOGISTICS,1016208724,2.15,
Department of Health,Salisbury NHS Foundation Trust,26-Feb-16,MEDSURGCONS - OTHER,Surgery,NHS LOGISTICS,1016208724,2.15,
Department of Health,Salisbury NHS Foundation Trust,26-Feb-16,DRUGS,Surgery,NHS LOGISTICS,1016208724,7.77,
Department of Health,Salisbury NHS Foundation Trust,26-Feb-16,PATIENT APPLIANCES,Surgery,NHS LOGISTICS,1016208724,2.2,
Department of Health,Salisbury NHS Foundation Trust,26-Feb-16,DRESSINGS - PRE STERILE,Surgery,NHS LOGISTICS,1016208724,5.77,
Department of Health,Salisbury NHS Foundation Trust,26-Feb-16,SURGICAL INSTRUMENTS: GENERAL,Surgery,NHS LOGISTICS,1016208724,15.29,
Department of Health,Salisbury NHS Foundation Trust,26-Feb-16,OTHER MEDICAL SUPPLIES,Surgery,NHS LOGISTICS,1016208724,50.57,
Department of Health,Salisbury NHS Foundation Trust,26-Feb-16,ELECTRICAL EQUIPMENT x,Surgery,NHS LOGISTICS,1016208724,1.33,
Department of Health,Salisbury NHS Foundation Trust,26-Feb-16,ELECTRICAL EQUIPMENT x,Surgery,NHS LOGISTICS,1016208724,1.07,
Department of Health,Salisbury NHS Foundation Trust,26-Feb-16,PATIENTS INCONTINENCE,Critical care,NHS LOGISTICS,1016208724,14.32,
Department of Health,Salisbury NHS Foundation Trust,26-Feb-16,OTHER MEDICAL SUPPLIES,Surgery,NHS LOGISTICS,1016208724,12.9,
Department of Health,Salisbury NHS Foundation Trust,26-Feb-16,PATIENTS INCONTINENCE,Critical care,NHS LOGISTICS,1016208724,0.76,
Department of Health,Salisbury NHS Foundation Trust,26-Feb-16,M & S EQUIPELECTEQUIPINST - OTHER,Clinical Support and Family Services,NHS LOGISTICS,1016208724,123.96,
Department of Health,Salisbury NHS Foundation Trust,26-Feb-16,PATIENT APPLIANCES,Surgery,NHS LOGISTICS,1016208724,1.63,
Department of Health,Salisbury NHS Foundation Trust,26-Feb-16,MEDSURGCONS-SUTURES,Medicine,NHS LOGISTICS,1016208724,15.82,
Department of Health,Salisbury NHS Foundation Trust,26-Feb-16,SERVICES FROM NHS BODIES,Clinical Support and Family Services,NHS LOGISTICS,1016208724,7.17,
Department of Health,Salisbury NHS Foundation Trust,26-Feb-16,PATIENTS INCONTINENCE,Critical care,NHS LOGISTICS,1016208724,0.76,
Department of Health,Salisbury NHS Foundation Trust,26-Feb-16,DRESSINGS - PRE STERILE,Surgery,NHS LOGISTICS,1016208724,1.53,
Department of Health,Salisbury NHS Foundation Trust,26-Feb-16,DRESSINGS - PRE STERILE,Surgery,NHS LOGISTICS,1016208724,28.79,
Department of Health,Salisbury NHS Foundation Trust,26-Feb-16,LIQUID REFRESHMENTS,Facilities Directorate,NHS LOGISTICS,1016208724,2.65,
Department of Health,Salisbury NHS Foundation Trust,26-Feb-16,LIQUID REFRESHMENTS,Facilities Directorate,NHS LOGISTICS,1016208724,4.35,
Department of Health,Salisbury NHS Foundation Trust,26-Feb-16,LIQUID REFRESHMENTS,Facilities Directorate,NHS LOGISTICS,1016208724,1,
Department of Health,Salisbury NHS Foundation Trust,26-Feb-16,LIQUID REFRESHMENTS,Facilities Directorate,NHS LOGISTICS,1016208724,2.65,
Department of Health,Salisbury NHS Foundation Trust,26-Feb-16,LIQUID REFRESHMENTS,Facilities Directorate,NHS LOGISTICS,1016208724,2.18,
Department of Health,Salisbury NHS Foundation Trust,26-Feb-16,LIQUID REFRESHMENTS,Facilities Directorate,NHS LOGISTICS,1016208724,0.78,
Department of Health,Salisbury NHS Foundation Trust,26-Feb-16,LIQUID REFRESHMENTS,Facilities Directorate,NHS LOGISTICS,1016208724,4.93,
Department of Health,Salisbury NHS Foundation Trust,26-Feb-16,COOKING & KITCHEN UTENSILS,Facilities Directorate,NHS LOGISTICS,1016208724,3.95,
Department of Health,Salisbury NHS Foundation Trust,26-Feb-16,BEVERAGES & AMBIENT FOOD,Facilities Directorate,NHS LOGISTICS,1016208724,1.49,
Department of Health,Salisbury NHS Foundation Trust,26-Feb-16,LIQUID REFRESHMENTS,Facilities Directorate,NHS LOGISTICS,1016208724,0.51,
Department of Health,Salisbury NHS Foundation Trust,26-Feb-16,LIQUID REFRESHMENTS,Facilities Directorate,NHS LOGISTICS,1016208724,1.98,
Department of Health,Salisbury NHS Foundation Trust,26-Feb-16,COOKING & KITCHEN UTENSILS,Facilities Directorate,NHS LOGISTICS,1016208724,3.36,
Department of Health,Salisbury NHS Foundation Trust,26-Feb-16,BEVERAGES & AMBIENT FOOD,Facilities Directorate,NHS LOGISTICS,1016208724,2.32,
Department of Health,Salisbury NHS Foundation Trust,26-Feb-16,BEVERAGES & AMBIENT FOOD,Facilities Directorate,NHS LOGISTICS,1016208724,1.37,
Department of Health,Salisbury NHS Foundation Trust,26-Feb-16,FLAVOURINGS HERBS SPICES,Facilities Directorate,NHS LOGISTICS,1016208724,1.23,
Department of Health,Salisbury NHS Foundation Trust,26-Feb-16,LIQUID REFRESHMENTS,Facilities Directorate,NHS LOGISTICS,1016208724,1.01,
Department of Health,Salisbury NHS Foundation Trust,26-Feb-16,TISSUES HAND TOWELS & TOILET PAPER,Facilities Directorate,NHS LOGISTICS,1016208724,2.08,
Department of Health,Salisbury NHS Foundation Trust,26-Feb-16,BEVERAGES & AMBIENT FOOD,Facilities Directorate,NHS LOGISTICS,1016208724,1.31,
Department of Health,Salisbury NHS Foundation Trust,26-Feb-16,LIQUID REFRESHMENTS,Facilities Directorate,NHS LOGISTICS,1016208724,1.86,
Department of Health,Salisbury NHS Foundation Trust,26-Feb-16,LIQUID REFRESHMENTS,Facilities Directorate,NHS LOGISTICS,1016208724,0.58,
Department of Health,Salisbury NHS Foundation Trust,26-Feb-16,BEVERAGES & AMBIENT FOOD,Facilities Directorate,NHS LOGISTICS,1016208724,14.06,
Department of Health,Salisbury NHS Foundation Trust,26-Feb-16,COOKING & KITCHEN UTENSILS,Facilities Directorate,NHS LOGISTICS,1016208724,5.96,
Department of Health,Salisbury NHS Foundation Trust,26-Feb-16,BEVERAGES & AMBIENT FOOD,Facilities Directorate,NHS LOGISTICS,1016208724,6.67,
Department of Health,Salisbury NHS Foundation Trust,26-Feb-16,BEVERAGES & AMBIENT FOOD,Facilities Directorate,NHS LOGISTICS,1016208724,3.77,
Department of Health,Salisbury NHS Foundation Trust,26-Feb-16,LIQUID REFRESHMENTS,Facilities Directorate,NHS LOGISTICS,1016208724,23.12,
Department of Health,Salisbury NHS Foundation Trust,26-Feb-16,COOKING & KITCHEN UTENSILS,Facilities Directorate,NHS LOGISTICS,1016208724,10.26,
Department of Health,Salisbury NHS Foundation Trust,26-Feb-16,DRESSINGS - PRE STERILE,Surgery,NHS LOGISTICS,1016208724,7,
Department of Health,Salisbury NHS Foundation Trust,12-Feb-16,DRUGS,Clinical Support and Family Services,ROCHE PRODUCTS LTD,132837901,33364.35,
Department of Health,Salisbury NHS Foundation Trust,12-Feb-16,DRUGS,Clinical Support and Family Services,ROCHE PRODUCTS LTD,132837901,6672.87,
Department of Health,Salisbury NHS Foundation Trust,19-Feb-16,BLDG STRUCTURES MAIN CONTR,Capital Projects,R G SPILLER LTD,004 REF IN021909,77466.68,
Department of Health,Salisbury NHS Foundation Trust,19-Feb-16,BLDG STRUCTURES MAIN CONTR,Capital Projects,R G SPILLER LTD,004 REF IN021909,15493.34,
Department of Health,Salisbury NHS Foundation Trust,19-Feb-16,OTH ENGINEERING PLANT&EQUIP,Capital Projects,HCE FOODSERVICE EQUIPMENT,6003177,54910,
Department of Health,Salisbury NHS Foundation Trust,19-Feb-16,OTH ENGINEERING PLANT&EQUIP,Capital Projects,HCE FOODSERVICE EQUIPMENT,6003177,10982,
Department of Health,Salisbury NHS Foundation Trust,19-Feb-16,DI & RADIO - RADIOLOGY EQUIPMENT,Clinical Support and Family Services,PHILIPS HEALTHCARE INFORMATICS LTD,932162848,23381.28,
Department of Health,Salisbury NHS Foundation Trust,26-Feb-16,DRUGS,Clinical Support and Family Services,ROCHE PRODUCTS LTD,1321839578,23724.05,
Department of Health,Salisbury NHS Foundation Trust,26-Feb-16,DRUGS,Clinical Support and Family Services,ROCHE PRODUCTS LTD,1321839578,4744.81,
Department of Health,Salisbury NHS Foundation Trust,26-Feb-16,MEDICAL EQUIPMENT 10 YEARS,Capital Projects,MEDICAL IMAGING SYSTEMS,33373,3012,
Department of Health,Salisbury NHS Foundation Trust,26-Feb-16,MEDICAL EQUIPMENT 10 YEARS,Capital Projects,MEDICAL IMAGING SYSTEMS,33373,880,
Department of Health,Salisbury NHS Foundation Trust,26-Feb-16,MEDICAL EQUIPMENT 10 YEARS,Capital Projects,MEDICAL IMAGING SYSTEMS,33373,9106,
Department of Health,Salisbury NHS Foundation Trust,26-Feb-16,MEDICAL EQUIPMENT 10 YEARS,Capital Projects,MEDICAL IMAGING SYSTEMS,33373,1600,
Department of Health,Salisbury NHS Foundation Trust,26-Feb-16,MEDICAL EQUIPMENT 10 YEARS,Capital Projects,MEDICAL IMAGING SYSTEMS,33373,7218,
Department of Health,Salisbury NHS Foundation Trust,26-Feb-16,MEDICAL EQUIPMENT 10 YEARS,Capital Projects,MEDICAL IMAGING SYSTEMS,33373,15637.5,
Department of Health,Salisbury NHS Foundation Trust,26-Feb-16,MEDICAL EQUIPMENT 10 YEARS,Capital Projects,MEDICAL IMAGING SYSTEMS,33373,17375,
Department of Health,Salisbury NHS Foundation Trust,26-Feb-16,MEDICAL EQUIPMENT 10 YEARS,Capital Projects,MEDICAL IMAGING SYSTEMS,33373,602.4,
Department of Health,Salisbury NHS Foundation Trust,26-Feb-16,MEDICAL EQUIPMENT 10 YEARS,Capital Projects,MEDICAL IMAGING SYSTEMS,33373,176,
Department of Health,Salisbury NHS Foundation Trust,26-Feb-16,MEDICAL EQUIPMENT 10 YEARS,Capital Projects,MEDICAL IMAGING SYSTEMS,33373,1821.2,
Department of Health,Salisbury NHS Foundation Trust,26-Feb-16,MEDICAL EQUIPMENT 10 YEARS,Capital Projects,MEDICAL IMAGING SYSTEMS,33373,320,
Department of Health,Salisbury NHS Foundation Trust,26-Feb-16,MEDICAL EQUIPMENT 10 YEARS,Capital Projects,MEDICAL IMAGING SYSTEMS,33373,1443.6,
Department of Health,Salisbury NHS Foundation Trust,26-Feb-16,MEDICAL EQUIPMENT 10 YEARS,Capital Projects,MEDICAL IMAGING SYSTEMS,33373,3127.5,
Department of Health,Salisbury NHS Foundation Trust,26-Feb-16,MEDICAL EQUIPMENT 10 YEARS,Capital Projects,MEDICAL IMAGING SYSTEMS,33373,3475,
Department of Health,Salisbury NHS Foundation Trust,26-Feb-16,DRUGS,Clinical Support and Family Services,BAYER PLC,187394690,21850,
Department of Health,Salisbury NHS Foundation Trust,26-Feb-16,DRUGS,Clinical Support and Family Services,BAYER PLC,187394690,4370,
Department of Health,Salisbury NHS Foundation Trust,26-Feb-16,MEDICAL EQUIPMENT 10 YEARS,Capital Projects,KARL STORZ ENDOSCOPY (UK) LTD,286326,59220,
Department of Health,Salisbury NHS Foundation Trust,26-Feb-16,MEDICAL EQUIPMENT 10 YEARS,Capital Projects,KARL STORZ ENDOSCOPY (UK) LTD,286326,28280,
Department of Health,Salisbury NHS Foundation Trust,26-Feb-16,MEDICAL EQUIPMENT 10 YEARS,Capital Projects,KARL STORZ ENDOSCOPY (UK) LTD,286326,7402.5,
Department of Health,Salisbury NHS Foundation Trust,26-Feb-16,MEDICAL EQUIPMENT 10 YEARS,Capital Projects,KARL STORZ ENDOSCOPY (UK) LTD,286326,5344,
Department of Health,Salisbury NHS Foundation Trust,26-Feb-16,MEDICAL EQUIPMENT 10 YEARS,Capital Projects,KARL STORZ ENDOSCOPY (UK) LTD,286326,11232,
Department of Health,Salisbury NHS Foundation Trust,26-Feb-16,MEDICAL EQUIPMENT 10 YEARS,Capital Projects,KARL STORZ ENDOSCOPY (UK) LTD,286326,5616,
Department of Health,Salisbury NHS Foundation Trust,26-Feb-16,MEDICAL EQUIPMENT 10 YEARS,Capital Projects,KARL STORZ ENDOSCOPY (UK) LTD,286326,8480,
Department of Health,Salisbury NHS Foundation Trust,26-Feb-16,MEDICAL EQUIPMENT 10 YEARS,Capital Projects,KARL STORZ ENDOSCOPY (UK) LTD,286326,6664,
Department of Health,Salisbury NHS Foundation Trust,26-Feb-16,MEDICAL EQUIPMENT 10 YEARS,Capital Projects,KARL STORZ ENDOSCOPY (UK) LTD,286326,372.8,
Department of Health,Salisbury NHS Foundation Trust,26-Feb-16,MEDICAL EQUIPMENT 10 YEARS,Capital Projects,KARL STORZ ENDOSCOPY (UK) LTD,286326,413,
Department of Health,Salisbury NHS Foundation Trust,26-Feb-16,MEDICAL EQUIPMENT 10 YEARS,Capital Projects,KARL STORZ ENDOSCOPY (UK) LTD,286326,4633.6,
Department of Health,Salisbury NHS Foundation Trust,26-Feb-16,MEDICAL EQUIPMENT 10 YEARS,Capital Projects,KARL STORZ ENDOSCOPY (UK) LTD,286326,2443.2,
Department of Health,Salisbury NHS Foundation Trust,26-Feb-16,MEDICAL EQUIPMENT 10 YEARS,Capital Projects,KARL STORZ ENDOSCOPY (UK) LTD,286326,8454.4,
Department of Health,Salisbury NHS Foundation Trust,26-Feb-16,MEDICAL EQUIPMENT 10 YEARS,Capital Projects,KARL STORZ ENDOSCOPY (UK) LTD,286326,1964.8,
Department of Health,Salisbury NHS Foundation Trust,26-Feb-16,MEDICAL EQUIPMENT 10 YEARS,Capital Projects,KARL STORZ ENDOSCOPY (UK) LTD,286326,1803.2,
Department of Health,Salisbury NHS Foundation Trust,26-Feb-16,MEDICAL EQUIPMENT 10 YEARS,Capital Projects,KARL STORZ ENDOSCOPY (UK) LTD,286326,2611.2,
Department of Health,Salisbury NHS Foundation Trust,26-Feb-16,MEDICAL EQUIPMENT 10 YEARS,Capital Projects,KARL STORZ ENDOSCOPY (UK) LTD,286326,604.8,
Department of Health,Salisbury NHS Foundation Trust,26-Feb-16,MEDICAL EQUIPMENT 10 YEARS,Capital Projects,KARL STORZ ENDOSCOPY (UK) LTD,286326,1070.4,
Department of Health,Salisbury NHS Foundation Trust,26-Feb-16,MEDICAL EQUIPMENT 10 YEARS,Capital Projects,KARL STORZ ENDOSCOPY (UK) LTD,286326,6340.8,
Department of Health,Salisbury NHS Foundation Trust,26-Feb-16,MEDICAL EQUIPMENT 10 YEARS,Capital Projects,KARL STORZ ENDOSCOPY (UK) LTD,286326,8260,
Department of Health,Salisbury NHS Foundation Trust,26-Feb-16,MEDICAL EQUIPMENT 10 YEARS,Capital Projects,KARL STORZ ENDOSCOPY (UK) LTD,286326,3027,
Department of Health,Salisbury NHS Foundation Trust,26-Feb-16,MEDICAL EQUIPMENT 10 YEARS,Capital Projects,KARL STORZ ENDOSCOPY (UK) LTD,286326,2318.4,
Department of Health,Salisbury NHS Foundation Trust,26-Feb-16,MEDICAL EQUIPMENT 10 YEARS,Capital Projects,KARL STORZ ENDOSCOPY (UK) LTD,286326,1116.8,
Department of Health,Salisbury NHS Foundation Trust,26-Feb-16,MEDICAL EQUIPMENT 10 YEARS,Capital Projects,KARL STORZ ENDOSCOPY (UK) LTD,286326,413,
Department of Health,Salisbury NHS Foundation Trust,26-Feb-16,MEDICAL EQUIPMENT 10 YEARS,Capital Projects,KARL STORZ ENDOSCOPY (UK) LTD,286326,8264,
Department of Health,Salisbury NHS Foundation Trust,26-Feb-16,MEDICAL EQUIPMENT 10 YEARS,Capital Projects,KARL STORZ ENDOSCOPY (UK) LTD,286326,2128,
Department of Health,Salisbury NHS Foundation Trust,26-Feb-16,MEDICAL EQUIPMENT 10 YEARS,Capital Projects,KARL STORZ ENDOSCOPY (UK) LTD,286326,2516,
Department of Health,Salisbury NHS Foundation Trust,26-Feb-16,MEDICAL EQUIPMENT 10 YEARS,Capital Projects,KARL STORZ ENDOSCOPY (UK) LTD,286326,2116,
Department of Health,Salisbury NHS Foundation Trust,26-Feb-16,MEDICAL EQUIPMENT 10 YEARS,Capital Projects,KARL STORZ ENDOSCOPY (UK) LTD,286326,2180,
Department of Health,Salisbury NHS Foundation Trust,26-Feb-16,MEDICAL EQUIPMENT 10 YEARS,Capital Projects,KARL STORZ ENDOSCOPY (UK) LTD,286326,1652,
Department of Health,Salisbury NHS Foundation Trust,26-Feb-16,MEDICAL EQUIPMENT 10 YEARS,Capital Projects,KARL STORZ ENDOSCOPY (UK) LTD,286326,11844,
Department of Health,Salisbury NHS Foundation Trust,26-Feb-16,MEDICAL EQUIPMENT 10 YEARS,Capital Projects,KARL STORZ ENDOSCOPY (UK) LTD,286326,5656,
Department of Health,Salisbury NHS Foundation Trust,26-Feb-16,MEDICAL EQUIPMENT 10 YEARS,Capital Projects,KARL STORZ ENDOSCOPY (UK) LTD,286326,1480.5,
Department of Health,Salisbury NHS Foundation Trust,26-Feb-16,MEDICAL EQUIPMENT 10 YEARS,Capital Projects,KARL STORZ ENDOSCOPY (UK) LTD,286326,1068.8,
Department of Health,Salisbury NHS Foundation Trust,26-Feb-16,MEDICAL EQUIPMENT 10 YEARS,Capital Projects,KARL STORZ ENDOSCOPY (UK) LTD,286326,2246.4,
Department of Health,Salisbury NHS Foundation Trust,26-Feb-16,MEDICAL EQUIPMENT 10 YEARS,Capital Projects,KARL STORZ ENDOSCOPY (UK) LTD,286326,1123.2,
Department of Health,Salisbury NHS Foundation Trust,26-Feb-16,MEDICAL EQUIPMENT 10 YEARS,Capital Projects,KARL STORZ ENDOSCOPY (UK) LTD,286326,1696,
Department of Health,Salisbury NHS Foundation Trust,26-Feb-16,MEDICAL EQUIPMENT 10 YEARS,Capital Projects,KARL STORZ ENDOSCOPY (UK) LTD,286326,1332.8,
Department of Health,Salisbury NHS Foundation Trust,26-Feb-16,MEDICAL EQUIPMENT 10 YEARS,Capital Projects,KARL STORZ ENDOSCOPY (UK) LTD,286326,74.56,
Department of Health,Salisbury NHS Foundation Trust,26-Feb-16,MEDICAL EQUIPMENT 10 YEARS,Capital Projects,KARL STORZ ENDOSCOPY (UK) LTD,286326,82.6,
Department of Health,Salisbury NHS Foundation Trust,26-Feb-16,MEDICAL EQUIPMENT 10 YEARS,Capital Projects,KARL STORZ ENDOSCOPY (UK) LTD,286326,926.72,
Department of Health,Salisbury NHS Foundation Trust,26-Feb-16,MEDICAL EQUIPMENT 10 YEARS,Capital Projects,KARL STORZ ENDOSCOPY (UK) LTD,286326,488.64,
Department of Health,Salisbury NHS Foundation Trust,26-Feb-16,MEDICAL EQUIPMENT 10 YEARS,Capital Projects,KARL STORZ ENDOSCOPY (UK) LTD,286326,1690.88,
Department of Health,Salisbury NHS Foundation Trust,26-Feb-16,MEDICAL EQUIPMENT 10 YEARS,Capital Projects,KARL STORZ ENDOSCOPY (UK) LTD,286326,392.96,
Department of Health,Salisbury NHS Foundation Trust,26-Feb-16,MEDICAL EQUIPMENT 10 YEARS,Capital Projects,KARL STORZ ENDOSCOPY (UK) LTD,286326,360.64,
Department of Health,Salisbury NHS Foundation Trust,26-Feb-16,MEDICAL EQUIPMENT 10 YEARS,Capital Projects,KARL STORZ ENDOSCOPY (UK) LTD,286326,522.24,
Department of Health,Salisbury NHS Foundation Trust,26-Feb-16,MEDICAL EQUIPMENT 10 YEARS,Capital Projects,KARL STORZ ENDOSCOPY (UK) LTD,286326,120.96,
Department of Health,Salisbury NHS Foundation Trust,26-Feb-16,MEDICAL EQUIPMENT 10 YEARS,Capital Projects,KARL STORZ ENDOSCOPY (UK) LTD,286326,214.08,
Department of Health,Salisbury NHS Foundation Trust,26-Feb-16,MEDICAL EQUIPMENT 10 YEARS,Capital Projects,KARL STORZ ENDOSCOPY (UK) LTD,286326,1268.16,
Department of Health,Salisbury NHS Foundation Trust,26-Feb-16,MEDICAL EQUIPMENT 10 YEARS,Capital Projects,KARL STORZ ENDOSCOPY (UK) LTD,286326,1652,
Department of Health,Salisbury NHS Foundation Trust,26-Feb-16,MEDICAL EQUIPMENT 10 YEARS,Capital Projects,KARL STORZ ENDOSCOPY (UK) LTD,286326,605.4,
Department of Health,Salisbury NHS Foundation Trust,26-Feb-16,MEDICAL EQUIPMENT 10 YEARS,Capital Projects,KARL STORZ ENDOSCOPY (UK) LTD,286326,463.68,
Department of Health,Salisbury NHS Foundation Trust,26-Feb-16,MEDICAL EQUIPMENT 10 YEARS,Capital Projects,KARL STORZ ENDOSCOPY (UK) LTD,286326,223.36,
Department of Health,Salisbury NHS Foundation Trust,26-Feb-16,MEDICAL EQUIPMENT 10 YEARS,Capital Projects,KARL STORZ ENDOSCOPY (UK) LTD,286326,82.6,
Department of Health,Salisbury NHS Foundation Trust,26-Feb-16,MEDICAL EQUIPMENT 10 YEARS,Capital Projects,KARL STORZ ENDOSCOPY (UK) LTD,286326,1652.8,
Department of Health,Salisbury NHS Foundation Trust,26-Feb-16,MEDICAL EQUIPMENT 10 YEARS,Capital Projects,KARL STORZ ENDOSCOPY (UK) LTD,286326,425.6,
Department of Health,Salisbury NHS Foundation Trust,26-Feb-16,MEDICAL EQUIPMENT 10 YEARS,Capital Projects,KARL STORZ ENDOSCOPY (UK) LTD,286326,503.2,
Department of Health,Salisbury NHS Foundation Trust,26-Feb-16,MEDICAL EQUIPMENT 10 YEARS,Capital Projects,KARL STORZ ENDOSCOPY (UK) LTD,286326,423.2,
Department of Health,Salisbury NHS Foundation Trust,26-Feb-16,MEDICAL EQUIPMENT 10 YEARS,Capital Projects,KARL STORZ ENDOSCOPY (UK) LTD,286326,436,
Department of Health,Salisbury NHS Foundation Trust,26-Feb-16,MEDICAL EQUIPMENT 10 YEARS,Capital Projects,KARL STORZ ENDOSCOPY (UK) LTD,286326,330.4,
Department of Health,Salisbury NHS Foundation Trust,26-Feb-16,MEDSURGCONS - OTHER,Clinical Support and Family Services,NHS LOGISTICS,1016198025,210.17,
Department of Health,Salisbury NHS Foundation Trust,26-Feb-16,OTHER MEDICAL SUPPLIES,Medicine,NHS LOGISTICS,1016198025,112.63,
Department of Health,Salisbury NHS Foundation Trust,26-Feb-16,DISPOSABLE THEATRE DRAPES WIPES,Surgery,NHS LOGISTICS,1016198025,170.23,
Department of Health,Salisbury NHS Foundation Trust,26-Feb-16,SERVICES FROM NHS BODIES,Clinical Support and Family Services,NHS LOGISTICS,1016198025,32.97,
Department of Health,Salisbury NHS Foundation Trust,26-Feb-16,NON DISPOSABLE THEATRE DRAPES WIPES,Surgery,NHS LOGISTICS,1016198025,72.61,
Department of Health,Salisbury NHS Foundation Trust,26-Feb-16,LAB REAGENTS-BUFFERS COMPUND SOLNS,Clinical Support and Family Services,NHS LOGISTICS,1016198025,837.92,
Department of Health,Salisbury NHS Foundation Trust,26-Feb-16,TISSUES HAND TOWELS & TOILET PAPER,Surgery,NHS LOGISTICS,1016198025,12.5,
Department of Health,Salisbury NHS Foundation Trust,26-Feb-16,TISSUES HAND TOWELS & TOILET PAPER,Surgery,NHS LOGISTICS,1016198025,25,
Department of Health,Salisbury NHS Foundation Trust,26-Feb-16,DISPOSABLE THEATRE DRAPES WIPES,Surgery,NHS LOGISTICS,1016198025,41.5,
Department of Health,Salisbury NHS Foundation Trust,26-Feb-16,DISPOSABLE THEATRE DRAPES WIPES,Surgery,NHS LOGISTICS,1016198025,79.07,
Department of Health,Salisbury NHS Foundation Trust,26-Feb-16,MEDSURGCONS - OTHER,Critical care,NHS LOGISTICS,1016198025,155.23,
Department of Health,Salisbury NHS Foundation Trust,26-Feb-16,NON DISPOSABLE BED LINEN,Clinical Support and Family Services,NHS LOGISTICS,1016198025,7.95,
Department of Health,Salisbury NHS Foundation Trust,26-Feb-16,NON DISPOSABLE BED LINEN,Clinical Support and Family Services,NHS LOGISTICS,1016198025,38.83,
Department of Health,Salisbury NHS Foundation Trust,26-Feb-16,ELECTRICAL EQUIPMENT x,Clinical Support and Family Services,NHS LOGISTICS,1016198025,3.33,
Department of Health,Salisbury NHS Foundation Trust,26-Feb-16,CLEANING MATERIALS PRODUCTS SUNDRIES,Clinical Support and Family Services,NHS LOGISTICS,1016198025,5.53,
Department of Health,Salisbury NHS Foundation Trust,26-Feb-16,MEDSURGCONS - OTHER,Clinical Support and Family Services,NHS LOGISTICS,1016198025,45.82,
Department of Health,Salisbury NHS Foundation Trust,26-Feb-16,ANAESTHETIC EQUIPMENT ACCESSORIES,Medicine,NHS LOGISTICS,1016198025,192.9,
Department of Health,Salisbury NHS Foundation Trust,26-Feb-16,OTHER MEDICAL SUPPLIES,Surgery,NHS LOGISTICS,1016198025,64.52,
Department of Health,Salisbury NHS Foundation Trust,26-Feb-16,M & S EQUIPELECTEQUIPINST - OTHER,Surgery,NHS LOGISTICS,1016198025,114.58,
Department of Health,Salisbury NHS Foundation Trust,26-Feb-16,SURGICAL INSTRUMENTS: GENERAL,Medicine,NHS LOGISTICS,1016198025,103.42,
Department of Health,Salisbury NHS Foundation Trust,26-Feb-16,DRESSINGS - PRE STERILE,Critical care,NHS LOGISTICS,1016198025,22.61,
Department of Health,Salisbury NHS Foundation Trust,26-Feb-16,MEDSURGCONS - OTHER,Medicine,NHS LOGISTICS,1016198025,5.38,
Department of Health,Salisbury NHS Foundation Trust,26-Feb-16,ELECTRICAL EQUIPMENT x,Medicine,NHS LOGISTICS,1016198025,4,
Department of Health,Salisbury NHS Foundation Trust,26-Feb-16,DRESSINGS - PRE STERILE,Medicine,NHS LOGISTICS,1016198025,143.62,
Department of Health,Salisbury NHS Foundation Trust,26-Feb-16,PAPER ITEMS GENERAL STATIONERY SUNDRIES,Surgery,NHS LOGISTICS,1016198025,73.7,
Department of Health,Salisbury NHS Foundation Trust,26-Feb-16,DISPOSABLE THEATRE DRAPES WIPES,Surgery,NHS LOGISTICS,1016198025,21,
Department of Health,Salisbury NHS Foundation Trust,26-Feb-16,ADULTS HEARING AIDS,Surgery,NHS LOGISTICS,1016198025,27.88,
Department of Health,Salisbury NHS Foundation Trust,26-Feb-16,ADULTS HEARING AIDS,Surgery,NHS LOGISTICS,1016198025,27.88,
Department of Health,Salisbury NHS Foundation Trust,26-Feb-16,ANAESTHETIC EQUIPMENT ACCESSORIES,Surgery,NHS LOGISTICS,1016198025,56.45,
Department of Health,Salisbury NHS Foundation Trust,26-Feb-16,OTHER MEDICAL SUPPLIES,Clinical Support and Family Services,NHS LOGISTICS,1016198025,122.08,
Department of Health,Salisbury NHS Foundation Trust,26-Feb-16,MEDSURGCONS - OTHER,Clinical Support and Family Services,NHS LOGISTICS,1016198025,45.82,
Department of Health,Salisbury NHS Foundation Trust,26-Feb-16,MEDSURGCONS - OTHER,Clinical Support and Family Services,NHS LOGISTICS,1016198025,55.43,
Department of Health,Salisbury NHS Foundation Trust,26-Feb-16,ADULTS HEARING AIDS,Surgery,NHS LOGISTICS,1016198025,774.33,
Department of Health,Salisbury NHS Foundation Trust,26-Feb-16,MEDSURGCONS - OTHER,Clinical Support and Family Services,NHS LOGISTICS,1016198025,45.82,
Department of Health,Salisbury NHS Foundation Trust,26-Feb-16,DRESSINGS - PRE STERILE,Critical care,NHS LOGISTICS,1016198025,53.35,
Department of Health,Salisbury NHS Foundation Trust,26-Feb-16,DRESSINGS - PRE STERILE,Critical care,NHS LOGISTICS,1016198025,48.28,
Department of Health,Salisbury NHS Foundation Trust,26-Feb-16,DRUGS,Medicine,NHS LOGISTICS,1016198025,6.18,
Department of Health,Salisbury NHS Foundation Trust,26-Feb-16,MEDSURGCONS - OTHER,Clinical Support and Family Services,NHS LOGISTICS,1016198025,3.62,
Department of Health,Salisbury NHS Foundation Trust,26-Feb-16,OTHER MEDICAL SUPPLIES,Medicine,NHS LOGISTICS,1016198025,75.25,
Department of Health,Salisbury NHS Foundation Trust,26-Feb-16,LAB EQUIP-LABORATORY APPARATUS,Clinical Support and Family Services,NHS LOGISTICS,1016198025,52.93,
Department of Health,Salisbury NHS Foundation Trust,26-Feb-16,PATIENT APPLIANCES,Clinical Support and Family Services,NHS LOGISTICS,1016198025,10.25,
Department of Health,Salisbury NHS Foundation Trust,26-Feb-16,MED SURG EQUIP REP MAINT CLEANING,Clinical Support and Family Services,NHS LOGISTICS,1016198025,107.4,
Department of Health,Salisbury NHS Foundation Trust,26-Feb-16,OTHER MEDICAL SUPPLIES,Medicine,NHS LOGISTICS,1016198025,112.63,
Department of Health,Salisbury NHS Foundation Trust,26-Feb-16,MED SURG EQUIP REP MAINT CLEANING,Directorate of Finance and Procurement,NHS LOGISTICS,1016198025,333.92,
Department of Health,Salisbury NHS Foundation Trust,26-Feb-16,DRESSINGS - PRE STERILE,Directorate of Finance and Procurement,NHS LOGISTICS,1016198025,97,
Department of Health,Salisbury NHS Foundation Trust,26-Feb-16,MEDSURGCONS - OTHER,Directorate of Finance and Procurement,NHS LOGISTICS,1016198025,13.66,
Department of Health,Salisbury NHS Foundation Trust,26-Feb-16,COOKING & KITCHEN UTENSILS,Directorate of Finance and Procurement,NHS LOGISTICS,1016198025,343.33,
Department of Health,Salisbury NHS Foundation Trust,26-Feb-16,DRESSINGS - PRE STERILE,Directorate of Finance and Procurement,NHS LOGISTICS,1016198025,220.83,
Department of Health,Salisbury NHS Foundation Trust,26-Feb-16,MEDSURGCONS - OTHER,Directorate of Finance and Procurement,NHS LOGISTICS,1016198025,451.2,
Department of Health,Salisbury NHS Foundation Trust,26-Feb-16,DISPOSABLE THEATRE DRAPES WIPES,Directorate of Finance and Procurement,NHS LOGISTICS,1016198025,52.5,
Department of Health,Salisbury NHS Foundation Trust,26-Feb-16,BAGS SACKS - OTHER,Facilities Directorate,NHS LOGISTICS,1016198025,20.27,
Department of Health,Salisbury NHS Foundation Trust,26-Feb-16,CLEANING MATERIALS PRODUCTS SUNDRIES,Facilities Directorate,NHS LOGISTICS,1016198025,17.4,
Department of Health,Salisbury NHS Foundation Trust,26-Feb-16,CLEANING MATERIALS PRODUCTS SUNDRIES,Facilities Directorate,NHS LOGISTICS,1016198025,21.53,
Department of Health,Salisbury NHS Foundation Trust,26-Feb-16,CLEANING MATERIALS PRODUCTS SUNDRIES,Facilities Directorate,NHS LOGISTICS,1016198025,4.4,
Department of Health,Salisbury NHS Foundation Trust,26-Feb-16,CLEANING MATERIALS PRODUCTS SUNDRIES,Facilities Directorate,NHS LOGISTICS,1016198025,33.07,
Department of Health,Salisbury NHS Foundation Trust,26-Feb-16,CLEANING MATERIALS PRODUCTS SUNDRIES,Facilities Directorate,NHS LOGISTICS,1016198025,13.75,
Department of Health,Salisbury NHS Foundation Trust,26-Feb-16,CLEANING MATERIALS PRODUCTS SUNDRIES,Facilities Directorate,NHS LOGISTICS,1016198025,5.73,
Department of Health,Salisbury NHS Foundation Trust,26-Feb-16,DISPOSABLE THEATRE DRAPES WIPES,Facilities Directorate,NHS LOGISTICS,1016198025,11.38,
Department of Health,Salisbury NHS Foundation Trust,26-Feb-16,DISPOSABLE THEATRE DRAPES WIPES,Facilities Directorate,NHS LOGISTICS,1016198025,266.8,
Department of Health,Salisbury NHS Foundation Trust,26-Feb-16,CLEANING MATERIALS PRODUCTS SUNDRIES,Facilities Directorate,NHS LOGISTICS,1016198025,20.4,
Department of Health,Salisbury NHS Foundation Trust,26-Feb-16,CLEANING MATERIALS PRODUCTS SUNDRIES,Facilities Directorate,NHS LOGISTICS,1016198025,56.8,
Department of Health,Salisbury NHS Foundation Trust,26-Feb-16,DISPOSABLE THEATRE DRAPES WIPES,Facilities Directorate,NHS LOGISTICS,1016198025,6.85,
Department of Health,Salisbury NHS Foundation Trust,26-Feb-16,DISPOSABLE THEATRE DRAPES WIPES,Facilities Directorate,NHS LOGISTICS,1016198025,70.93,
Department of Health,Salisbury NHS Foundation Trust,26-Feb-16,ELECTRICAL EQUIPMENT x,Facilities Directorate,NHS LOGISTICS,1016198025,6.67,
Department of Health,Salisbury NHS Foundation Trust,26-Feb-16,DRESSINGS - PRE STERILE,Critical care,NHS LOGISTICS,1016198025,0.76,
Department of Health,Salisbury NHS Foundation Trust,26-Feb-16,MEDSURGCONS - OTHER,Critical care,NHS LOGISTICS,1016198025,16.61,
Department of Health,Salisbury NHS Foundation Trust,26-Feb-16,LAB EQUIP-LABORATORY APPARATUS,Clinical Support and Family Services,NHS LOGISTICS,1016198025,61.08,
Department of Health,Salisbury NHS Foundation Trust,26-Feb-16,LAB EQUIP-LABORATORY APPARATUS,Clinical Support and Family Services,NHS LOGISTICS,1016198025,237.33,
Department of Health,Salisbury NHS Foundation Trust,26-Feb-16,LAB EQUIP-ANALYSERS,Clinical Support and Family Services,NHS LOGISTICS,1016198025,25.4,
Department of Health,Salisbury NHS Foundation Trust,26-Feb-16,LAB EQUIP-ANALYSERS,Clinical Support and Family Services,NHS LOGISTICS,1016198025,61.5,
Department of Health,Salisbury NHS Foundation Trust,26-Feb-16,LAB EQUIP-LABORATORY APPARATUS,Clinical Support and Family Services,NHS LOGISTICS,1016198025,655.08,
Department of Health,Salisbury NHS Foundation Trust,26-Feb-16,LAB EQUIP-LABORATORY APPARATUS,Clinical Support and Family Services,NHS LOGISTICS,1016198025,12.87,
Department of Health,Salisbury NHS Foundation Trust,26-Feb-16,LAB EQUIP-LABORATORY APPARATUS,Clinical Support and Family Services,NHS LOGISTICS,1016198025,50.87,
Department of Health,Salisbury NHS Foundation Trust,26-Feb-16,TISSUES HAND TOWELS & TOILET PAPER,Clinical Support and Family Services,NHS LOGISTICS,1016198025,10.4,
Department of Health,Salisbury NHS Foundation Trust,26-Feb-16,COOKING & KITCHEN UTENSILS,Clinical Support and Family Services,NHS LOGISTICS,1016198025,12.25,
Department of Health,Salisbury NHS Foundation Trust,26-Feb-16,LAB EQUIP-LABORATORY APPARATUS,Clinical Support and Family Services,NHS LOGISTICS,1016198025,3.04,
Department of Health,Salisbury NHS Foundation Trust,26-Feb-16,LAB EQUIP-LABORATORY APPARATUS,Clinical Support and Family Services,NHS LOGISTICS,1016198025,70.8,
Department of Health,Salisbury NHS Foundation Trust,26-Feb-16,OTHER MEDICAL SUPPLIES,Clinical Support and Family Services,NHS LOGISTICS,1016198025,455,
Department of Health,Salisbury NHS Foundation Trust,26-Feb-16,OTHER MEDICAL SUPPLIES,Clinical Support and Family Services,NHS LOGISTICS,1016198025,182,
Department of Health,Salisbury NHS Foundation Trust,26-Feb-16,LAB REAGENTS-BUFFERS COMPUND SOLNS,Clinical Support and Family Services,NHS LOGISTICS,1016198025,279.9,
Department of Health,Salisbury NHS Foundation Trust,26-Feb-16,DRESSINGS - PRE STERILE,Critical care,NHS LOGISTICS,1016198025,0.76,
Department of Health,Salisbury NHS Foundation Trust,26-Feb-16,PATIENTS BEDWEAR UNISEX,Surgery,NHS LOGISTICS,1016198025,65.43,
Department of Health,Salisbury NHS Foundation Trust,26-Feb-16,PATIENTS BEDWEAR UNISEX,Surgery,NHS LOGISTICS,1016198025,130.85,
Department of Health,Salisbury NHS Foundation Trust,26-Feb-16,BEVERAGES & AMBIENT FOOD,Medicine,NHS LOGISTICS,1016198025,4.43,
Department of Health,Salisbury NHS Foundation Trust,26-Feb-16,MEDSURGCONS - OTHER,Facilities Directorate,NHS LOGISTICS,1016198025,11,
Department of Health,Salisbury NHS Foundation Trust,26-Feb-16,PATIENT APPLIANCES,Clinical Support and Family Services,NHS LOGISTICS,1016198025,30.44,
Department of Health,Salisbury NHS Foundation Trust,26-Feb-16,TISSUES HAND TOWELS & TOILET PAPER,Clinical Support and Family Services,NHS LOGISTICS,1016198025,3.77,
Department of Health,Salisbury NHS Foundation Trust,26-Feb-16,TISSUES HAND TOWELS & TOILET PAPER,Clinical Support and Family Services,NHS LOGISTICS,1016198025,10.4,
Department of Health,Salisbury NHS Foundation Trust,26-Feb-16,OTHER MEDICAL SUPPLIES,Clinical Support and Family Services,NHS LOGISTICS,1016198025,4.69,
Department of Health,Salisbury NHS Foundation Trust,26-Feb-16,M & S EQUIPELECTEQUIPINST - OTHER,Clinical Support and Family Services,NHS LOGISTICS,1016198025,12.13,
Department of Health,Salisbury NHS Foundation Trust,26-Feb-16,DRESSINGS - PRE STERILE,Medicine,NHS LOGISTICS,1016198025,33.87,
Department of Health,Salisbury NHS Foundation Trust,26-Feb-16,TISSUES HAND TOWELS & TOILET PAPER,Surgery,NHS LOGISTICS,1016198025,31.2,
Department of Health,Salisbury NHS Foundation Trust,26-Feb-16,MEDSURGCONS - OTHER,Surgery,NHS LOGISTICS,1016198025,21.67,
Department of Health,Salisbury NHS Foundation Trust,26-Feb-16,M & S EQUIPELECTEQUIPINST - OTHER,Surgery,NHS LOGISTICS,1016198025,44.44,
Department of Health,Salisbury NHS Foundation Trust,26-Feb-16,ADULTS HEARING AIDS,Surgery,NHS LOGISTICS,1016198025,3737.42,
Department of Health,Salisbury NHS Foundation Trust,26-Feb-16,HEALTHCARE - WEAR,Clinical Support and Family Services,NHS LOGISTICS,1016198025,48.6,
Department of Health,Salisbury NHS Foundation Trust,26-Feb-16,HEALTHCARE - WEAR,Surgery,NHS LOGISTICS,1016198025,81.3,
Department of Health,Salisbury NHS Foundation Trust,26-Feb-16,BABY TEXTURE MODIFIED FOODS,Clinical Support and Family Services,NHS LOGISTICS,1016198025,34.5,
Department of Health,Salisbury NHS Foundation Trust,26-Feb-16,TISSUES HAND TOWELS & TOILET PAPER,Surgery,NHS LOGISTICS,1016198025,5.65,
Department of Health,Salisbury NHS Foundation Trust,26-Feb-16,DRESSINGS - PRE STERILE,Surgery,NHS LOGISTICS,1016198025,20.38,
Department of Health,Salisbury NHS Foundation Trust,26-Feb-16,TISSUES HAND TOWELS & TOILET PAPER,Surgery,NHS LOGISTICS,1016198025,7.53,
Department of Health,Salisbury NHS Foundation Trust,26-Feb-16,TISSUES HAND TOWELS & TOILET PAPER,Surgery,NHS LOGISTICS,1016198025,0.93,
Department of Health,Salisbury NHS Foundation Trust,26-Feb-16,TUBES,Surgery,NHS LOGISTICS,1016198025,6.19,
Department of Health,Salisbury NHS Foundation Trust,26-Feb-16,DRESSINGS - PRE STERILE,Surgery,NHS LOGISTICS,1016198025,17.65,
Department of Health,Salisbury NHS Foundation Trust,26-Feb-16,OTHER MEDICAL SUPPLIES,Surgery,NHS LOGISTICS,1016198025,9.28,
Department of Health,Salisbury NHS Foundation Trust,26-Feb-16,DRESSINGS - PRE STERILE,Surgery,NHS LOGISTICS,1016198025,8.64,
Department of Health,Salisbury NHS Foundation Trust,26-Feb-16,OPTICAL  -  OTHER,Surgery,NHS LOGISTICS,1016198025,207,
Department of Health,Salisbury NHS Foundation Trust,26-Feb-16,ANAESTHETIC EQUIPMENT ACCESSORIES,Surgery,NHS LOGISTICS,1016198025,56.45,
Department of Health,Salisbury NHS Foundation Trust,26-Feb-16,DISPOSABLE THEATRE DRAPES WIPES,Surgery,NHS LOGISTICS,1016198025,17.08,
Department of Health,Salisbury NHS Foundation Trust,26-Feb-16,TISSUES HAND TOWELS & TOILET PAPER,Surgery,NHS LOGISTICS,1016198025,8,
Department of Health,Salisbury NHS Foundation Trust,26-Feb-16,DRESSINGS - PRE STERILE,Surgery,NHS LOGISTICS,1016198025,2.08,
Department of Health,Salisbury NHS Foundation Trust,26-Feb-16,DRUGS,Surgery,NHS LOGISTICS,1016198025,12.45,
Department of Health,Salisbury NHS Foundation Trust,26-Feb-16,MEDSURGCONS - OTHER,Surgery,NHS LOGISTICS,1016198025,21.52,
Department of Health,Salisbury NHS Foundation Trust,26-Feb-16,DRUGS,Surgery,NHS LOGISTICS,1016198025,23.3,
Department of Health,Salisbury NHS Foundation Trust,26-Feb-16,TISSUES HAND TOWELS & TOILET PAPER,Medicine,NHS LOGISTICS,1016198025,3.77,
Department of Health,Salisbury NHS Foundation Trust,26-Feb-16,TISSUES HAND TOWELS & TOILET PAPER,Medicine,NHS LOGISTICS,1016198025,1.4,
Department of Health,Salisbury NHS Foundation Trust,26-Feb-16,M & S EQUIPELECTEQUIPINST - OTHER,Medicine,NHS LOGISTICS,1016198025,2.18,
Department of Health,Salisbury NHS Foundation Trust,26-Feb-16,PATIENT APPLIANCES,Medicine,NHS LOGISTICS,1016198025,4.15,
Department of Health,Salisbury NHS Foundation Trust,26-Feb-16,PATIENT APPLIANCES,Medicine,NHS LOGISTICS,1016198025,8.3,
